Body Name,Date Paid,Transaction Number,Amount,Supplier Name,Supplier Type,Expense Area,Cost Centre Description,Expense Type
Cambridgeshire County Council,01-Sep-23,51302051888,"-47,110.48",ATKINS LTD,COMPANY,A141 and St Ives Improvement - CPCA,A141 and St Ives Improvement - CPCA,Construction - External Professional Fees
Cambridgeshire County Council,01-Sep-23,51302045663,"-5,174.99",Glebe Farm,COMPANY,LD - Young Adults Team,LD - Young Adults - Special Needs,Residential Care
Cambridgeshire County Council,01-Sep-23,51302045663,"-5,174.99",Glebe Farm,COMPANY,LD - Young Adults Team,LD - Young Adults - Special Needs,Residential Care
Cambridgeshire County Council,01-Sep-23,51302045663,"-5,174.99",Glebe Farm,COMPANY,LD - Young Adults Team,LD - Young Adults - Special Needs,Residential Care
Cambridgeshire County Council,01-Sep-23,51302045663,"-5,174.99",Glebe Farm,COMPANY,LD - Young Adults Team,LD - Young Adults - Special Needs,Residential Care
Cambridgeshire County Council,01-Sep-23,51302045663,"-5,174.99",Glebe Farm,COMPANY,LD - Young Adults Team,LD - Young Adults - Special Needs,Residential Care
Cambridgeshire County Council,01-Sep-23,51302056122,"-3,701.72",Redacted Personal Data,PARENT/GUARDIAN,LD - Hunts Locality - Cost of Care,LD - Huntingdonshire - Care,Direct Payments
Cambridgeshire County Council,01-Sep-23,51302056122,"-3,701.72",Redacted Personal Data,PARENT/GUARDIAN,LD - Hunts Locality - Cost of Care,LD - Huntingdonshire - Care,Direct Payments
Cambridgeshire County Council,01-Sep-23,51302056122,"-3,701.72",Redacted Personal Data,PARENT/GUARDIAN,LD - Hunts Locality - Cost of Care,LD - Huntingdonshire - Care,Direct Payments
Cambridgeshire County Council,01-Sep-23,51301972005,"-2,520.00",Redacted Personal Data,SERVICE USER,LD - South Locality - Cost of Care,LD - South Cambs - Care,Direct Payments
Cambridgeshire County Council,01-Sep-23,51302055332,"-2,140.98",CARETECH COMMUNITY SERVICES,CARE ESTABLISHMENT,LD - South Locality - Cost of Care,LD - South Cambs - Special Needs,Residential Care
Cambridgeshire County Council,01-Sep-23,51302055332,"-2,140.98",CARETECH COMMUNITY SERVICES,CARE ESTABLISHMENT,LD - South Locality - Cost of Care,LD - South Cambs - Special Needs,Residential Care
Cambridgeshire County Council,01-Sep-23,51302055332,"-2,140.98",CARETECH COMMUNITY SERVICES,CARE ESTABLISHMENT,LD - South Locality - Cost of Care,LD - South Cambs - Special Needs,Residential Care
Cambridgeshire County Council,01-Sep-23,51302055332,"-2,140.98",CARETECH COMMUNITY SERVICES,CARE ESTABLISHMENT,LD - South Locality - Cost of Care,LD - South Cambs - Special Needs,Residential Care
Cambridgeshire County Council,01-Sep-23,51302055332,"-2,140.98",CARETECH COMMUNITY SERVICES,CARE ESTABLISHMENT,LD - South Locality - Cost of Care,LD - South Cambs - Special Needs,Residential Care
Cambridgeshire County Council,01-Sep-23,51302055332,"-2,140.98",CARETECH COMMUNITY SERVICES,CARE ESTABLISHMENT,LD - South Locality - Cost of Care,LD - South Cambs - Special Needs,Residential Care
Cambridgeshire County Council,01-Sep-23,51302055332,"-2,140.98",CARETECH COMMUNITY SERVICES,CARE ESTABLISHMENT,LD - South Locality - Cost of Care,LD - South Cambs - Special Needs,Residential Care
Cambridgeshire County Council,01-Sep-23,51302055332,"-2,140.98",CARETECH COMMUNITY SERVICES,CARE ESTABLISHMENT,LD - South Locality - Cost of Care,LD - South Cambs - Special Needs,Residential Care
Cambridgeshire County Council,01-Sep-23,51302055332,"-2,140.98",CARETECH COMMUNITY SERVICES,CARE ESTABLISHMENT,LD - South Locality - Cost of Care,LD - South Cambs - Special Needs,Residential Care
Cambridgeshire County Council,01-Sep-23,51302055332,"-2,140.98",CARETECH COMMUNITY SERVICES,CARE ESTABLISHMENT,LD - South Locality - Cost of Care,LD - South Cambs - Special Needs,Residential Care
Cambridgeshire County Council,01-Sep-23,51302055332,"-2,140.98",CARETECH COMMUNITY SERVICES,CARE ESTABLISHMENT,LD - South Locality - Cost of Care,LD - South Cambs - Special Needs,Residential Care
Cambridgeshire County Council,01-Sep-23,51302055332,"-2,140.98",CARETECH COMMUNITY SERVICES,CARE ESTABLISHMENT,LD - South Locality - Cost of Care,LD - South Cambs - Special Needs,Residential Care
Cambridgeshire County Council,01-Sep-23,51302055332,"-2,140.98",CARETECH COMMUNITY SERVICES,CARE ESTABLISHMENT,LD - South Locality - Cost of Care,LD - South Cambs - Special Needs,Residential Care
Cambridgeshire County Council,01-Sep-23,51302055332,"-2,140.98",CARETECH COMMUNITY SERVICES,CARE ESTABLISHMENT,LD - South Locality - Cost of Care,LD - South Cambs - Special Needs,Residential Care
Cambridgeshire County Council,01-Sep-23,51302055332,"-2,140.98",CARETECH COMMUNITY SERVICES,CARE ESTABLISHMENT,LD - South Locality - Cost of Care,LD - South Cambs - Special Needs,Residential Care
Cambridgeshire County Council,01-Sep-23,51302055332,"-2,140.98",CARETECH COMMUNITY SERVICES,CARE ESTABLISHMENT,LD - South Locality - Cost of Care,LD - South Cambs - Special Needs,Residential Care
Cambridgeshire County Council,01-Sep-23,51302055332,"-2,140.98",CARETECH COMMUNITY SERVICES,CARE ESTABLISHMENT,LD - South Locality - Cost of Care,LD - South Cambs - Special Needs,Residential Care
Cambridgeshire County Council,01-Sep-23,51302055332,"-2,140.98",CARETECH COMMUNITY SERVICES,CARE ESTABLISHMENT,LD - South Locality - Cost of Care,LD - South Cambs - Special Needs,Residential Care
Cambridgeshire County Council,01-Sep-23,51302055332,"-2,140.98",CARETECH COMMUNITY SERVICES,CARE ESTABLISHMENT,LD - South Locality - Cost of Care,LD - South Cambs - Special Needs,Residential Care
Cambridgeshire County Council,01-Sep-23,51302055332,"-2,140.98",CARETECH COMMUNITY SERVICES,CARE ESTABLISHMENT,LD - South Locality - Cost of Care,LD - South Cambs - Special Needs,Residential Care
Cambridgeshire County Council,01-Sep-23,51302055332,"-2,140.98",CARETECH COMMUNITY SERVICES,CARE ESTABLISHMENT,LD - South Locality - Cost of Care,LD - South Cambs - Special Needs,Residential Care
Cambridgeshire County Council,01-Sep-23,51302055332,"-2,140.98",CARETECH COMMUNITY SERVICES,CARE ESTABLISHMENT,LD - South Locality - Cost of Care,LD - South Cambs - Special Needs,Residential Care
Cambridgeshire County Council,01-Sep-23,51302055332,"-2,140.98",CARETECH COMMUNITY SERVICES,CARE ESTABLISHMENT,LD - South Locality - Cost of Care,LD - South Cambs - Special Needs,Residential Care
Cambridgeshire County Council,01-Sep-23,51302055332,"-1,982.39",CARETECH COMMUNITY SERVICES,CARE ESTABLISHMENT,LD - South Locality - Cost of Care,LD - South Cambs - Special Needs,Residential Care
Cambridgeshire County Council,01-Sep-23,51302055332,"-1,982.39",CARETECH COMMUNITY SERVICES,CARE ESTABLISHMENT,LD - South Locality - Cost of Care,LD - South Cambs - Special Needs,Residential Care
Cambridgeshire County Council,01-Sep-23,51302055332,"-1,982.39",CARETECH COMMUNITY SERVICES,CARE ESTABLISHMENT,LD - South Locality - Cost of Care,LD - South Cambs - Special Needs,Residential Care
Cambridgeshire County Council,01-Sep-23,51302055332,"-1,982.39",CARETECH COMMUNITY SERVICES,CARE ESTABLISHMENT,LD - South Locality - Cost of Care,LD - South Cambs - Special Needs,Residential Care
Cambridgeshire County Council,01-Sep-23,51302055332,"-1,982.39",CARETECH COMMUNITY SERVICES,CARE ESTABLISHMENT,LD - South Locality - Cost of Care,LD - South Cambs - Special Needs,Residential Care
Cambridgeshire County Council,01-Sep-23,51302055332,"-1,982.39",CARETECH COMMUNITY SERVICES,CARE ESTABLISHMENT,LD - South Locality - Cost of Care,LD - South Cambs - Special Needs,Residential Care
Cambridgeshire County Council,01-Sep-23,51302055332,"-1,982.39",CARETECH COMMUNITY SERVICES,CARE ESTABLISHMENT,LD - South Locality - Cost of Care,LD - South Cambs - Special Needs,Residential Care
Cambridgeshire County Council,01-Sep-23,51302055332,"-1,982.39",CARETECH COMMUNITY SERVICES,CARE ESTABLISHMENT,LD - South Locality - Cost of Care,LD - South Cambs - Special Needs,Residential Care
Cambridgeshire County Council,01-Sep-23,51302055332,"-1,982.39",CARETECH COMMUNITY SERVICES,CARE ESTABLISHMENT,LD - South Locality - Cost of Care,LD - South Cambs - Special Needs,Residential Care
Cambridgeshire County Council,01-Sep-23,51302055332,"-1,982.39",CARETECH COMMUNITY SERVICES,CARE ESTABLISHMENT,LD - South Locality - Cost of Care,LD - South Cambs - Special Needs,Residential Care
Cambridgeshire County Council,01-Sep-23,51302055332,"-1,982.39",CARETECH COMMUNITY SERVICES,CARE ESTABLISHMENT,LD - South Locality - Cost of Care,LD - South Cambs - Special Needs,Residential Care
Cambridgeshire County Council,01-Sep-23,51302055332,"-1,982.39",CARETECH COMMUNITY SERVICES,CARE ESTABLISHMENT,LD - South Locality - Cost of Care,LD - South Cambs - Special Needs,Residential Care
Cambridgeshire County Council,01-Sep-23,51302055332,"-1,982.39",CARETECH COMMUNITY SERVICES,CARE ESTABLISHMENT,LD - South Locality - Cost of Care,LD - South Cambs - Special Needs,Residential Care
Cambridgeshire County Council,01-Sep-23,51302055332,"-1,982.39",CARETECH COMMUNITY SERVICES,CARE ESTABLISHMENT,LD - South Locality - Cost of Care,LD - South Cambs - Special Needs,Residential Care
Cambridgeshire County Council,01-Sep-23,51302055332,"-1,982.39",CARETECH COMMUNITY SERVICES,CARE ESTABLISHMENT,LD - South Locality - Cost of Care,LD - South Cambs - Special Needs,Residential Care
Cambridgeshire County Council,01-Sep-23,51302055332,"-1,982.39",CARETECH COMMUNITY SERVICES,CARE ESTABLISHMENT,LD - South Locality - Cost of Care,LD - South Cambs - Special Needs,Residential Care
Cambridgeshire County Council,01-Sep-23,51302055332,"-1,982.39",CARETECH COMMUNITY SERVICES,CARE ESTABLISHMENT,LD - South Locality - Cost of Care,LD - South Cambs - Special Needs,Residential Care
Cambridgeshire County Council,01-Sep-23,51302055332,"-1,982.39",CARETECH COMMUNITY SERVICES,CARE ESTABLISHMENT,LD - South Locality - Cost of Care,LD - South Cambs - Special Needs,Residential Care
Cambridgeshire County Council,01-Sep-23,51302055332,"-1,982.39",CARETECH COMMUNITY SERVICES,CARE ESTABLISHMENT,LD - South Locality - Cost of Care,LD - South Cambs - Special Needs,Residential Care
Cambridgeshire County Council,01-Sep-23,51302055332,"-1,982.39",CARETECH COMMUNITY SERVICES,CARE ESTABLISHMENT,LD - South Locality - Cost of Care,LD - South Cambs - Special Needs,Residential Care
Cambridgeshire County Council,01-Sep-23,51302055332,"-1,982.39",CARETECH COMMUNITY SERVICES,CARE ESTABLISHMENT,LD - South Locality - Cost of Care,LD - South Cambs - Special Needs,Residential Care
Cambridgeshire County Council,01-Sep-23,51302055332,"-1,982.39",CARETECH COMMUNITY SERVICES,CARE ESTABLISHMENT,LD - South Locality - Cost of Care,LD - South Cambs - Special Needs,Residential Care
Cambridgeshire County Council,01-Sep-23,51302055332,"-1,982.39",CARETECH COMMUNITY SERVICES,CARE ESTABLISHMENT,LD - South Locality - Cost of Care,LD - South Cambs - Special Needs,Residential Care
Cambridgeshire County Council,01-Sep-23,51302055332,"-1,982.39",CARETECH COMMUNITY SERVICES,CARE ESTABLISHMENT,LD - South Locality - Cost of Care,LD - South Cambs - Special Needs,Residential Care
Cambridgeshire County Council,01-Sep-23,51302055332,"-1,982.39",CARETECH COMMUNITY SERVICES,CARE ESTABLISHMENT,LD - South Locality - Cost of Care,LD - South Cambs - Special Needs,Residential Care
Cambridgeshire County Council,01-Sep-23,51302055332,"-1,982.39",CARETECH COMMUNITY SERVICES,CARE ESTABLISHMENT,LD - South Locality - Cost of Care,LD - South Cambs - Special Needs,Residential Care
Cambridgeshire County Council,01-Sep-23,51302055332,"-1,982.39",CARETECH COMMUNITY SERVICES,CARE ESTABLISHMENT,LD - South Locality - Cost of Care,LD - South Cambs - Special Needs,Residential Care
Cambridgeshire County Council,01-Sep-23,51302055332,"-1,982.39",CARETECH COMMUNITY SERVICES,CARE ESTABLISHMENT,LD - South Locality - Cost of Care,LD - South Cambs - Special Needs,Residential Care
Cambridgeshire County Council,01-Sep-23,51302055332,"-1,982.39",CARETECH COMMUNITY SERVICES,CARE ESTABLISHMENT,LD - South Locality - Cost of Care,LD - South Cambs - Special Needs,Residential Care
Cambridgeshire County Council,01-Sep-23,51302055332,"-1,982.39",CARETECH COMMUNITY SERVICES,CARE ESTABLISHMENT,LD - South Locality - Cost of Care,LD - South Cambs - Special Needs,Residential Care
Cambridgeshire County Council,01-Sep-23,51302055332,"-1,982.39",CARETECH COMMUNITY SERVICES,CARE ESTABLISHMENT,LD - South Locality - Cost of Care,LD - South Cambs - Special Needs,Residential Care
Cambridgeshire County Council,01-Sep-23,51302055332,"-1,982.39",CARETECH COMMUNITY SERVICES,CARE ESTABLISHMENT,LD - South Locality - Cost of Care,LD - South Cambs - Special Needs,Residential Care
Cambridgeshire County Council,01-Sep-23,51302055332,"-1,982.39",CARETECH COMMUNITY SERVICES,CARE ESTABLISHMENT,LD - South Locality - Cost of Care,LD - South Cambs - Special Needs,Residential Care
Cambridgeshire County Council,01-Sep-23,51302055332,"-1,982.39",CARETECH COMMUNITY SERVICES,CARE ESTABLISHMENT,LD - South Locality - Cost of Care,LD - South Cambs - Special Needs,Residential Care
Cambridgeshire County Council,01-Sep-23,51302055332,"-1,982.39",CARETECH COMMUNITY SERVICES,CARE ESTABLISHMENT,LD - South Locality - Cost of Care,LD - South Cambs - Special Needs,Residential Care
Cambridgeshire County Council,01-Sep-23,51302055332,"-1,982.39",CARETECH COMMUNITY SERVICES,CARE ESTABLISHMENT,LD - South Locality - Cost of Care,LD - South Cambs - Special Needs,Residential Care
Cambridgeshire County Council,01-Sep-23,51302055332,"-1,982.39",CARETECH COMMUNITY SERVICES,CARE ESTABLISHMENT,LD - South Locality - Cost of Care,LD - South Cambs - Special Needs,Residential Care
Cambridgeshire County Council,01-Sep-23,51302055332,"-1,982.39",CARETECH COMMUNITY SERVICES,CARE ESTABLISHMENT,LD - South Locality - Cost of Care,LD - South Cambs - Special Needs,Residential Care
Cambridgeshire County Council,01-Sep-23,51302055332,"-1,982.39",CARETECH COMMUNITY SERVICES,CARE ESTABLISHMENT,LD - South Locality - Cost of Care,LD - South Cambs - Special Needs,Residential Care
Cambridgeshire County Council,01-Sep-23,51302055332,"-1,982.39",CARETECH COMMUNITY SERVICES,CARE ESTABLISHMENT,LD - South Locality - Cost of Care,LD - South Cambs - Special Needs,Residential Care
Cambridgeshire County Council,01-Sep-23,51302055332,"-1,982.39",CARETECH COMMUNITY SERVICES,CARE ESTABLISHMENT,LD - South Locality - Cost of Care,LD - South Cambs - Special Needs,Residential Care
Cambridgeshire County Council,01-Sep-23,51302055332,"-1,982.39",CARETECH COMMUNITY SERVICES,CARE ESTABLISHMENT,LD - South Locality - Cost of Care,LD - South Cambs - Special Needs,Residential Care
Cambridgeshire County Council,01-Sep-23,51302055332,"-1,982.39",CARETECH COMMUNITY SERVICES,CARE ESTABLISHMENT,LD - South Locality - Cost of Care,LD - South Cambs - Special Needs,Residential Care
Cambridgeshire County Council,01-Sep-23,51302055332,"-1,982.39",CARETECH COMMUNITY SERVICES,CARE ESTABLISHMENT,LD - South Locality - Cost of Care,LD - South Cambs - Special Needs,Residential Care
Cambridgeshire County Council,01-Sep-23,51302055332,"-1,982.39",CARETECH COMMUNITY SERVICES,CARE ESTABLISHMENT,LD - South Locality - Cost of Care,LD - South Cambs - Special Needs,Residential Care
Cambridgeshire County Council,01-Sep-23,51302055332,"-1,982.39",CARETECH COMMUNITY SERVICES,CARE ESTABLISHMENT,LD - South Locality - Cost of Care,LD - South Cambs - Special Needs,Residential Care
Cambridgeshire County Council,01-Sep-23,51302055332,"-1,982.39",CARETECH COMMUNITY SERVICES,CARE ESTABLISHMENT,LD - South Locality - Cost of Care,LD - South Cambs - Special Needs,Residential Care
Cambridgeshire County Council,01-Sep-23,51302055332,"-1,982.39",CARETECH COMMUNITY SERVICES,CARE ESTABLISHMENT,LD - South Locality - Cost of Care,LD - South Cambs - Special Needs,Residential Care
Cambridgeshire County Council,01-Sep-23,51302055332,"-1,982.39",CARETECH COMMUNITY SERVICES,CARE ESTABLISHMENT,LD - South Locality - Cost of Care,LD - South Cambs - Special Needs,Residential Care
Cambridgeshire County Council,01-Sep-23,51302055332,"-1,982.39",CARETECH COMMUNITY SERVICES,CARE ESTABLISHMENT,LD - South Locality - Cost of Care,LD - South Cambs - Special Needs,Residential Care
Cambridgeshire County Council,01-Sep-23,51302055332,"-1,982.39",CARETECH COMMUNITY SERVICES,CARE ESTABLISHMENT,LD - South Locality - Cost of Care,LD - South Cambs - Special Needs,Residential Care
Cambridgeshire County Council,01-Sep-23,51302055332,"-1,909.82",CARETECH COMMUNITY SERVICES,CARE ESTABLISHMENT,LD - South Locality - Cost of Care,LD - South Cambs - Special Needs,Residential Care
Cambridgeshire County Council,01-Sep-23,51302055332,"-1,909.82",CARETECH COMMUNITY SERVICES,CARE ESTABLISHMENT,LD - South Locality - Cost of Care,LD - South Cambs - Special Needs,Residential Care
Cambridgeshire County Council,01-Sep-23,51302055332,"-1,909.82",CARETECH COMMUNITY SERVICES,CARE ESTABLISHMENT,LD - South Locality - Cost of Care,LD - South Cambs - Special Needs,Residential Care
Cambridgeshire County Council,01-Sep-23,51302055332,"-1,909.82",CARETECH COMMUNITY SERVICES,CARE ESTABLISHMENT,LD - South Locality - Cost of Care,LD - South Cambs - Special Needs,Residential Care
Cambridgeshire County Council,01-Sep-23,51302055332,"-1,909.82",CARETECH COMMUNITY SERVICES,CARE ESTABLISHMENT,LD - South Locality - Cost of Care,LD - South Cambs - Special Needs,Residential Care
Cambridgeshire County Council,01-Sep-23,51302055332,"-1,909.82",CARETECH COMMUNITY SERVICES,CARE ESTABLISHMENT,LD - South Locality - Cost of Care,LD - South Cambs - Special Needs,Residential Care
Cambridgeshire County Council,01-Sep-23,51302055332,"-1,909.82",CARETECH COMMUNITY SERVICES,CARE ESTABLISHMENT,LD - South Locality - Cost of Care,LD - South Cambs - Special Needs,Residential Care
Cambridgeshire County Council,01-Sep-23,51302055332,"-1,909.82",CARETECH COMMUNITY SERVICES,CARE ESTABLISHMENT,LD - South Locality - Cost of Care,LD - South Cambs - Special Needs,Residential Care
Cambridgeshire County Council,01-Sep-23,51302055332,"-1,909.82",CARETECH COMMUNITY SERVICES,CARE ESTABLISHMENT,LD - South Locality - Cost of Care,LD - South Cambs - Special Needs,Residential Care
Cambridgeshire County Council,01-Sep-23,51302055332,"-1,909.82",CARETECH COMMUNITY SERVICES,CARE ESTABLISHMENT,LD - South Locality - Cost of Care,LD - South Cambs - Special Needs,Residential Care
Cambridgeshire County Council,01-Sep-23,51302055332,"-1,909.82",CARETECH COMMUNITY SERVICES,CARE ESTABLISHMENT,LD - South Locality - Cost of Care,LD - South Cambs - Special Needs,Residential Care
Cambridgeshire County Council,01-Sep-23,51302055332,"-1,909.82",CARETECH COMMUNITY SERVICES,CARE ESTABLISHMENT,LD - South Locality - Cost of Care,LD - South Cambs - Special Needs,Residential Care
Cambridgeshire County Council,01-Sep-23,51302055332,"-1,909.82",CARETECH COMMUNITY SERVICES,CARE ESTABLISHMENT,LD - South Locality - Cost of Care,LD - South Cambs - Special Needs,Residential Care
Cambridgeshire County Council,01-Sep-23,51302055332,"-1,909.82",CARETECH COMMUNITY SERVICES,CARE ESTABLISHMENT,LD - South Locality - Cost of Care,LD - South Cambs - Special Needs,Residential Care
Cambridgeshire County Council,01-Sep-23,51302055332,"-1,909.82",CARETECH COMMUNITY SERVICES,CARE ESTABLISHMENT,LD - South Locality - Cost of Care,LD - South Cambs - Special Needs,Residential Care
Cambridgeshire County Council,01-Sep-23,51302055332,"-1,909.82",CARETECH COMMUNITY SERVICES,CARE ESTABLISHMENT,LD - South Locality - Cost of Care,LD - South Cambs - Special Needs,Residential Care
Cambridgeshire County Council,01-Sep-23,51302055332,"-1,909.82",CARETECH COMMUNITY SERVICES,CARE ESTABLISHMENT,LD - South Locality - Cost of Care,LD - South Cambs - Special Needs,Residential Care
Cambridgeshire County Council,01-Sep-23,51302055332,"-1,909.82",CARETECH COMMUNITY SERVICES,CARE ESTABLISHMENT,LD - South Locality - Cost of Care,LD - South Cambs - Special Needs,Residential Care
Cambridgeshire County Council,01-Sep-23,51302055332,"-1,909.82",CARETECH COMMUNITY SERVICES,CARE ESTABLISHMENT,LD - South Locality - Cost of Care,LD - South Cambs - Special Needs,Residential Care
Cambridgeshire County Council,01-Sep-23,51302055332,"-1,909.82",CARETECH COMMUNITY SERVICES,CARE ESTABLISHMENT,LD - South Locality - Cost of Care,LD - South Cambs - Special Needs,Residential Care
Cambridgeshire County Council,01-Sep-23,51302055332,"-1,909.82",CARETECH COMMUNITY SERVICES,CARE ESTABLISHMENT,LD - South Locality - Cost of Care,LD - South Cambs - Special Needs,Residential Care
Cambridgeshire County Council,01-Sep-23,51302055332,"-1,909.82",CARETECH COMMUNITY SERVICES,CARE ESTABLISHMENT,LD - South Locality - Cost of Care,LD - South Cambs - Special Needs,Residential Care
Cambridgeshire County Council,01-Sep-23,51302055332,"-1,909.82",CARETECH COMMUNITY SERVICES,CARE ESTABLISHMENT,LD - South Locality - Cost of Care,LD - South Cambs - Special Needs,Residential Care
Cambridgeshire County Council,01-Sep-23,51302055332,"-1,909.82",CARETECH COMMUNITY SERVICES,CARE ESTABLISHMENT,LD - South Locality - Cost of Care,LD - South Cambs - Special Needs,Residential Care
Cambridgeshire County Council,01-Sep-23,51302055332,"-1,909.82",CARETECH COMMUNITY SERVICES,CARE ESTABLISHMENT,LD - South Locality - Cost of Care,LD - South Cambs - Special Needs,Residential Care
Cambridgeshire County Council,01-Sep-23,51302055332,"-1,909.82",CARETECH COMMUNITY SERVICES,CARE ESTABLISHMENT,LD - South Locality - Cost of Care,LD - South Cambs - Special Needs,Residential Care
Cambridgeshire County Council,01-Sep-23,51302055332,"-1,909.82",CARETECH COMMUNITY SERVICES,CARE ESTABLISHMENT,LD - South Locality - Cost of Care,LD - South Cambs - Special Needs,Residential Care
Cambridgeshire County Council,01-Sep-23,51302055332,"-1,909.82",CARETECH COMMUNITY SERVICES,CARE ESTABLISHMENT,LD - South Locality - Cost of Care,LD - South Cambs - Special Needs,Residential Care
Cambridgeshire County Council,01-Sep-23,51302055332,"-1,909.82",CARETECH COMMUNITY SERVICES,CARE ESTABLISHMENT,LD - South Locality - Cost of Care,LD - South Cambs - Special Needs,Residential Care
Cambridgeshire County Council,01-Sep-23,51302055332,"-1,909.82",CARETECH COMMUNITY SERVICES,CARE ESTABLISHMENT,LD - South Locality - Cost of Care,LD - South Cambs - Special Needs,Residential Care
Cambridgeshire County Council,01-Sep-23,51302055332,"-1,909.82",CARETECH COMMUNITY SERVICES,CARE ESTABLISHMENT,LD - South Locality - Cost of Care,LD - South Cambs - Special Needs,Residential Care
Cambridgeshire County Council,01-Sep-23,51302055332,"-1,909.82",CARETECH COMMUNITY SERVICES,CARE ESTABLISHMENT,LD - South Locality - Cost of Care,LD - South Cambs - Special Needs,Residential Care
Cambridgeshire County Council,01-Sep-23,51302055332,"-1,909.82",CARETECH COMMUNITY SERVICES,CARE ESTABLISHMENT,LD - South Locality - Cost of Care,LD - South Cambs - Special Needs,Residential Care
Cambridgeshire County Council,01-Sep-23,51302055332,"-1,909.82",CARETECH COMMUNITY SERVICES,CARE ESTABLISHMENT,LD - South Locality - Cost of Care,LD - South Cambs - Special Needs,Residential Care
Cambridgeshire County Council,01-Sep-23,51302055332,"-1,909.82",CARETECH COMMUNITY SERVICES,CARE ESTABLISHMENT,LD - South Locality - Cost of Care,LD - South Cambs - Special Needs,Residential Care
Cambridgeshire County Council,01-Sep-23,51302055332,"-1,909.82",CARETECH COMMUNITY SERVICES,CARE ESTABLISHMENT,LD - South Locality - Cost of Care,LD - South Cambs - Special Needs,Residential Care
Cambridgeshire County Council,01-Sep-23,51302055332,"-1,909.82",CARETECH COMMUNITY SERVICES,CARE ESTABLISHMENT,LD - South Locality - Cost of Care,LD - South Cambs - Special Needs,Residential Care
Cambridgeshire County Council,01-Sep-23,51302055332,"-1,909.82",CARETECH COMMUNITY SERVICES,CARE ESTABLISHMENT,LD - South Locality - Cost of Care,LD - South Cambs - Special Needs,Residential Care
Cambridgeshire County Council,01-Sep-23,51302055332,"-1,909.82",CARETECH COMMUNITY SERVICES,CARE ESTABLISHMENT,LD - South Locality - Cost of Care,LD - South Cambs - Special Needs,Residential Care
Cambridgeshire County Council,01-Sep-23,51302055332,"-1,909.82",CARETECH COMMUNITY SERVICES,CARE ESTABLISHMENT,LD - South Locality - Cost of Care,LD - South Cambs - Special Needs,Residential Care
Cambridgeshire County Council,01-Sep-23,51302055332,"-1,909.82",CARETECH COMMUNITY SERVICES,CARE ESTABLISHMENT,LD - South Locality - Cost of Care,LD - South Cambs - Special Needs,Residential Care
Cambridgeshire County Council,01-Sep-23,51302055332,"-1,909.82",CARETECH COMMUNITY SERVICES,CARE ESTABLISHMENT,LD - South Locality - Cost of Care,LD - South Cambs - Special Needs,Residential Care
Cambridgeshire County Council,01-Sep-23,51302055332,"-1,909.82",CARETECH COMMUNITY SERVICES,CARE ESTABLISHMENT,LD - South Locality - Cost of Care,LD - South Cambs - Special Needs,Residential Care
Cambridgeshire County Council,01-Sep-23,51302055332,"-1,909.82",CARETECH COMMUNITY SERVICES,CARE ESTABLISHMENT,LD - South Locality - Cost of Care,LD - South Cambs - Special Needs,Residential Care
Cambridgeshire County Council,01-Sep-23,51302055332,"-1,909.82",CARETECH COMMUNITY SERVICES,CARE ESTABLISHMENT,LD - South Locality - Cost of Care,LD - South Cambs - Special Needs,Residential Care
Cambridgeshire County Council,01-Sep-23,51302055332,"-1,909.82",CARETECH COMMUNITY SERVICES,CARE ESTABLISHMENT,LD - South Locality - Cost of Care,LD - South Cambs - Special Needs,Residential Care
Cambridgeshire County Council,01-Sep-23,51302055332,"-1,909.82",CARETECH COMMUNITY SERVICES,CARE ESTABLISHMENT,LD - South Locality - Cost of Care,LD - South Cambs - Special Needs,Residential Care
Cambridgeshire County Council,01-Sep-23,51302055332,"-1,909.82",CARETECH COMMUNITY SERVICES,CARE ESTABLISHMENT,LD - South Locality - Cost of Care,LD - South Cambs - Special Needs,Residential Care
Cambridgeshire County Council,01-Sep-23,51302055332,"-1,909.82",CARETECH COMMUNITY SERVICES,CARE ESTABLISHMENT,LD - South Locality - Cost of Care,LD - South Cambs - Special Needs,Residential Care
Cambridgeshire County Council,01-Sep-23,51302055332,"-1,909.82",CARETECH COMMUNITY SERVICES,CARE ESTABLISHMENT,LD - South Locality - Cost of Care,LD - South Cambs - Special Needs,Residential Care
Cambridgeshire County Council,01-Sep-23,51302055332,"-1,909.82",CARETECH COMMUNITY SERVICES,CARE ESTABLISHMENT,LD - South Locality - Cost of Care,LD - South Cambs - Special Needs,Residential Care
Cambridgeshire County Council,01-Sep-23,51302055332,"-1,880.85",CARETECH COMMUNITY SERVICES,CARE ESTABLISHMENT,LD - South Locality - Cost of Care,LD - South Cambs - Special Needs,Residential Care
Cambridgeshire County Council,01-Sep-23,51302055332,"-1,880.85",CARETECH COMMUNITY SERVICES,CARE ESTABLISHMENT,LD - South Locality - Cost of Care,LD - South Cambs - Special Needs,Residential Care
Cambridgeshire County Council,01-Sep-23,51302055332,"-1,880.85",CARETECH COMMUNITY SERVICES,CARE ESTABLISHMENT,LD - South Locality - Cost of Care,LD - South Cambs - Special Needs,Residential Care
Cambridgeshire County Council,01-Sep-23,51302055332,"-1,880.85",CARETECH COMMUNITY SERVICES,CARE ESTABLISHMENT,LD - South Locality - Cost of Care,LD - South Cambs - Special Needs,Residential Care
Cambridgeshire County Council,01-Sep-23,51302055332,"-1,880.85",CARETECH COMMUNITY SERVICES,CARE ESTABLISHMENT,LD - South Locality - Cost of Care,LD - South Cambs - Special Needs,Residential Care
Cambridgeshire County Council,01-Sep-23,51302055332,"-1,880.85",CARETECH COMMUNITY SERVICES,CARE ESTABLISHMENT,LD - South Locality - Cost of Care,LD - South Cambs - Special Needs,Residential Care
Cambridgeshire County Council,01-Sep-23,51302055332,"-1,880.85",CARETECH COMMUNITY SERVICES,CARE ESTABLISHMENT,LD - South Locality - Cost of Care,LD - South Cambs - Special Needs,Residential Care
Cambridgeshire County Council,01-Sep-23,51302055332,"-1,880.85",CARETECH COMMUNITY SERVICES,CARE ESTABLISHMENT,LD - South Locality - Cost of Care,LD - South Cambs - Special Needs,Residential Care
Cambridgeshire County Council,01-Sep-23,51302055332,"-1,880.85",CARETECH COMMUNITY SERVICES,CARE ESTABLISHMENT,LD - South Locality - Cost of Care,LD - South Cambs - Special Needs,Residential Care
Cambridgeshire County Council,01-Sep-23,51302055332,"-1,880.85",CARETECH COMMUNITY SERVICES,CARE ESTABLISHMENT,LD - South Locality - Cost of Care,LD - South Cambs - Special Needs,Residential Care
Cambridgeshire County Council,01-Sep-23,51302055332,"-1,880.85",CARETECH COMMUNITY SERVICES,CARE ESTABLISHMENT,LD - South Locality - Cost of Care,LD - South Cambs - Special Needs,Residential Care
Cambridgeshire County Council,01-Sep-23,51302055332,"-1,880.85",CARETECH COMMUNITY SERVICES,CARE ESTABLISHMENT,LD - South Locality - Cost of Care,LD - South Cambs - Special Needs,Residential Care
Cambridgeshire County Council,01-Sep-23,51302055332,"-1,880.85",CARETECH COMMUNITY SERVICES,CARE ESTABLISHMENT,LD - South Locality - Cost of Care,LD - South Cambs - Special Needs,Residential Care
Cambridgeshire County Council,01-Sep-23,51302055332,"-1,880.85",CARETECH COMMUNITY SERVICES,CARE ESTABLISHMENT,LD - South Locality - Cost of Care,LD - South Cambs - Special Needs,Residential Care
Cambridgeshire County Council,01-Sep-23,51302055332,"-1,880.85",CARETECH COMMUNITY SERVICES,CARE ESTABLISHMENT,LD - South Locality - Cost of Care,LD - South Cambs - Special Needs,Residential Care
Cambridgeshire County Council,01-Sep-23,51302055332,"-1,880.85",CARETECH COMMUNITY SERVICES,CARE ESTABLISHMENT,LD - South Locality - Cost of Care,LD - South Cambs - Special Needs,Residential Care
Cambridgeshire County Council,01-Sep-23,51302055332,"-1,880.85",CARETECH COMMUNITY SERVICES,CARE ESTABLISHMENT,LD - South Locality - Cost of Care,LD - South Cambs - Special Needs,Residential Care
Cambridgeshire County Council,01-Sep-23,51302055332,"-1,880.85",CARETECH COMMUNITY SERVICES,CARE ESTABLISHMENT,LD - South Locality - Cost of Care,LD - South Cambs - Special Needs,Residential Care
Cambridgeshire County Council,01-Sep-23,51302055332,"-1,880.85",CARETECH COMMUNITY SERVICES,CARE ESTABLISHMENT,LD - South Locality - Cost of Care,LD - South Cambs - Special Needs,Residential Care
Cambridgeshire County Council,01-Sep-23,51302055332,"-1,880.85",CARETECH COMMUNITY SERVICES,CARE ESTABLISHMENT,LD - South Locality - Cost of Care,LD - South Cambs - Special Needs,Residential Care
Cambridgeshire County Council,01-Sep-23,51302055332,"-1,880.85",CARETECH COMMUNITY SERVICES,CARE ESTABLISHMENT,LD - South Locality - Cost of Care,LD - South Cambs - Special Needs,Residential Care
Cambridgeshire County Council,01-Sep-23,51302055332,"-1,880.85",CARETECH COMMUNITY SERVICES,CARE ESTABLISHMENT,LD - South Locality - Cost of Care,LD - South Cambs - Special Needs,Residential Care
Cambridgeshire County Council,01-Sep-23,51302055332,"-1,880.85",CARETECH COMMUNITY SERVICES,CARE ESTABLISHMENT,LD - South Locality - Cost of Care,LD - South Cambs - Special Needs,Residential Care
Cambridgeshire County Council,01-Sep-23,51302055332,"-1,880.85",CARETECH COMMUNITY SERVICES,CARE ESTABLISHMENT,LD - South Locality - Cost of Care,LD - South Cambs - Special Needs,Residential Care
Cambridgeshire County Council,01-Sep-23,51302055332,"-1,880.85",CARETECH COMMUNITY SERVICES,CARE ESTABLISHMENT,LD - South Locality - Cost of Care,LD - South Cambs - Special Needs,Residential Care
Cambridgeshire County Council,01-Sep-23,51302055332,"-1,880.85",CARETECH COMMUNITY SERVICES,CARE ESTABLISHMENT,LD - South Locality - Cost of Care,LD - South Cambs - Special Needs,Residential Care
Cambridgeshire County Council,01-Sep-23,51302055332,"-1,880.85",CARETECH COMMUNITY SERVICES,CARE ESTABLISHMENT,LD - South Locality - Cost of Care,LD - South Cambs - Special Needs,Residential Care
Cambridgeshire County Council,01-Sep-23,51302055332,"-1,880.85",CARETECH COMMUNITY SERVICES,CARE ESTABLISHMENT,LD - South Locality - Cost of Care,LD - South Cambs - Special Needs,Residential Care
Cambridgeshire County Council,01-Sep-23,51302055332,"-1,880.85",CARETECH COMMUNITY SERVICES,CARE ESTABLISHMENT,LD - South Locality - Cost of Care,LD - South Cambs - Special Needs,Residential Care
Cambridgeshire County Council,01-Sep-23,51302055332,"-1,880.85",CARETECH COMMUNITY SERVICES,CARE ESTABLISHMENT,LD - South Locality - Cost of Care,LD - South Cambs - Special Needs,Residential Care
Cambridgeshire County Council,01-Sep-23,51302055332,"-1,880.85",CARETECH COMMUNITY SERVICES,CARE ESTABLISHMENT,LD - South Locality - Cost of Care,LD - South Cambs - Special Needs,Residential Care
Cambridgeshire County Council,01-Sep-23,51302055332,"-1,880.85",CARETECH COMMUNITY SERVICES,CARE ESTABLISHMENT,LD - South Locality - Cost of Care,LD - South Cambs - Special Needs,Residential Care
Cambridgeshire County Council,01-Sep-23,51302055332,"-1,880.85",CARETECH COMMUNITY SERVICES,CARE ESTABLISHMENT,LD - South Locality - Cost of Care,LD - South Cambs - Special Needs,Residential Care
Cambridgeshire County Council,01-Sep-23,51302055332,"-1,880.85",CARETECH COMMUNITY SERVICES,CARE ESTABLISHMENT,LD - South Locality - Cost of Care,LD - South Cambs - Special Needs,Residential Care
Cambridgeshire County Council,01-Sep-23,51302055332,"-1,880.85",CARETECH COMMUNITY SERVICES,CARE ESTABLISHMENT,LD - South Locality - Cost of Care,LD - South Cambs - Special Needs,Residential Care
Cambridgeshire County Council,01-Sep-23,51302055332,"-1,880.85",CARETECH COMMUNITY SERVICES,CARE ESTABLISHMENT,LD - South Locality - Cost of Care,LD - South Cambs - Special Needs,Residential Care
Cambridgeshire County Council,01-Sep-23,51302055332,"-1,880.85",CARETECH COMMUNITY SERVICES,CARE ESTABLISHMENT,LD - South Locality - Cost of Care,LD - South Cambs - Special Needs,Residential Care
Cambridgeshire County Council,01-Sep-23,51302055332,"-1,880.85",CARETECH COMMUNITY SERVICES,CARE ESTABLISHMENT,LD - South Locality - Cost of Care,LD - South Cambs - Special Needs,Residential Care
Cambridgeshire County Council,01-Sep-23,51302055326,"-1,856.56",VOYAGE,CARE ESTABLISHMENT,LD - South Locality - Cost of Care,LD - South Cambs - Care,Residential Care
Cambridgeshire County Council,01-Sep-23,51302055326,"-1,856.56",VOYAGE,CARE ESTABLISHMENT,LD - South Locality - Cost of Care,LD - South Cambs - Care,Residential Care
Cambridgeshire County Council,01-Sep-23,51302055326,"-1,856.56",VOYAGE,CARE ESTABLISHMENT,LD - South Locality - Cost of Care,LD - South Cambs - Care,Residential Care
Cambridgeshire County Council,01-Sep-23,51302055326,"-1,856.56",VOYAGE,CARE ESTABLISHMENT,LD - South Locality - Cost of Care,LD - South Cambs - Care,Residential Care
Cambridgeshire County Council,01-Sep-23,51302055326,"-1,856.56",VOYAGE,CARE ESTABLISHMENT,LD - South Locality - Cost of Care,LD - South Cambs - Care,Residential Care
Cambridgeshire County Council,01-Sep-23,51302055326,"-1,856.56",VOYAGE,CARE ESTABLISHMENT,LD - South Locality - Cost of Care,LD - South Cambs - Care,Residential Care
Cambridgeshire County Council,01-Sep-23,51302055326,"-1,856.56",VOYAGE,CARE ESTABLISHMENT,LD - South Locality - Cost of Care,LD - South Cambs - Care,Residential Care
Cambridgeshire County Council,01-Sep-23,51302055326,"-1,856.56",VOYAGE,CARE ESTABLISHMENT,LD - South Locality - Cost of Care,LD - South Cambs - Care,Residential Care
Cambridgeshire County Council,01-Sep-23,51302055326,"-1,856.56",VOYAGE,CARE ESTABLISHMENT,LD - South Locality - Cost of Care,LD - South Cambs - Care,Residential Care
Cambridgeshire County Council,01-Sep-23,51302055326,"-1,856.56",VOYAGE,CARE ESTABLISHMENT,LD - South Locality - Cost of Care,LD - South Cambs - Care,Residential Care
Cambridgeshire County Council,01-Sep-23,51302055326,"-1,856.56",VOYAGE,CARE ESTABLISHMENT,LD - South Locality - Cost of Care,LD - South Cambs - Care,Residential Care
Cambridgeshire County Council,01-Sep-23,51302055326,"-1,856.56",VOYAGE,CARE ESTABLISHMENT,LD - South Locality - Cost of Care,LD - South Cambs - Care,Residential Care
Cambridgeshire County Council,01-Sep-23,51302055326,"-1,856.56",VOYAGE,CARE ESTABLISHMENT,LD - South Locality - Cost of Care,LD - South Cambs - Care,Residential Care
Cambridgeshire County Council,01-Sep-23,51302055326,"-1,856.56",VOYAGE,CARE ESTABLISHMENT,LD - South Locality - Cost of Care,LD - South Cambs - Care,Residential Care
Cambridgeshire County Council,01-Sep-23,51302055326,"-1,856.56",VOYAGE,CARE ESTABLISHMENT,LD - South Locality - Cost of Care,LD - South Cambs - Care,Residential Care
Cambridgeshire County Council,01-Sep-23,51302055326,"-1,856.56",VOYAGE,CARE ESTABLISHMENT,LD - South Locality - Cost of Care,LD - South Cambs - Care,Residential Care
Cambridgeshire County Council,01-Sep-23,51302055326,"-1,856.56",VOYAGE,CARE ESTABLISHMENT,LD - South Locality - Cost of Care,LD - South Cambs - Care,Residential Care
Cambridgeshire County Council,01-Sep-23,51302055326,"-1,856.56",VOYAGE,CARE ESTABLISHMENT,LD - South Locality - Cost of Care,LD - South Cambs - Care,Residential Care
Cambridgeshire County Council,01-Sep-23,51302055326,"-1,856.56",VOYAGE,CARE ESTABLISHMENT,LD - South Locality - Cost of Care,LD - South Cambs - Care,Residential Care
Cambridgeshire County Council,01-Sep-23,51302055326,"-1,856.56",VOYAGE,CARE ESTABLISHMENT,LD - South Locality - Cost of Care,LD - South Cambs - Care,Residential Care
Cambridgeshire County Council,01-Sep-23,51302055326,"-1,856.56",VOYAGE,CARE ESTABLISHMENT,LD - South Locality - Cost of Care,LD - South Cambs - Care,Residential Care
Cambridgeshire County Council,01-Sep-23,51302055326,"-1,856.56",VOYAGE,CARE ESTABLISHMENT,LD - South Locality - Cost of Care,LD - South Cambs - Care,Residential Care
Cambridgeshire County Council,01-Sep-23,51302055326,"-1,856.56",VOYAGE,CARE ESTABLISHMENT,LD - South Locality - Cost of Care,LD - South Cambs - Care,Residential Care
Cambridgeshire County Council,01-Sep-23,51302055332,"-1,808.51",CARETECH COMMUNITY SERVICES,CARE ESTABLISHMENT,LD - South Locality - Cost of Care,LD - South Cambs - Special Needs,Residential Care
Cambridgeshire County Council,01-Sep-23,51302055332,"-1,808.51",CARETECH COMMUNITY SERVICES,CARE ESTABLISHMENT,LD - South Locality - Cost of Care,LD - South Cambs - Special Needs,Residential Care
Cambridgeshire County Council,01-Sep-23,51302055332,"-1,808.51",CARETECH COMMUNITY SERVICES,CARE ESTABLISHMENT,LD - South Locality - Cost of Care,LD - South Cambs - Special Needs,Residential Care
Cambridgeshire County Council,01-Sep-23,51302055332,"-1,808.51",CARETECH COMMUNITY SERVICES,CARE ESTABLISHMENT,LD - South Locality - Cost of Care,LD - South Cambs - Special Needs,Residential Care
Cambridgeshire County Council,01-Sep-23,51302055332,"-1,808.51",CARETECH COMMUNITY SERVICES,CARE ESTABLISHMENT,LD - South Locality - Cost of Care,LD - South Cambs - Special Needs,Residential Care
Cambridgeshire County Council,01-Sep-23,51302055332,"-1,808.51",CARETECH COMMUNITY SERVICES,CARE ESTABLISHMENT,LD - South Locality - Cost of Care,LD - South Cambs - Special Needs,Residential Care
Cambridgeshire County Council,01-Sep-23,51302055332,"-1,808.51",CARETECH COMMUNITY SERVICES,CARE ESTABLISHMENT,LD - South Locality - Cost of Care,LD - South Cambs - Special Needs,Residential Care
Cambridgeshire County Council,01-Sep-23,51302055332,"-1,808.51",CARETECH COMMUNITY SERVICES,CARE ESTABLISHMENT,LD - South Locality - Cost of Care,LD - South Cambs - Special Needs,Residential Care
Cambridgeshire County Council,01-Sep-23,51302055332,"-1,808.51",CARETECH COMMUNITY SERVICES,CARE ESTABLISHMENT,LD - South Locality - Cost of Care,LD - South Cambs - Special Needs,Residential Care
Cambridgeshire County Council,01-Sep-23,51302055332,"-1,808.51",CARETECH COMMUNITY SERVICES,CARE ESTABLISHMENT,LD - South Locality - Cost of Care,LD - South Cambs - Special Needs,Residential Care
Cambridgeshire County Council,01-Sep-23,51302055332,"-1,808.51",CARETECH COMMUNITY SERVICES,CARE ESTABLISHMENT,LD - South Locality - Cost of Care,LD - South Cambs - Special Needs,Residential Care
Cambridgeshire County Council,01-Sep-23,51302055332,"-1,808.51",CARETECH COMMUNITY SERVICES,CARE ESTABLISHMENT,LD - South Locality - Cost of Care,LD - South Cambs - Special Needs,Residential Care
Cambridgeshire County Council,01-Sep-23,51302055332,"-1,808.51",CARETECH COMMUNITY SERVICES,CARE ESTABLISHMENT,LD - South Locality - Cost of Care,LD - South Cambs - Special Needs,Residential Care
Cambridgeshire County Council,01-Sep-23,51302055332,"-1,808.51",CARETECH COMMUNITY SERVICES,CARE ESTABLISHMENT,LD - South Locality - Cost of Care,LD - South Cambs - Special Needs,Residential Care
Cambridgeshire County Council,01-Sep-23,51302055332,"-1,808.51",CARETECH COMMUNITY SERVICES,CARE ESTABLISHMENT,LD - South Locality - Cost of Care,LD - South Cambs - Special Needs,Residential Care
Cambridgeshire County Council,01-Sep-23,51302055332,"-1,808.51",CARETECH COMMUNITY SERVICES,CARE ESTABLISHMENT,LD - South Locality - Cost of Care,LD - South Cambs - Special Needs,Residential Care
Cambridgeshire County Council,01-Sep-23,51302055332,"-1,808.51",CARETECH COMMUNITY SERVICES,CARE ESTABLISHMENT,LD - South Locality - Cost of Care,LD - South Cambs - Special Needs,Residential Care
Cambridgeshire County Council,01-Sep-23,51302055332,"-1,808.51",CARETECH COMMUNITY SERVICES,CARE ESTABLISHMENT,LD - South Locality - Cost of Care,LD - South Cambs - Special Needs,Residential Care
Cambridgeshire County Council,01-Sep-23,51302055332,"-1,808.51",CARETECH COMMUNITY SERVICES,CARE ESTABLISHMENT,LD - South Locality - Cost of Care,LD - South Cambs - Special Needs,Residential Care
Cambridgeshire County Council,01-Sep-23,51302055332,"-1,808.51",CARETECH COMMUNITY SERVICES,CARE ESTABLISHMENT,LD - South Locality - Cost of Care,LD - South Cambs - Special Needs,Residential Care
Cambridgeshire County Council,01-Sep-23,51302055332,"-1,808.51",CARETECH COMMUNITY SERVICES,CARE ESTABLISHMENT,LD - South Locality - Cost of Care,LD - South Cambs - Special Needs,Residential Care
Cambridgeshire County Council,01-Sep-23,51302055332,"-1,808.51",CARETECH COMMUNITY SERVICES,CARE ESTABLISHMENT,LD - South Locality - Cost of Care,LD - South Cambs - Special Needs,Residential Care
Cambridgeshire County Council,01-Sep-23,51302055332,"-1,808.51",CARETECH COMMUNITY SERVICES,CARE ESTABLISHMENT,LD - South Locality - Cost of Care,LD - South Cambs - Special Needs,Residential Care
Cambridgeshire County Council,01-Sep-23,51302055332,"-1,808.51",CARETECH COMMUNITY SERVICES,CARE ESTABLISHMENT,LD - South Locality - Cost of Care,LD - South Cambs - Special Needs,Residential Care
Cambridgeshire County Council,01-Sep-23,51302055332,"-1,808.51",CARETECH COMMUNITY SERVICES,CARE ESTABLISHMENT,LD - South Locality - Cost of Care,LD - South Cambs - Special Needs,Residential Care
Cambridgeshire County Council,01-Sep-23,51302055332,"-1,808.51",CARETECH COMMUNITY SERVICES,CARE ESTABLISHMENT,LD - South Locality - Cost of Care,LD - South Cambs - Special Needs,Residential Care
Cambridgeshire County Council,01-Sep-23,51302055332,"-1,808.51",CARETECH COMMUNITY SERVICES,CARE ESTABLISHMENT,LD - South Locality - Cost of Care,LD - South Cambs - Special Needs,Residential Care
Cambridgeshire County Council,01-Sep-23,51302055332,"-1,808.51",CARETECH COMMUNITY SERVICES,CARE ESTABLISHMENT,LD - South Locality - Cost of Care,LD - South Cambs - Special Needs,Residential Care
Cambridgeshire County Council,01-Sep-23,51302055332,"-1,808.51",CARETECH COMMUNITY SERVICES,CARE ESTABLISHMENT,LD - South Locality - Cost of Care,LD - South Cambs - Special Needs,Residential Care
Cambridgeshire County Council,01-Sep-23,51302055332,"-1,808.51",CARETECH COMMUNITY SERVICES,CARE ESTABLISHMENT,LD - South Locality - Cost of Care,LD - South Cambs - Special Needs,Residential Care
Cambridgeshire County Council,01-Sep-23,51302055332,"-1,808.51",CARETECH COMMUNITY SERVICES,CARE ESTABLISHMENT,LD - South Locality - Cost of Care,LD - South Cambs - Special Needs,Residential Care
Cambridgeshire County Council,01-Sep-23,51302055332,"-1,808.51",CARETECH COMMUNITY SERVICES,CARE ESTABLISHMENT,LD - South Locality - Cost of Care,LD - South Cambs - Special Needs,Residential Care
Cambridgeshire County Council,01-Sep-23,51302055332,"-1,808.51",CARETECH COMMUNITY SERVICES,CARE ESTABLISHMENT,LD - South Locality - Cost of Care,LD - South Cambs - Special Needs,Residential Care
Cambridgeshire County Council,01-Sep-23,51302055332,"-1,808.51",CARETECH COMMUNITY SERVICES,CARE ESTABLISHMENT,LD - South Locality - Cost of Care,LD - South Cambs - Special Needs,Residential Care
Cambridgeshire County Council,01-Sep-23,51302055332,"-1,808.51",CARETECH COMMUNITY SERVICES,CARE ESTABLISHMENT,LD - South Locality - Cost of Care,LD - South Cambs - Special Needs,Residential Care
Cambridgeshire County Council,01-Sep-23,51302055332,"-1,808.51",CARETECH COMMUNITY SERVICES,CARE ESTABLISHMENT,LD - South Locality - Cost of Care,LD - South Cambs - Special Needs,Residential Care
Cambridgeshire County Council,01-Sep-23,51302055332,"-1,808.51",CARETECH COMMUNITY SERVICES,CARE ESTABLISHMENT,LD - South Locality - Cost of Care,LD - South Cambs - Special Needs,Residential Care
Cambridgeshire County Council,01-Sep-23,51302055332,"-1,808.51",CARETECH COMMUNITY SERVICES,CARE ESTABLISHMENT,LD - South Locality - Cost of Care,LD - South Cambs - Special Needs,Residential Care
Cambridgeshire County Council,01-Sep-23,51302055332,"-1,808.51",CARETECH COMMUNITY SERVICES,CARE ESTABLISHMENT,LD - South Locality - Cost of Care,LD - South Cambs - Special Needs,Residential Care
Cambridgeshire County Council,01-Sep-23,51302055332,"-1,808.51",CARETECH COMMUNITY SERVICES,CARE ESTABLISHMENT,LD - South Locality - Cost of Care,LD - South Cambs - Special Needs,Residential Care
Cambridgeshire County Council,01-Sep-23,51302055332,"-1,808.51",CARETECH COMMUNITY SERVICES,CARE ESTABLISHMENT,LD - South Locality - Cost of Care,LD - South Cambs - Special Needs,Residential Care
Cambridgeshire County Council,01-Sep-23,51302055332,"-1,808.51",CARETECH COMMUNITY SERVICES,CARE ESTABLISHMENT,LD - South Locality - Cost of Care,LD - South Cambs - Special Needs,Residential Care
Cambridgeshire County Council,01-Sep-23,51302055332,"-1,808.51",CARETECH COMMUNITY SERVICES,CARE ESTABLISHMENT,LD - South Locality - Cost of Care,LD - South Cambs - Special Needs,Residential Care
Cambridgeshire County Council,01-Sep-23,51302055332,"-1,808.51",CARETECH COMMUNITY SERVICES,CARE ESTABLISHMENT,LD - South Locality - Cost of Care,LD - South Cambs - Special Needs,Residential Care
Cambridgeshire County Council,01-Sep-23,51302055332,"-1,808.51",CARETECH COMMUNITY SERVICES,CARE ESTABLISHMENT,LD - South Locality - Cost of Care,LD - South Cambs - Special Needs,Residential Care
Cambridgeshire County Council,01-Sep-23,51302055332,"-1,808.51",CARETECH COMMUNITY SERVICES,CARE ESTABLISHMENT,LD - South Locality - Cost of Care,LD - South Cambs - Special Needs,Residential Care
Cambridgeshire County Council,01-Sep-23,51302055332,"-1,808.51",CARETECH COMMUNITY SERVICES,CARE ESTABLISHMENT,LD - South Locality - Cost of Care,LD - South Cambs - Special Needs,Residential Care
Cambridgeshire County Council,01-Sep-23,51302055332,"-1,808.51",CARETECH COMMUNITY SERVICES,CARE ESTABLISHMENT,LD - South Locality - Cost of Care,LD - South Cambs - Special Needs,Residential Care
Cambridgeshire County Council,01-Sep-23,51302055332,"-1,808.51",CARETECH COMMUNITY SERVICES,CARE ESTABLISHMENT,LD - South Locality - Cost of Care,LD - South Cambs - Special Needs,Residential Care
Cambridgeshire County Council,01-Sep-23,51302055332,"-1,808.51",CARETECH COMMUNITY SERVICES,CARE ESTABLISHMENT,LD - South Locality - Cost of Care,LD - South Cambs - Special Needs,Residential Care
Cambridgeshire County Council,01-Sep-23,51302055332,"-1,808.51",CARETECH COMMUNITY SERVICES,CARE ESTABLISHMENT,LD - South Locality - Cost of Care,LD - South Cambs - Special Needs,Residential Care
Cambridgeshire County Council,01-Sep-23,51302055332,"-1,808.51",CARETECH COMMUNITY SERVICES,CARE ESTABLISHMENT,LD - South Locality - Cost of Care,LD - South Cambs - Special Needs,Residential Care
Cambridgeshire County Council,01-Sep-23,51302055332,"-1,808.51",CARETECH COMMUNITY SERVICES,CARE ESTABLISHMENT,LD - South Locality - Cost of Care,LD - South Cambs - Special Needs,Residential Care
Cambridgeshire County Council,01-Sep-23,51302055332,"-1,808.51",CARETECH COMMUNITY SERVICES,CARE ESTABLISHMENT,LD - South Locality - Cost of Care,LD - South Cambs - Special Needs,Residential Care
Cambridgeshire County Council,01-Sep-23,51302055332,"-1,808.51",CARETECH COMMUNITY SERVICES,CARE ESTABLISHMENT,LD - South Locality - Cost of Care,LD - South Cambs - Special Needs,Residential Care
Cambridgeshire County Council,01-Sep-23,51302055332,"-1,808.51",CARETECH COMMUNITY SERVICES,CARE ESTABLISHMENT,LD - South Locality - Cost of Care,LD - South Cambs - Special Needs,Residential Care
Cambridgeshire County Council,01-Sep-23,51302055332,"-1,808.51",CARETECH COMMUNITY SERVICES,CARE ESTABLISHMENT,LD - South Locality - Cost of Care,LD - South Cambs - Special Needs,Residential Care
Cambridgeshire County Council,01-Sep-23,51302055332,"-1,808.51",CARETECH COMMUNITY SERVICES,CARE ESTABLISHMENT,LD - South Locality - Cost of Care,LD - South Cambs - Special Needs,Residential Care
Cambridgeshire County Council,01-Sep-23,51302055332,"-1,808.51",CARETECH COMMUNITY SERVICES,CARE ESTABLISHMENT,LD - South Locality - Cost of Care,LD - South Cambs - Special Needs,Residential Care
Cambridgeshire County Council,01-Sep-23,51302055332,"-1,808.51",CARETECH COMMUNITY SERVICES,CARE ESTABLISHMENT,LD - South Locality - Cost of Care,LD - South Cambs - Special Needs,Residential Care
Cambridgeshire County Council,01-Sep-23,51302055332,"-1,808.51",CARETECH COMMUNITY SERVICES,CARE ESTABLISHMENT,LD - South Locality - Cost of Care,LD - South Cambs - Special Needs,Residential Care
Cambridgeshire County Council,01-Sep-23,51302055332,"-1,808.51",CARETECH COMMUNITY SERVICES,CARE ESTABLISHMENT,LD - South Locality - Cost of Care,LD - South Cambs - Special Needs,Residential Care
Cambridgeshire County Council,01-Sep-23,51302055332,"-1,808.51",CARETECH COMMUNITY SERVICES,CARE ESTABLISHMENT,LD - South Locality - Cost of Care,LD - South Cambs - Special Needs,Residential Care
Cambridgeshire County Council,01-Sep-23,51302055332,"-1,808.51",CARETECH COMMUNITY SERVICES,CARE ESTABLISHMENT,LD - South Locality - Cost of Care,LD - South Cambs - Special Needs,Residential Care
Cambridgeshire County Council,01-Sep-23,51302055332,"-1,773.74",CARETECH COMMUNITY SERVICES,CARE ESTABLISHMENT,LD - South Locality - Cost of Care,LD - South Cambs - Special Needs,Residential Care
Cambridgeshire County Council,01-Sep-23,51302055332,"-1,773.74",CARETECH COMMUNITY SERVICES,CARE ESTABLISHMENT,LD - South Locality - Cost of Care,LD - South Cambs - Special Needs,Residential Care
Cambridgeshire County Council,01-Sep-23,51302055332,"-1,773.74",CARETECH COMMUNITY SERVICES,CARE ESTABLISHMENT,LD - South Locality - Cost of Care,LD - South Cambs - Special Needs,Residential Care
Cambridgeshire County Council,01-Sep-23,51302055332,"-1,773.74",CARETECH COMMUNITY SERVICES,CARE ESTABLISHMENT,LD - South Locality - Cost of Care,LD - South Cambs - Special Needs,Residential Care
Cambridgeshire County Council,01-Sep-23,51302055332,"-1,773.74",CARETECH COMMUNITY SERVICES,CARE ESTABLISHMENT,LD - South Locality - Cost of Care,LD - South Cambs - Special Needs,Residential Care
Cambridgeshire County Council,01-Sep-23,51302055332,"-1,773.74",CARETECH COMMUNITY SERVICES,CARE ESTABLISHMENT,LD - South Locality - Cost of Care,LD - South Cambs - Special Needs,Residential Care
Cambridgeshire County Council,01-Sep-23,51302055332,"-1,773.74",CARETECH COMMUNITY SERVICES,CARE ESTABLISHMENT,LD - South Locality - Cost of Care,LD - South Cambs - Special Needs,Residential Care
Cambridgeshire County Council,01-Sep-23,51302055332,"-1,773.74",CARETECH COMMUNITY SERVICES,CARE ESTABLISHMENT,LD - South Locality - Cost of Care,LD - South Cambs - Special Needs,Residential Care
Cambridgeshire County Council,01-Sep-23,51302055332,"-1,773.74",CARETECH COMMUNITY SERVICES,CARE ESTABLISHMENT,LD - South Locality - Cost of Care,LD - South Cambs - Special Needs,Residential Care
Cambridgeshire County Council,01-Sep-23,51302055332,"-1,773.74",CARETECH COMMUNITY SERVICES,CARE ESTABLISHMENT,LD - South Locality - Cost of Care,LD - South Cambs - Special Needs,Residential Care
Cambridgeshire County Council,01-Sep-23,51302055332,"-1,773.74",CARETECH COMMUNITY SERVICES,CARE ESTABLISHMENT,LD - South Locality - Cost of Care,LD - South Cambs - Special Needs,Residential Care
Cambridgeshire County Council,01-Sep-23,51302055332,"-1,773.74",CARETECH COMMUNITY SERVICES,CARE ESTABLISHMENT,LD - South Locality - Cost of Care,LD - South Cambs - Special Needs,Residential Care
Cambridgeshire County Council,01-Sep-23,51302055332,"-1,773.74",CARETECH COMMUNITY SERVICES,CARE ESTABLISHMENT,LD - South Locality - Cost of Care,LD - South Cambs - Special Needs,Residential Care
Cambridgeshire County Council,01-Sep-23,51302055332,"-1,773.74",CARETECH COMMUNITY SERVICES,CARE ESTABLISHMENT,LD - South Locality - Cost of Care,LD - South Cambs - Special Needs,Residential Care
Cambridgeshire County Council,01-Sep-23,51302055332,"-1,773.74",CARETECH COMMUNITY SERVICES,CARE ESTABLISHMENT,LD - South Locality - Cost of Care,LD - South Cambs - Special Needs,Residential Care
Cambridgeshire County Council,01-Sep-23,51302055332,"-1,773.74",CARETECH COMMUNITY SERVICES,CARE ESTABLISHMENT,LD - South Locality - Cost of Care,LD - South Cambs - Special Needs,Residential Care
Cambridgeshire County Council,01-Sep-23,51302055332,"-1,773.74",CARETECH COMMUNITY SERVICES,CARE ESTABLISHMENT,LD - South Locality - Cost of Care,LD - South Cambs - Special Needs,Residential Care
Cambridgeshire County Council,01-Sep-23,51302055332,"-1,773.74",CARETECH COMMUNITY SERVICES,CARE ESTABLISHMENT,LD - South Locality - Cost of Care,LD - South Cambs - Special Needs,Residential Care
Cambridgeshire County Council,01-Sep-23,51302055332,"-1,773.74",CARETECH COMMUNITY SERVICES,CARE ESTABLISHMENT,LD - South Locality - Cost of Care,LD - South Cambs - Special Needs,Residential Care
Cambridgeshire County Council,01-Sep-23,51302055332,"-1,773.74",CARETECH COMMUNITY SERVICES,CARE ESTABLISHMENT,LD - South Locality - Cost of Care,LD - South Cambs - Special Needs,Residential Care
Cambridgeshire County Council,01-Sep-23,51302055332,"-1,773.74",CARETECH COMMUNITY SERVICES,CARE ESTABLISHMENT,LD - South Locality - Cost of Care,LD - South Cambs - Special Needs,Residential Care
Cambridgeshire County Council,01-Sep-23,51302055332,"-1,773.74",CARETECH COMMUNITY SERVICES,CARE ESTABLISHMENT,LD - South Locality - Cost of Care,LD - South Cambs - Special Needs,Residential Care
Cambridgeshire County Council,01-Sep-23,51302055332,"-1,773.74",CARETECH COMMUNITY SERVICES,CARE ESTABLISHMENT,LD - South Locality - Cost of Care,LD - South Cambs - Special Needs,Residential Care
Cambridgeshire County Council,01-Sep-23,51302055332,"-1,773.74",CARETECH COMMUNITY SERVICES,CARE ESTABLISHMENT,LD - South Locality - Cost of Care,LD - South Cambs - Special Needs,Residential Care
Cambridgeshire County Council,01-Sep-23,51302055332,"-1,773.74",CARETECH COMMUNITY SERVICES,CARE ESTABLISHMENT,LD - South Locality - Cost of Care,LD - South Cambs - Special Needs,Residential Care
Cambridgeshire County Council,01-Sep-23,51302055332,"-1,773.74",CARETECH COMMUNITY SERVICES,CARE ESTABLISHMENT,LD - South Locality - Cost of Care,LD - South Cambs - Special Needs,Residential Care
Cambridgeshire County Council,01-Sep-23,51302055332,"-1,773.74",CARETECH COMMUNITY SERVICES,CARE ESTABLISHMENT,LD - South Locality - Cost of Care,LD - South Cambs - Special Needs,Residential Care
Cambridgeshire County Council,01-Sep-23,51302055332,"-1,773.74",CARETECH COMMUNITY SERVICES,CARE ESTABLISHMENT,LD - South Locality - Cost of Care,LD - South Cambs - Special Needs,Residential Care
Cambridgeshire County Council,01-Sep-23,51302055332,"-1,773.74",CARETECH COMMUNITY SERVICES,CARE ESTABLISHMENT,LD - South Locality - Cost of Care,LD - South Cambs - Special Needs,Residential Care
Cambridgeshire County Council,01-Sep-23,51302055332,"-1,773.74",CARETECH COMMUNITY SERVICES,CARE ESTABLISHMENT,LD - South Locality - Cost of Care,LD - South Cambs - Special Needs,Residential Care
Cambridgeshire County Council,01-Sep-23,51302055332,"-1,773.74",CARETECH COMMUNITY SERVICES,CARE ESTABLISHMENT,LD - South Locality - Cost of Care,LD - South Cambs - Special Needs,Residential Care
Cambridgeshire County Council,01-Sep-23,51302055332,"-1,773.74",CARETECH COMMUNITY SERVICES,CARE ESTABLISHMENT,LD - South Locality - Cost of Care,LD - South Cambs - Special Needs,Residential Care
Cambridgeshire County Council,01-Sep-23,51302055332,"-1,773.74",CARETECH COMMUNITY SERVICES,CARE ESTABLISHMENT,LD - South Locality - Cost of Care,LD - South Cambs - Special Needs,Residential Care
Cambridgeshire County Council,01-Sep-23,51302055332,"-1,773.74",CARETECH COMMUNITY SERVICES,CARE ESTABLISHMENT,LD - South Locality - Cost of Care,LD - South Cambs - Special Needs,Residential Care
Cambridgeshire County Council,01-Sep-23,51302055332,"-1,773.74",CARETECH COMMUNITY SERVICES,CARE ESTABLISHMENT,LD - South Locality - Cost of Care,LD - South Cambs - Special Needs,Residential Care
Cambridgeshire County Council,01-Sep-23,51302055332,"-1,773.74",CARETECH COMMUNITY SERVICES,CARE ESTABLISHMENT,LD - South Locality - Cost of Care,LD - South Cambs - Special Needs,Residential Care
Cambridgeshire County Council,01-Sep-23,51302055332,"-1,773.74",CARETECH COMMUNITY SERVICES,CARE ESTABLISHMENT,LD - South Locality - Cost of Care,LD - South Cambs - Special Needs,Residential Care
Cambridgeshire County Council,01-Sep-23,51302055332,"-1,773.74",CARETECH COMMUNITY SERVICES,CARE ESTABLISHMENT,LD - South Locality - Cost of Care,LD - South Cambs - Special Needs,Residential Care
Cambridgeshire County Council,01-Sep-23,51302055332,"-1,773.74",CARETECH COMMUNITY SERVICES,CARE ESTABLISHMENT,LD - South Locality - Cost of Care,LD - South Cambs - Special Needs,Residential Care
Cambridgeshire County Council,01-Sep-23,51302055332,"-1,773.74",CARETECH COMMUNITY SERVICES,CARE ESTABLISHMENT,LD - South Locality - Cost of Care,LD - South Cambs - Special Needs,Residential Care
Cambridgeshire County Council,01-Sep-23,51302055332,"-1,773.74",CARETECH COMMUNITY SERVICES,CARE ESTABLISHMENT,LD - South Locality - Cost of Care,LD - South Cambs - Special Needs,Residential Care
Cambridgeshire County Council,01-Sep-23,51302055332,"-1,773.74",CARETECH COMMUNITY SERVICES,CARE ESTABLISHMENT,LD - South Locality - Cost of Care,LD - South Cambs - Special Needs,Residential Care
Cambridgeshire County Council,01-Sep-23,51302055332,"-1,773.74",CARETECH COMMUNITY SERVICES,CARE ESTABLISHMENT,LD - South Locality - Cost of Care,LD - South Cambs - Special Needs,Residential Care
Cambridgeshire County Council,01-Sep-23,51302055332,"-1,773.74",CARETECH COMMUNITY SERVICES,CARE ESTABLISHMENT,LD - South Locality - Cost of Care,LD - South Cambs - Special Needs,Residential Care
Cambridgeshire County Council,01-Sep-23,51302055332,"-1,773.74",CARETECH COMMUNITY SERVICES,CARE ESTABLISHMENT,LD - South Locality - Cost of Care,LD - South Cambs - Special Needs,Residential Care
Cambridgeshire County Council,01-Sep-23,51302055332,"-1,773.74",CARETECH COMMUNITY SERVICES,CARE ESTABLISHMENT,LD - South Locality - Cost of Care,LD - South Cambs - Special Needs,Residential Care
Cambridgeshire County Council,01-Sep-23,51302055332,"-1,773.74",CARETECH COMMUNITY SERVICES,CARE ESTABLISHMENT,LD - South Locality - Cost of Care,LD - South Cambs - Special Needs,Residential Care
Cambridgeshire County Council,01-Sep-23,51302055332,"-1,773.74",CARETECH COMMUNITY SERVICES,CARE ESTABLISHMENT,LD - South Locality - Cost of Care,LD - South Cambs - Special Needs,Residential Care
Cambridgeshire County Council,01-Sep-23,51302055332,"-1,773.74",CARETECH COMMUNITY SERVICES,CARE ESTABLISHMENT,LD - South Locality - Cost of Care,LD - South Cambs - Special Needs,Residential Care
Cambridgeshire County Council,01-Sep-23,51302055332,"-1,773.74",CARETECH COMMUNITY SERVICES,CARE ESTABLISHMENT,LD - South Locality - Cost of Care,LD - South Cambs - Special Needs,Residential Care
Cambridgeshire County Council,01-Sep-23,51302055332,"-1,773.74",CARETECH COMMUNITY SERVICES,CARE ESTABLISHMENT,LD - South Locality - Cost of Care,LD - South Cambs - Special Needs,Residential Care
Cambridgeshire County Council,01-Sep-23,51302055332,"-1,773.74",CARETECH COMMUNITY SERVICES,CARE ESTABLISHMENT,LD - South Locality - Cost of Care,LD - South Cambs - Special Needs,Residential Care
Cambridgeshire County Council,01-Sep-23,51302056342,"-1,717.82",Redacted Personal Data,SERVICE USER,LD - South Locality - Cost of Care,LD - South Cambs - Care,Direct Payments
Cambridgeshire County Council,01-Sep-23,51302056342,"-1,717.82",Redacted Personal Data,SERVICE USER,LD - South Locality - Cost of Care,LD - South Cambs - Care,Direct Payments
Cambridgeshire County Council,01-Sep-23,51302056342,"-1,717.82",Redacted Personal Data,SERVICE USER,LD - South Locality - Cost of Care,LD - South Cambs - Care,Direct Payments
Cambridgeshire County Council,01-Sep-23,51302056342,"-1,717.82",Redacted Personal Data,SERVICE USER,LD - South Locality - Cost of Care,LD - South Cambs - Care,Direct Payments
Cambridgeshire County Council,01-Sep-23,51302055332,"-1,699.19",CARETECH COMMUNITY SERVICES,CARE ESTABLISHMENT,LD - South Locality - Cost of Care,LD - South Cambs - Special Needs,Residential Care
Cambridgeshire County Council,01-Sep-23,51302055034,"-1,669.87",PORLOCK HOUSE,CARE ESTABLISHMENT,LD - South Locality - Cost of Care,LD - South Cambs - Care,Residential Care
Cambridgeshire County Council,01-Sep-23,51302055034,"-1,669.87",PORLOCK HOUSE,CARE ESTABLISHMENT,LD - South Locality - Cost of Care,LD - South Cambs - Care,Residential Care
Cambridgeshire County Council,01-Sep-23,51302055034,"-1,669.87",PORLOCK HOUSE,CARE ESTABLISHMENT,LD - South Locality - Cost of Care,LD - South Cambs - Care,Residential Care
Cambridgeshire County Council,01-Sep-23,51302055034,"-1,669.87",PORLOCK HOUSE,CARE ESTABLISHMENT,LD - South Locality - Cost of Care,LD - South Cambs - Care,Residential Care
Cambridgeshire County Council,01-Sep-23,51302055034,"-1,669.87",PORLOCK HOUSE,CARE ESTABLISHMENT,LD - South Locality - Cost of Care,LD - South Cambs - Care,Residential Care
Cambridgeshire County Council,01-Sep-23,51302055034,"-1,669.87",PORLOCK HOUSE,CARE ESTABLISHMENT,LD - South Locality - Cost of Care,LD - South Cambs - Care,Residential Care
Cambridgeshire County Council,01-Sep-23,51302055034,"-1,669.87",PORLOCK HOUSE,CARE ESTABLISHMENT,LD - South Locality - Cost of Care,LD - South Cambs - Care,Residential Care
Cambridgeshire County Council,01-Sep-23,51302055034,"-1,669.87",PORLOCK HOUSE,CARE ESTABLISHMENT,LD - South Locality - Cost of Care,LD - South Cambs - Care,Residential Care
Cambridgeshire County Council,01-Sep-23,51302055034,"-1,669.87",PORLOCK HOUSE,CARE ESTABLISHMENT,LD - South Locality - Cost of Care,LD - South Cambs - Care,Residential Care
Cambridgeshire County Council,01-Sep-23,51302055034,"-1,669.87",PORLOCK HOUSE,CARE ESTABLISHMENT,LD - South Locality - Cost of Care,LD - South Cambs - Care,Residential Care
Cambridgeshire County Council,01-Sep-23,51302055034,"-1,669.87",PORLOCK HOUSE,CARE ESTABLISHMENT,LD - South Locality - Cost of Care,LD - South Cambs - Care,Residential Care
Cambridgeshire County Council,01-Sep-23,51302055034,"-1,669.87",PORLOCK HOUSE,CARE ESTABLISHMENT,LD - South Locality - Cost of Care,LD - South Cambs - Care,Residential Care
Cambridgeshire County Council,01-Sep-23,51302055034,"-1,669.87",PORLOCK HOUSE,CARE ESTABLISHMENT,LD - South Locality - Cost of Care,LD - South Cambs - Care,Residential Care
Cambridgeshire County Council,01-Sep-23,51302055034,"-1,669.87",PORLOCK HOUSE,CARE ESTABLISHMENT,LD - South Locality - Cost of Care,LD - South Cambs - Care,Residential Care
Cambridgeshire County Council,01-Sep-23,51302055034,"-1,669.87",PORLOCK HOUSE,CARE ESTABLISHMENT,LD - South Locality - Cost of Care,LD - South Cambs - Care,Residential Care
Cambridgeshire County Council,01-Sep-23,51302055034,"-1,669.87",PORLOCK HOUSE,CARE ESTABLISHMENT,LD - South Locality - Cost of Care,LD - South Cambs - Care,Residential Care
Cambridgeshire County Council,01-Sep-23,51302055034,"-1,669.87",PORLOCK HOUSE,CARE ESTABLISHMENT,LD - South Locality - Cost of Care,LD - South Cambs - Care,Residential Care
Cambridgeshire County Council,01-Sep-23,51302055034,"-1,669.87",PORLOCK HOUSE,CARE ESTABLISHMENT,LD - South Locality - Cost of Care,LD - South Cambs - Care,Residential Care
Cambridgeshire County Council,01-Sep-23,51302055034,"-1,669.87",PORLOCK HOUSE,CARE ESTABLISHMENT,LD - South Locality - Cost of Care,LD - South Cambs - Care,Residential Care
Cambridgeshire County Council,01-Sep-23,51302055332,"-1,550.15",CARETECH COMMUNITY SERVICES,CARE ESTABLISHMENT,LD - South Locality - Cost of Care,LD - South Cambs - Special Needs,Residential Care
Cambridgeshire County Council,01-Sep-23,51302054967,"-1,500.10",CHERRY HINTON NURSING HOME,CARE ESTABLISHMENT,AMH Hunts and Fens - care,Hunts and Fens Adult Mental Health Team,Nursing Care
Cambridgeshire County Council,01-Sep-23,51302054967,"-1,500.10",CHERRY HINTON NURSING HOME,CARE ESTABLISHMENT,AMH Hunts and Fens - care,Hunts and Fens Adult Mental Health Team,Nursing Care
Cambridgeshire County Council,01-Sep-23,51302054967,"-1,500.10",CHERRY HINTON NURSING HOME,CARE ESTABLISHMENT,AMH Hunts and Fens - care,Hunts and Fens Adult Mental Health Team,Nursing Care
Cambridgeshire County Council,01-Sep-23,51302054967,"-1,500.10",CHERRY HINTON NURSING HOME,CARE ESTABLISHMENT,AMH Hunts and Fens - care,Hunts and Fens Adult Mental Health Team,Nursing Care
Cambridgeshire County Council,01-Sep-23,51302054967,"-1,500.10",CHERRY HINTON NURSING HOME,CARE ESTABLISHMENT,AMH Hunts and Fens - care,Hunts and Fens Adult Mental Health Team,Nursing Care
Cambridgeshire County Council,01-Sep-23,51302054967,"-1,500.10",CHERRY HINTON NURSING HOME,CARE ESTABLISHMENT,AMH Hunts and Fens - care,Hunts and Fens Adult Mental Health Team,Nursing Care
Cambridgeshire County Council,01-Sep-23,51302045663,"-1,478.57",Glebe Farm,COMPANY,LD - Young Adults Team,LD - Young Adults - Special Needs,Residential Care
Cambridgeshire County Council,01-Sep-23,51302055331,"-1,401.83",CONQUEST CARE HOMES PETERBOROUGH,CARE ESTABLISHMENT,LD - Fenland Locality - Cost of Care,LD - Fenland  - Care,Residential Care
Cambridgeshire County Council,01-Sep-23,51302055331,"-1,401.83",CONQUEST CARE HOMES PETERBOROUGH,CARE ESTABLISHMENT,LD - Fenland Locality - Cost of Care,LD - Fenland  - Care,Residential Care
Cambridgeshire County Council,01-Sep-23,51302055331,"-1,401.83",CONQUEST CARE HOMES PETERBOROUGH,CARE ESTABLISHMENT,LD - Fenland Locality - Cost of Care,LD - Fenland  - Care,Residential Care
Cambridgeshire County Council,01-Sep-23,51302055331,"-1,401.83",CONQUEST CARE HOMES PETERBOROUGH,CARE ESTABLISHMENT,LD - Fenland Locality - Cost of Care,LD - Fenland  - Care,Residential Care
Cambridgeshire County Council,01-Sep-23,51302055331,"-1,401.83",CONQUEST CARE HOMES PETERBOROUGH,CARE ESTABLISHMENT,LD - Fenland Locality - Cost of Care,LD - Fenland  - Care,Residential Care
Cambridgeshire County Council,01-Sep-23,51302055331,"-1,401.83",CONQUEST CARE HOMES PETERBOROUGH,CARE ESTABLISHMENT,LD - Fenland Locality - Cost of Care,LD - Fenland  - Care,Residential Care
Cambridgeshire County Council,01-Sep-23,51302055331,"-1,401.83",CONQUEST CARE HOMES PETERBOROUGH,CARE ESTABLISHMENT,LD - Fenland Locality - Cost of Care,LD - Fenland  - Care,Residential Care
Cambridgeshire County Council,01-Sep-23,51302055331,"-1,401.83",CONQUEST CARE HOMES PETERBOROUGH,CARE ESTABLISHMENT,LD - Fenland Locality - Cost of Care,LD - Fenland  - Care,Residential Care
Cambridgeshire County Council,01-Sep-23,51302055331,"-1,401.83",CONQUEST CARE HOMES PETERBOROUGH,CARE ESTABLISHMENT,LD - Fenland Locality - Cost of Care,LD - Fenland  - Care,Residential Care
Cambridgeshire County Council,01-Sep-23,51302055331,"-1,401.83",CONQUEST CARE HOMES PETERBOROUGH,CARE ESTABLISHMENT,LD - Fenland Locality - Cost of Care,LD - Fenland  - Care,Residential Care
Cambridgeshire County Council,01-Sep-23,51302055331,"-1,401.83",CONQUEST CARE HOMES PETERBOROUGH,CARE ESTABLISHMENT,LD - Fenland Locality - Cost of Care,LD - Fenland  - Care,Residential Care
Cambridgeshire County Council,01-Sep-23,51302055331,"-1,401.83",CONQUEST CARE HOMES PETERBOROUGH,CARE ESTABLISHMENT,LD - Fenland Locality - Cost of Care,LD - Fenland  - Care,Residential Care
Cambridgeshire County Council,01-Sep-23,51302055331,"-1,401.83",CONQUEST CARE HOMES PETERBOROUGH,CARE ESTABLISHMENT,LD - Fenland Locality - Cost of Care,LD - Fenland  - Care,Residential Care
Cambridgeshire County Council,01-Sep-23,51302055331,"-1,401.83",CONQUEST CARE HOMES PETERBOROUGH,CARE ESTABLISHMENT,LD - Fenland Locality - Cost of Care,LD - Fenland  - Care,Residential Care
Cambridgeshire County Council,01-Sep-23,51302055331,"-1,401.83",CONQUEST CARE HOMES PETERBOROUGH,CARE ESTABLISHMENT,LD - Fenland Locality - Cost of Care,LD - Fenland  - Care,Residential Care
Cambridgeshire County Council,01-Sep-23,51302055331,"-1,401.83",CONQUEST CARE HOMES PETERBOROUGH,CARE ESTABLISHMENT,LD - Fenland Locality - Cost of Care,LD - Fenland  - Care,Residential Care
Cambridgeshire County Council,01-Sep-23,51302055331,"-1,401.83",CONQUEST CARE HOMES PETERBOROUGH,CARE ESTABLISHMENT,LD - Fenland Locality - Cost of Care,LD - Fenland  - Care,Residential Care
Cambridgeshire County Council,01-Sep-23,51302055331,"-1,401.83",CONQUEST CARE HOMES PETERBOROUGH,CARE ESTABLISHMENT,LD - Fenland Locality - Cost of Care,LD - Fenland  - Care,Residential Care
Cambridgeshire County Council,01-Sep-23,51302055331,"-1,401.83",CONQUEST CARE HOMES PETERBOROUGH,CARE ESTABLISHMENT,LD - Fenland Locality - Cost of Care,LD - Fenland  - Care,Residential Care
Cambridgeshire County Council,01-Sep-23,51302055331,"-1,401.83",CONQUEST CARE HOMES PETERBOROUGH,CARE ESTABLISHMENT,LD - Fenland Locality - Cost of Care,LD - Fenland  - Care,Residential Care
Cambridgeshire County Council,01-Sep-23,51302055331,"-1,401.83",CONQUEST CARE HOMES PETERBOROUGH,CARE ESTABLISHMENT,LD - Fenland Locality - Cost of Care,LD - Fenland  - Care,Residential Care
Cambridgeshire County Council,01-Sep-23,51302055331,"-1,401.83",CONQUEST CARE HOMES PETERBOROUGH,CARE ESTABLISHMENT,LD - Fenland Locality - Cost of Care,LD - Fenland  - Care,Residential Care
Cambridgeshire County Council,01-Sep-23,51302055331,"-1,401.83",CONQUEST CARE HOMES PETERBOROUGH,CARE ESTABLISHMENT,LD - Fenland Locality - Cost of Care,LD - Fenland  - Care,Residential Care
Cambridgeshire County Council,01-Sep-23,51302054937,"-1,372.84",WOODLANDS CARE CENTRE,CARE ESTABLISHMENT,OPPD - Cost of Care - City South - Over 65,Older People - City & South - Care,Nursing Care
Cambridgeshire County Council,01-Sep-23,51302054937,"-1,372.84",WOODLANDS CARE CENTRE,CARE ESTABLISHMENT,OPPD - Cost of Care - City South - Over 65,Older People - City & South - Care,Nursing Care
Cambridgeshire County Council,01-Sep-23,51302054937,"-1,372.84",WOODLANDS CARE CENTRE,CARE ESTABLISHMENT,OPPD - Cost of Care - City South - Over 65,Older People - City & South - Care,Nursing Care
Cambridgeshire County Council,01-Sep-23,51302054937,"-1,372.84",WOODLANDS CARE CENTRE,CARE ESTABLISHMENT,OPPD - Cost of Care - City South - Over 65,Older People - City & South - Care,Nursing Care
Cambridgeshire County Council,01-Sep-23,51302054937,"-1,372.84",WOODLANDS CARE CENTRE,CARE ESTABLISHMENT,OPPD - Cost of Care - City South - Over 65,Older People - City & South - Care,Nursing Care
Cambridgeshire County Council,01-Sep-23,51302054937,"-1,372.84",WOODLANDS CARE CENTRE,CARE ESTABLISHMENT,OPPD - Cost of Care - City South - Over 65,Older People - City & South - Care,Nursing Care
Cambridgeshire County Council,01-Sep-23,51302054937,"-1,372.84",WOODLANDS CARE CENTRE,CARE ESTABLISHMENT,OPPD - Cost of Care - City South - Over 65,Older People - City & South - Care,Nursing Care
Cambridgeshire County Council,01-Sep-23,51302054937,"-1,372.84",WOODLANDS CARE CENTRE,CARE ESTABLISHMENT,OPPD - Cost of Care - City South - Over 65,Older People - City & South - Care,Nursing Care
Cambridgeshire County Council,01-Sep-23,51302054937,"-1,372.84",WOODLANDS CARE CENTRE,CARE ESTABLISHMENT,OPPD - Cost of Care - City South - Over 65,Older People - City & South - Care,Nursing Care
Cambridgeshire County Council,01-Sep-23,51302054937,"-1,372.84",WOODLANDS CARE CENTRE,CARE ESTABLISHMENT,OPPD - Cost of Care - City South - Over 65,Older People - City & South - Care,Nursing Care
Cambridgeshire County Council,01-Sep-23,51302054937,"-1,372.84",WOODLANDS CARE CENTRE,CARE ESTABLISHMENT,OPPD - Cost of Care - City South - Over 65,Older People - City & South - Care,Nursing Care
Cambridgeshire County Council,01-Sep-23,51302054937,"-1,372.84",WOODLANDS CARE CENTRE,CARE ESTABLISHMENT,OPPD - Cost of Care - City South - Over 65,Older People - City & South - Care,Nursing Care
Cambridgeshire County Council,01-Sep-23,51302054937,"-1,372.84",WOODLANDS CARE CENTRE,CARE ESTABLISHMENT,OPPD - Cost of Care - City South - Over 65,Older People - City & South - Care,Nursing Care
Cambridgeshire County Council,01-Sep-23,51302054937,"-1,372.84",WOODLANDS CARE CENTRE,CARE ESTABLISHMENT,OPPD - Cost of Care - City South - Over 65,Older People - City & South - Care,Nursing Care
Cambridgeshire County Council,01-Sep-23,51302054937,"-1,372.84",WOODLANDS CARE CENTRE,CARE ESTABLISHMENT,OPPD - Cost of Care - City South - Over 65,Older People - City & South - Care,Nursing Care
Cambridgeshire County Council,01-Sep-23,51302054937,"-1,372.84",WOODLANDS CARE CENTRE,CARE ESTABLISHMENT,OPPD - Cost of Care - City South - Over 65,Older People - City & South - Care,Nursing Care
Cambridgeshire County Council,01-Sep-23,51302054937,"-1,372.84",WOODLANDS CARE CENTRE,CARE ESTABLISHMENT,OPPD - Cost of Care - City South - Over 65,Older People - City & South - Care,Nursing Care
Cambridgeshire County Council,01-Sep-23,51302054937,"-1,372.84",WOODLANDS CARE CENTRE,CARE ESTABLISHMENT,OPPD - Cost of Care - City South - Over 65,Older People - City & South - Care,Nursing Care
Cambridgeshire County Council,01-Sep-23,51302054937,"-1,372.84",WOODLANDS CARE CENTRE,CARE ESTABLISHMENT,OPPD - Cost of Care - City South - Over 65,Older People - City & South - Care,Nursing Care
Cambridgeshire County Council,01-Sep-23,51302054937,"-1,372.84",WOODLANDS CARE CENTRE,CARE ESTABLISHMENT,OPPD - Cost of Care - City South - Over 65,Older People - City & South - Care,Nursing Care
Cambridgeshire County Council,01-Sep-23,51302054937,"-1,372.84",WOODLANDS CARE CENTRE,CARE ESTABLISHMENT,OPPD - Cost of Care - City South - Over 65,Older People - City & South - Care,Nursing Care
Cambridgeshire County Council,01-Sep-23,51302054937,"-1,372.84",WOODLANDS CARE CENTRE,CARE ESTABLISHMENT,OPPD - Cost of Care - City South - Over 65,Older People - City & South - Care,Nursing Care
Cambridgeshire County Council,01-Sep-23,51302054937,"-1,372.84",WOODLANDS CARE CENTRE,CARE ESTABLISHMENT,OPPD - Cost of Care - City South - Over 65,Older People - City & South - Care,Nursing Care
Cambridgeshire County Council,01-Sep-23,51302054830,"-1,370.13",WOODLANDS CARE CENTRE,CARE ESTABLISHMENT,OPPD - Cost of Care - City South - Over 65,Older People - City & South - Care,Nursing Care
Cambridgeshire County Council,01-Sep-23,51302054830,"-1,370.13",WOODLANDS CARE CENTRE,CARE ESTABLISHMENT,OPPD - Cost of Care - City South - Over 65,Older People - City & South - Care,Nursing Care
Cambridgeshire County Council,01-Sep-23,51302054830,"-1,370.13",WOODLANDS CARE CENTRE,CARE ESTABLISHMENT,OPPD - Cost of Care - City South - Over 65,Older People - City & South - Care,Nursing Care
Cambridgeshire County Council,01-Sep-23,51302054830,"-1,370.13",WOODLANDS CARE CENTRE,CARE ESTABLISHMENT,OPPD - Cost of Care - City South - Over 65,Older People - City & South - Care,Nursing Care
Cambridgeshire County Council,01-Sep-23,51302054830,"-1,370.13",WOODLANDS CARE CENTRE,CARE ESTABLISHMENT,OPPD - Cost of Care - City South - Over 65,Older People - City & South - Care,Nursing Care
Cambridgeshire County Council,01-Sep-23,51302054830,"-1,370.13",WOODLANDS CARE CENTRE,CARE ESTABLISHMENT,OPPD - Cost of Care - City South - Over 65,Older People - City & South - Care,Nursing Care
Cambridgeshire County Council,01-Sep-23,51302054830,"-1,370.13",WOODLANDS CARE CENTRE,CARE ESTABLISHMENT,OPPD - Cost of Care - City South - Over 65,Older People - City & South - Care,Nursing Care
Cambridgeshire County Council,01-Sep-23,51302054830,"-1,370.13",WOODLANDS CARE CENTRE,CARE ESTABLISHMENT,OPPD - Cost of Care - City South - Over 65,Older People - City & South - Care,Nursing Care
Cambridgeshire County Council,01-Sep-23,51302055332,"-1,364.16",CARETECH COMMUNITY SERVICES,CARE ESTABLISHMENT,LD - South Locality - Cost of Care,LD - South Cambs - Special Needs,Residential Care
Cambridgeshire County Council,01-Sep-23,51302054937,"-1,300.00",WOODLANDS CARE CENTRE,CARE ESTABLISHMENT,OPPD - Cost of Care - City South - Over 65,Older People - City & South - Care,Nursing Care
Cambridgeshire County Council,01-Sep-23,51302054937,"-1,300.00",WOODLANDS CARE CENTRE,CARE ESTABLISHMENT,OPPD - Cost of Care - City South - Over 65,Older People - City & South - Care,Nursing Care
Cambridgeshire County Council,01-Sep-23,51302054937,"-1,300.00",WOODLANDS CARE CENTRE,CARE ESTABLISHMENT,OPPD - Cost of Care - City South - Over 65,Older People - City & South - Care,Nursing Care
Cambridgeshire County Council,01-Sep-23,51302054937,"-1,300.00",WOODLANDS CARE CENTRE,CARE ESTABLISHMENT,OPPD - Cost of Care - City South - Over 65,Older People - City & South - Care,Nursing Care
Cambridgeshire County Council,01-Sep-23,51302054937,"-1,300.00",WOODLANDS CARE CENTRE,CARE ESTABLISHMENT,OPPD - Cost of Care - City South - Over 65,Older People - City & South - Care,Nursing Care
Cambridgeshire County Council,01-Sep-23,51302055331,"-1,297.99",CONQUEST CARE HOMES PETERBOROUGH,CARE ESTABLISHMENT,LD - Fenland Locality - Cost of Care,LD - Fenland  - Care,Residential Care
Cambridgeshire County Council,01-Sep-23,51302055331,"-1,297.99",CONQUEST CARE HOMES PETERBOROUGH,CARE ESTABLISHMENT,LD - Fenland Locality - Cost of Care,LD - Fenland  - Care,Residential Care
Cambridgeshire County Council,01-Sep-23,51302055331,"-1,297.99",CONQUEST CARE HOMES PETERBOROUGH,CARE ESTABLISHMENT,LD - Fenland Locality - Cost of Care,LD - Fenland  - Care,Residential Care
Cambridgeshire County Council,01-Sep-23,51302055331,"-1,297.99",CONQUEST CARE HOMES PETERBOROUGH,CARE ESTABLISHMENT,LD - Fenland Locality - Cost of Care,LD - Fenland  - Care,Residential Care
Cambridgeshire County Council,01-Sep-23,51302055331,"-1,297.99",CONQUEST CARE HOMES PETERBOROUGH,CARE ESTABLISHMENT,LD - Fenland Locality - Cost of Care,LD - Fenland  - Care,Residential Care
Cambridgeshire County Council,01-Sep-23,51302055331,"-1,297.99",CONQUEST CARE HOMES PETERBOROUGH,CARE ESTABLISHMENT,LD - Fenland Locality - Cost of Care,LD - Fenland  - Care,Residential Care
Cambridgeshire County Council,01-Sep-23,51302055331,"-1,297.99",CONQUEST CARE HOMES PETERBOROUGH,CARE ESTABLISHMENT,LD - Fenland Locality - Cost of Care,LD - Fenland  - Care,Residential Care
Cambridgeshire County Council,01-Sep-23,51302055331,"-1,297.99",CONQUEST CARE HOMES PETERBOROUGH,CARE ESTABLISHMENT,LD - Fenland Locality - Cost of Care,LD - Fenland  - Care,Residential Care
Cambridgeshire County Council,01-Sep-23,51302055331,"-1,297.99",CONQUEST CARE HOMES PETERBOROUGH,CARE ESTABLISHMENT,LD - Fenland Locality - Cost of Care,LD - Fenland  - Care,Residential Care
Cambridgeshire County Council,01-Sep-23,51302055331,"-1,297.99",CONQUEST CARE HOMES PETERBOROUGH,CARE ESTABLISHMENT,LD - Fenland Locality - Cost of Care,LD - Fenland  - Care,Residential Care
Cambridgeshire County Council,01-Sep-23,51302055331,"-1,297.99",CONQUEST CARE HOMES PETERBOROUGH,CARE ESTABLISHMENT,LD - Fenland Locality - Cost of Care,LD - Fenland  - Care,Residential Care
Cambridgeshire County Council,01-Sep-23,51302055331,"-1,297.99",CONQUEST CARE HOMES PETERBOROUGH,CARE ESTABLISHMENT,LD - Fenland Locality - Cost of Care,LD - Fenland  - Care,Residential Care
Cambridgeshire County Council,01-Sep-23,51302055331,"-1,297.99",CONQUEST CARE HOMES PETERBOROUGH,CARE ESTABLISHMENT,LD - Fenland Locality - Cost of Care,LD - Fenland  - Care,Residential Care
Cambridgeshire County Council,01-Sep-23,51302055331,"-1,297.99",CONQUEST CARE HOMES PETERBOROUGH,CARE ESTABLISHMENT,LD - Fenland Locality - Cost of Care,LD - Fenland  - Care,Residential Care
Cambridgeshire County Council,01-Sep-23,51302055331,"-1,297.99",CONQUEST CARE HOMES PETERBOROUGH,CARE ESTABLISHMENT,LD - Fenland Locality - Cost of Care,LD - Fenland  - Care,Residential Care
Cambridgeshire County Council,01-Sep-23,51302055331,"-1,297.99",CONQUEST CARE HOMES PETERBOROUGH,CARE ESTABLISHMENT,LD - Fenland Locality - Cost of Care,LD - Fenland  - Care,Residential Care
Cambridgeshire County Council,01-Sep-23,51302055331,"-1,297.99",CONQUEST CARE HOMES PETERBOROUGH,CARE ESTABLISHMENT,LD - Fenland Locality - Cost of Care,LD - Fenland  - Care,Residential Care
Cambridgeshire County Council,01-Sep-23,51302055331,"-1,297.99",CONQUEST CARE HOMES PETERBOROUGH,CARE ESTABLISHMENT,LD - Fenland Locality - Cost of Care,LD - Fenland  - Care,Residential Care
Cambridgeshire County Council,01-Sep-23,51302055331,"-1,297.99",CONQUEST CARE HOMES PETERBOROUGH,CARE ESTABLISHMENT,LD - Fenland Locality - Cost of Care,LD - Fenland  - Care,Residential Care
Cambridgeshire County Council,01-Sep-23,51302055331,"-1,297.99",CONQUEST CARE HOMES PETERBOROUGH,CARE ESTABLISHMENT,LD - Fenland Locality - Cost of Care,LD - Fenland  - Care,Residential Care
Cambridgeshire County Council,01-Sep-23,51302055331,"-1,297.99",CONQUEST CARE HOMES PETERBOROUGH,CARE ESTABLISHMENT,LD - Fenland Locality - Cost of Care,LD - Fenland  - Care,Residential Care
Cambridgeshire County Council,01-Sep-23,51302055331,"-1,297.99",CONQUEST CARE HOMES PETERBOROUGH,CARE ESTABLISHMENT,LD - Fenland Locality - Cost of Care,LD - Fenland  - Care,Residential Care
Cambridgeshire County Council,01-Sep-23,51302055331,"-1,297.99",CONQUEST CARE HOMES PETERBOROUGH,CARE ESTABLISHMENT,LD - Fenland Locality - Cost of Care,LD - Fenland  - Care,Residential Care
Cambridgeshire County Council,01-Sep-23,51302055331,"-1,297.99",CONQUEST CARE HOMES PETERBOROUGH,CARE ESTABLISHMENT,LD - Fenland Locality - Cost of Care,LD - Fenland  - Care,Residential Care
Cambridgeshire County Council,01-Sep-23,51302055331,"-1,297.99",CONQUEST CARE HOMES PETERBOROUGH,CARE ESTABLISHMENT,LD - Fenland Locality - Cost of Care,LD - Fenland  - Care,Residential Care
Cambridgeshire County Council,01-Sep-23,51302055331,"-1,297.99",CONQUEST CARE HOMES PETERBOROUGH,CARE ESTABLISHMENT,LD - Fenland Locality - Cost of Care,LD - Fenland  - Care,Residential Care
Cambridgeshire County Council,01-Sep-23,51302055331,"-1,297.99",CONQUEST CARE HOMES PETERBOROUGH,CARE ESTABLISHMENT,LD - Fenland Locality - Cost of Care,LD - Fenland  - Care,Residential Care
Cambridgeshire County Council,01-Sep-23,51302055331,"-1,297.99",CONQUEST CARE HOMES PETERBOROUGH,CARE ESTABLISHMENT,LD - Fenland Locality - Cost of Care,LD - Fenland  - Care,Residential Care
Cambridgeshire County Council,01-Sep-23,51302055331,"-1,297.99",CONQUEST CARE HOMES PETERBOROUGH,CARE ESTABLISHMENT,LD - Fenland Locality - Cost of Care,LD - Fenland  - Care,Residential Care
Cambridgeshire County Council,01-Sep-23,51302055331,"-1,297.99",CONQUEST CARE HOMES PETERBOROUGH,CARE ESTABLISHMENT,LD - Fenland Locality - Cost of Care,LD - Fenland  - Care,Residential Care
Cambridgeshire County Council,01-Sep-23,51302055331,"-1,297.99",CONQUEST CARE HOMES PETERBOROUGH,CARE ESTABLISHMENT,LD - Fenland Locality - Cost of Care,LD - Fenland  - Care,Residential Care
Cambridgeshire County Council,01-Sep-23,51302055331,"-1,297.99",CONQUEST CARE HOMES PETERBOROUGH,CARE ESTABLISHMENT,LD - Fenland Locality - Cost of Care,LD - Fenland  - Care,Residential Care
Cambridgeshire County Council,01-Sep-23,51302055331,"-1,297.99",CONQUEST CARE HOMES PETERBOROUGH,CARE ESTABLISHMENT,LD - Fenland Locality - Cost of Care,LD - Fenland  - Care,Residential Care
Cambridgeshire County Council,01-Sep-23,51302055331,"-1,297.99",CONQUEST CARE HOMES PETERBOROUGH,CARE ESTABLISHMENT,LD - Fenland Locality - Cost of Care,LD - Fenland  - Care,Residential Care
Cambridgeshire County Council,01-Sep-23,51302055331,"-1,297.99",CONQUEST CARE HOMES PETERBOROUGH,CARE ESTABLISHMENT,LD - Fenland Locality - Cost of Care,LD - Fenland  - Care,Residential Care
Cambridgeshire County Council,01-Sep-23,51302055331,"-1,297.99",CONQUEST CARE HOMES PETERBOROUGH,CARE ESTABLISHMENT,LD - Fenland Locality - Cost of Care,LD - Fenland  - Care,Residential Care
Cambridgeshire County Council,01-Sep-23,51302055331,"-1,297.99",CONQUEST CARE HOMES PETERBOROUGH,CARE ESTABLISHMENT,LD - Fenland Locality - Cost of Care,LD - Fenland  - Care,Residential Care
Cambridgeshire County Council,01-Sep-23,51302055331,"-1,297.99",CONQUEST CARE HOMES PETERBOROUGH,CARE ESTABLISHMENT,LD - Fenland Locality - Cost of Care,LD - Fenland  - Care,Residential Care
Cambridgeshire County Council,01-Sep-23,51302055331,"-1,297.99",CONQUEST CARE HOMES PETERBOROUGH,CARE ESTABLISHMENT,LD - Fenland Locality - Cost of Care,LD - Fenland  - Care,Residential Care
Cambridgeshire County Council,01-Sep-23,51302055331,"-1,297.99",CONQUEST CARE HOMES PETERBOROUGH,CARE ESTABLISHMENT,LD - Fenland Locality - Cost of Care,LD - Fenland  - Care,Residential Care
Cambridgeshire County Council,01-Sep-23,51302055331,"-1,297.99",CONQUEST CARE HOMES PETERBOROUGH,CARE ESTABLISHMENT,LD - Fenland Locality - Cost of Care,LD - Fenland  - Care,Residential Care
Cambridgeshire County Council,01-Sep-23,51302055331,"-1,297.99",CONQUEST CARE HOMES PETERBOROUGH,CARE ESTABLISHMENT,LD - Fenland Locality - Cost of Care,LD - Fenland  - Care,Residential Care
Cambridgeshire County Council,01-Sep-23,51302055331,"-1,297.99",CONQUEST CARE HOMES PETERBOROUGH,CARE ESTABLISHMENT,LD - Fenland Locality - Cost of Care,LD - Fenland  - Care,Residential Care
Cambridgeshire County Council,01-Sep-23,51302055331,"-1,297.99",CONQUEST CARE HOMES PETERBOROUGH,CARE ESTABLISHMENT,LD - Fenland Locality - Cost of Care,LD - Fenland  - Care,Residential Care
Cambridgeshire County Council,01-Sep-23,51302055331,"-1,297.99",CONQUEST CARE HOMES PETERBOROUGH,CARE ESTABLISHMENT,LD - Fenland Locality - Cost of Care,LD - Fenland  - Care,Residential Care
Cambridgeshire County Council,01-Sep-23,51302055331,"-1,297.99",CONQUEST CARE HOMES PETERBOROUGH,CARE ESTABLISHMENT,LD - Fenland Locality - Cost of Care,LD - Fenland  - Care,Residential Care
Cambridgeshire County Council,01-Sep-23,51302055331,"-1,297.99",CONQUEST CARE HOMES PETERBOROUGH,CARE ESTABLISHMENT,LD - Fenland Locality - Cost of Care,LD - Fenland  - Care,Residential Care
Cambridgeshire County Council,01-Sep-23,51302055331,"-1,297.99",CONQUEST CARE HOMES PETERBOROUGH,CARE ESTABLISHMENT,LD - Fenland Locality - Cost of Care,LD - Fenland  - Care,Residential Care
Cambridgeshire County Council,01-Sep-23,51302055331,"-1,297.99",CONQUEST CARE HOMES PETERBOROUGH,CARE ESTABLISHMENT,LD - Fenland Locality - Cost of Care,LD - Fenland  - Care,Residential Care
Cambridgeshire County Council,01-Sep-23,51302055331,"-1,297.99",CONQUEST CARE HOMES PETERBOROUGH,CARE ESTABLISHMENT,LD - Fenland Locality - Cost of Care,LD - Fenland  - Care,Residential Care
Cambridgeshire County Council,01-Sep-23,51302055331,"-1,297.99",CONQUEST CARE HOMES PETERBOROUGH,CARE ESTABLISHMENT,LD - Fenland Locality - Cost of Care,LD - Fenland  - Care,Residential Care
Cambridgeshire County Council,01-Sep-23,51302055382,"-1,293.96",VOYAGE,CARE ESTABLISHMENT,LD - South Locality - Cost of Care,LD - South Cambs - Care,Residential Care
Cambridgeshire County Council,01-Sep-23,51302055382,"-1,293.96",VOYAGE,CARE ESTABLISHMENT,LD - South Locality - Cost of Care,LD - South Cambs - Care,Residential Care
Cambridgeshire County Council,01-Sep-23,51302055382,"-1,293.96",VOYAGE,CARE ESTABLISHMENT,LD - South Locality - Cost of Care,LD - South Cambs - Care,Residential Care
Cambridgeshire County Council,01-Sep-23,51302055382,"-1,293.96",VOYAGE,CARE ESTABLISHMENT,LD - South Locality - Cost of Care,LD - South Cambs - Care,Residential Care
Cambridgeshire County Council,01-Sep-23,51302055382,"-1,293.96",VOYAGE,CARE ESTABLISHMENT,LD - South Locality - Cost of Care,LD - South Cambs - Care,Residential Care
Cambridgeshire County Council,01-Sep-23,51302055382,"-1,293.96",VOYAGE,CARE ESTABLISHMENT,LD - South Locality - Cost of Care,LD - South Cambs - Care,Residential Care
Cambridgeshire County Council,01-Sep-23,51302055382,"-1,293.96",VOYAGE,CARE ESTABLISHMENT,LD - South Locality - Cost of Care,LD - South Cambs - Care,Residential Care
Cambridgeshire County Council,01-Sep-23,51302055382,"-1,293.96",VOYAGE,CARE ESTABLISHMENT,LD - South Locality - Cost of Care,LD - South Cambs - Care,Residential Care
Cambridgeshire County Council,01-Sep-23,51302055382,"-1,293.96",VOYAGE,CARE ESTABLISHMENT,LD - South Locality - Cost of Care,LD - South Cambs - Care,Residential Care
Cambridgeshire County Council,01-Sep-23,51302055382,"-1,293.96",VOYAGE,CARE ESTABLISHMENT,LD - South Locality - Cost of Care,LD - South Cambs - Care,Residential Care
Cambridgeshire County Council,01-Sep-23,51302055382,"-1,293.96",VOYAGE,CARE ESTABLISHMENT,LD - South Locality - Cost of Care,LD - South Cambs - Care,Residential Care
Cambridgeshire County Council,01-Sep-23,51302055382,"-1,293.96",VOYAGE,CARE ESTABLISHMENT,LD - South Locality - Cost of Care,LD - South Cambs - Care,Residential Care
Cambridgeshire County Council,01-Sep-23,51302055382,"-1,293.96",VOYAGE,CARE ESTABLISHMENT,LD - South Locality - Cost of Care,LD - South Cambs - Care,Residential Care
Cambridgeshire County Council,01-Sep-23,51302055382,"-1,293.96",VOYAGE,CARE ESTABLISHMENT,LD - South Locality - Cost of Care,LD - South Cambs - Care,Residential Care
Cambridgeshire County Council,01-Sep-23,51302055382,"-1,293.96",VOYAGE,CARE ESTABLISHMENT,LD - South Locality - Cost of Care,LD - South Cambs - Care,Residential Care
Cambridgeshire County Council,01-Sep-23,51302055382,"-1,293.96",VOYAGE,CARE ESTABLISHMENT,LD - South Locality - Cost of Care,LD - South Cambs - Care,Residential Care
Cambridgeshire County Council,01-Sep-23,51302055382,"-1,293.96",VOYAGE,CARE ESTABLISHMENT,LD - South Locality - Cost of Care,LD - South Cambs - Care,Residential Care
Cambridgeshire County Council,01-Sep-23,51302055382,"-1,293.96",VOYAGE,CARE ESTABLISHMENT,LD - South Locality - Cost of Care,LD - South Cambs - Care,Residential Care
Cambridgeshire County Council,01-Sep-23,51302055382,"-1,293.96",VOYAGE,CARE ESTABLISHMENT,LD - South Locality - Cost of Care,LD - South Cambs - Care,Residential Care
Cambridgeshire County Council,01-Sep-23,51302055382,"-1,293.96",VOYAGE,CARE ESTABLISHMENT,LD - South Locality - Cost of Care,LD - South Cambs - Care,Residential Care
Cambridgeshire County Council,01-Sep-23,51302055382,"-1,293.96",VOYAGE,CARE ESTABLISHMENT,LD - South Locality - Cost of Care,LD - South Cambs - Care,Residential Care
Cambridgeshire County Council,01-Sep-23,51302055382,"-1,293.96",VOYAGE,CARE ESTABLISHMENT,LD - South Locality - Cost of Care,LD - South Cambs - Care,Residential Care
Cambridgeshire County Council,01-Sep-23,51302055382,"-1,293.96",VOYAGE,CARE ESTABLISHMENT,LD - South Locality - Cost of Care,LD - South Cambs - Care,Residential Care
Cambridgeshire County Council,01-Sep-23,51302055335,"-1,251.98",CARETECH COMMUNITY SERVICES,CARE ESTABLISHMENT,LD - Hunts Locality - Cost of Care,LD - Huntingdonshire - Care,Residential Care
Cambridgeshire County Council,01-Sep-23,51302055335,"-1,251.98",CARETECH COMMUNITY SERVICES,CARE ESTABLISHMENT,LD - Hunts Locality - Cost of Care,LD - Huntingdonshire - Care,Residential Care
Cambridgeshire County Council,01-Sep-23,51302055335,"-1,251.98",CARETECH COMMUNITY SERVICES,CARE ESTABLISHMENT,LD - Hunts Locality - Cost of Care,LD - Huntingdonshire - Care,Residential Care
Cambridgeshire County Council,01-Sep-23,51302055335,"-1,251.98",CARETECH COMMUNITY SERVICES,CARE ESTABLISHMENT,LD - Hunts Locality - Cost of Care,LD - Huntingdonshire - Care,Residential Care
Cambridgeshire County Council,01-Sep-23,51302055335,"-1,251.98",CARETECH COMMUNITY SERVICES,CARE ESTABLISHMENT,LD - Hunts Locality - Cost of Care,LD - Huntingdonshire - Care,Residential Care
Cambridgeshire County Council,01-Sep-23,51302055335,"-1,251.98",CARETECH COMMUNITY SERVICES,CARE ESTABLISHMENT,LD - Hunts Locality - Cost of Care,LD - Huntingdonshire - Care,Residential Care
Cambridgeshire County Council,01-Sep-23,51302055335,"-1,251.98",CARETECH COMMUNITY SERVICES,CARE ESTABLISHMENT,LD - Hunts Locality - Cost of Care,LD - Huntingdonshire - Care,Residential Care
Cambridgeshire County Council,01-Sep-23,51302055335,"-1,251.98",CARETECH COMMUNITY SERVICES,CARE ESTABLISHMENT,LD - Hunts Locality - Cost of Care,LD - Huntingdonshire - Care,Residential Care
Cambridgeshire County Council,01-Sep-23,51302055335,"-1,251.98",CARETECH COMMUNITY SERVICES,CARE ESTABLISHMENT,LD - Hunts Locality - Cost of Care,LD - Huntingdonshire - Care,Residential Care
Cambridgeshire County Council,01-Sep-23,51302055335,"-1,251.98",CARETECH COMMUNITY SERVICES,CARE ESTABLISHMENT,LD - Hunts Locality - Cost of Care,LD - Huntingdonshire - Care,Residential Care
Cambridgeshire County Council,01-Sep-23,51302055335,"-1,251.98",CARETECH COMMUNITY SERVICES,CARE ESTABLISHMENT,LD - Hunts Locality - Cost of Care,LD - Huntingdonshire - Care,Residential Care
Cambridgeshire County Council,01-Sep-23,51302055335,"-1,251.98",CARETECH COMMUNITY SERVICES,CARE ESTABLISHMENT,LD - Hunts Locality - Cost of Care,LD - Huntingdonshire - Care,Residential Care
Cambridgeshire County Council,01-Sep-23,51302055335,"-1,251.98",CARETECH COMMUNITY SERVICES,CARE ESTABLISHMENT,LD - Hunts Locality - Cost of Care,LD - Huntingdonshire - Care,Residential Care
Cambridgeshire County Council,01-Sep-23,51302055335,"-1,251.98",CARETECH COMMUNITY SERVICES,CARE ESTABLISHMENT,LD - Hunts Locality - Cost of Care,LD - Huntingdonshire - Care,Residential Care
Cambridgeshire County Council,01-Sep-23,51302055335,"-1,251.98",CARETECH COMMUNITY SERVICES,CARE ESTABLISHMENT,LD - Hunts Locality - Cost of Care,LD - Huntingdonshire - Care,Residential Care
Cambridgeshire County Council,01-Sep-23,51302055335,"-1,251.98",CARETECH COMMUNITY SERVICES,CARE ESTABLISHMENT,LD - Hunts Locality - Cost of Care,LD - Huntingdonshire - Care,Residential Care
Cambridgeshire County Council,01-Sep-23,51302054056,"-1,135.71",Clover Fostering LTD,COMPANY,Unaccompanied Asylum Seeking Children,Separated Migrant Children < 18,Agency Placements - In County
Cambridgeshire County Council,01-Sep-23,51302054268,"-1,119.28",Askham Services Limited,COMPANY,OPPD - Cost of Care - Fenland - Over 65,Older People - Fenland - Care,Nursing Care
Cambridgeshire County Council,01-Sep-23,51302054268,"-1,119.28",Askham Services Limited,COMPANY,OPPD - Cost of Care - Fenland - Over 65,Older People - Fenland - Care,Nursing Care
Cambridgeshire County Council,01-Sep-23,51302054268,"-1,119.28",Askham Services Limited,COMPANY,OPPD - Cost of Care - Fenland - Over 65,Older People - Fenland - Care,Nursing Care
Cambridgeshire County Council,01-Sep-23,51302054268,"-1,119.28",Askham Services Limited,COMPANY,OPPD - Cost of Care - Fenland - Over 65,Older People - Fenland - Care,Nursing Care
Cambridgeshire County Council,01-Sep-23,51302054268,"-1,119.28",Askham Services Limited,COMPANY,OPPD - Cost of Care - Fenland - Over 65,Older People - Fenland - Care,Nursing Care
Cambridgeshire County Council,01-Sep-23,51302054268,"-1,119.28",Askham Services Limited,COMPANY,OPPD - Cost of Care - Fenland - Over 65,Older People - Fenland - Care,Nursing Care
Cambridgeshire County Council,01-Sep-23,51302054937,"-1,114.29",WOODLANDS CARE CENTRE,CARE ESTABLISHMENT,OPPD - Cost of Care - City South - Over 65,Older People - City & South - Care,Nursing Care
Cambridgeshire County Council,01-Sep-23,51302054937,"-1,114.29",WOODLANDS CARE CENTRE,CARE ESTABLISHMENT,OPPD - Cost of Care - City South - Over 65,Older People - City & South - Care,Nursing Care
Cambridgeshire County Council,01-Sep-23,51302055331,"-1,112.56",CONQUEST CARE HOMES PETERBOROUGH,CARE ESTABLISHMENT,LD - Fenland Locality - Cost of Care,LD - Fenland  - Care,Residential Care
Cambridgeshire County Council,01-Sep-23,51302054917,"-1,094.97",MAKING SPACE,CARE ESTABLISHMENT,OPPD - Cost of Care - East Cambs - Over 65,East Cambs - O P Team - Care,Nursing Care
Cambridgeshire County Council,01-Sep-23,51302054917,"-1,094.97",MAKING SPACE,CARE ESTABLISHMENT,OPPD - Cost of Care - East Cambs - Over 65,East Cambs - O P Team - Care,Nursing Care
Cambridgeshire County Council,01-Sep-23,51302054917,"-1,094.97",MAKING SPACE,CARE ESTABLISHMENT,OPPD - Cost of Care - East Cambs - Over 65,East Cambs - O P Team - Care,Nursing Care
Cambridgeshire County Council,01-Sep-23,51302054917,"-1,094.97",MAKING SPACE,CARE ESTABLISHMENT,OPPD - Cost of Care - East Cambs - Over 65,East Cambs - O P Team - Care,Nursing Care
Cambridgeshire County Council,01-Sep-23,51302054917,"-1,094.97",MAKING SPACE,CARE ESTABLISHMENT,OPPD - Cost of Care - East Cambs - Over 65,East Cambs - O P Team - Care,Nursing Care
Cambridgeshire County Council,01-Sep-23,51302054917,"-1,094.97",MAKING SPACE,CARE ESTABLISHMENT,OPPD - Cost of Care - East Cambs - Over 65,East Cambs - O P Team - Care,Nursing Care
Cambridgeshire County Council,01-Sep-23,51302054917,"-1,094.97",MAKING SPACE,CARE ESTABLISHMENT,OPPD - Cost of Care - East Cambs - Over 65,East Cambs - O P Team - Care,Nursing Care
Cambridgeshire County Council,01-Sep-23,51302054917,"-1,094.97",MAKING SPACE,CARE ESTABLISHMENT,OPPD - Cost of Care - East Cambs - Over 65,East Cambs - O P Team - Care,Nursing Care
Cambridgeshire County Council,01-Sep-23,51302054917,"-1,094.97",MAKING SPACE,CARE ESTABLISHMENT,OPPD - Cost of Care - East Cambs - Over 65,East Cambs - O P Team - Care,Nursing Care
Cambridgeshire County Council,01-Sep-23,51302054917,"-1,094.97",MAKING SPACE,CARE ESTABLISHMENT,OPPD - Cost of Care - East Cambs - Over 65,East Cambs - O P Team - Care,Nursing Care
Cambridgeshire County Council,01-Sep-23,51302054917,"-1,094.97",MAKING SPACE,CARE ESTABLISHMENT,OPPD - Cost of Care - East Cambs - Over 65,East Cambs - O P Team - Care,Nursing Care
Cambridgeshire County Council,01-Sep-23,51302054917,"-1,094.97",MAKING SPACE,CARE ESTABLISHMENT,OPPD - Cost of Care - East Cambs - Over 65,East Cambs - O P Team - Care,Nursing Care
Cambridgeshire County Council,01-Sep-23,51302054917,"-1,094.97",MAKING SPACE,CARE ESTABLISHMENT,OPPD - Cost of Care - East Cambs - Over 65,East Cambs - O P Team - Care,Nursing Care
Cambridgeshire County Council,01-Sep-23,51302054917,"-1,094.97",MAKING SPACE,CARE ESTABLISHMENT,OPPD - Cost of Care - East Cambs - Over 65,East Cambs - O P Team - Care,Nursing Care
Cambridgeshire County Council,01-Sep-23,51302054917,"-1,094.97",MAKING SPACE,CARE ESTABLISHMENT,OPPD - Cost of Care - East Cambs - Over 65,East Cambs - O P Team - Care,Nursing Care
Cambridgeshire County Council,01-Sep-23,51302054917,"-1,094.97",MAKING SPACE,CARE ESTABLISHMENT,OPPD - Cost of Care - East Cambs - Over 65,East Cambs - O P Team - Care,Nursing Care
Cambridgeshire County Council,01-Sep-23,51302054917,"-1,094.97",MAKING SPACE,CARE ESTABLISHMENT,OPPD - Cost of Care - East Cambs - Over 65,East Cambs - O P Team - Care,Nursing Care
Cambridgeshire County Council,01-Sep-23,51302054917,"-1,094.97",MAKING SPACE,CARE ESTABLISHMENT,OPPD - Cost of Care - East Cambs - Over 65,East Cambs - O P Team - Care,Nursing Care
Cambridgeshire County Council,01-Sep-23,51302054917,"-1,094.97",MAKING SPACE,CARE ESTABLISHMENT,OPPD - Cost of Care - East Cambs - Over 65,East Cambs - O P Team - Care,Nursing Care
Cambridgeshire County Council,01-Sep-23,51302054917,"-1,094.97",MAKING SPACE,CARE ESTABLISHMENT,OPPD - Cost of Care - East Cambs - Over 65,East Cambs - O P Team - Care,Nursing Care
Cambridgeshire County Council,01-Sep-23,51302054917,"-1,094.97",MAKING SPACE,CARE ESTABLISHMENT,OPPD - Cost of Care - East Cambs - Over 65,East Cambs - O P Team - Care,Nursing Care
Cambridgeshire County Council,01-Sep-23,51302054917,"-1,094.97",MAKING SPACE,CARE ESTABLISHMENT,OPPD - Cost of Care - East Cambs - Over 65,East Cambs - O P Team - Care,Nursing Care
Cambridgeshire County Council,01-Sep-23,51302054917,"-1,094.97",MAKING SPACE,CARE ESTABLISHMENT,OPPD - Cost of Care - East Cambs - Over 65,East Cambs - O P Team - Care,Nursing Care
Cambridgeshire County Council,01-Sep-23,51302054917,"-1,094.97",MAKING SPACE,CARE ESTABLISHMENT,OPPD - Cost of Care - East Cambs - Over 65,East Cambs - O P Team - Care,Nursing Care
Cambridgeshire County Council,01-Sep-23,51302054917,"-1,094.97",MAKING SPACE,CARE ESTABLISHMENT,OPPD - Cost of Care - East Cambs - Over 65,East Cambs - O P Team - Care,Nursing Care
Cambridgeshire County Council,01-Sep-23,51302054917,"-1,094.97",MAKING SPACE,CARE ESTABLISHMENT,OPPD - Cost of Care - East Cambs - Over 65,East Cambs - O P Team - Care,Nursing Care
Cambridgeshire County Council,01-Sep-23,51302054917,"-1,094.97",MAKING SPACE,CARE ESTABLISHMENT,OPPD - Cost of Care - East Cambs - Over 65,East Cambs - O P Team - Care,Nursing Care
Cambridgeshire County Council,01-Sep-23,51302054917,"-1,094.97",MAKING SPACE,CARE ESTABLISHMENT,OPPD - Cost of Care - East Cambs - Over 65,East Cambs - O P Team - Care,Nursing Care
Cambridgeshire County Council,01-Sep-23,51302054917,"-1,094.97",MAKING SPACE,CARE ESTABLISHMENT,OPPD - Cost of Care - East Cambs - Over 65,East Cambs - O P Team - Care,Nursing Care
Cambridgeshire County Council,01-Sep-23,51302054917,"-1,094.97",MAKING SPACE,CARE ESTABLISHMENT,OPPD - Cost of Care - East Cambs - Over 65,East Cambs - O P Team - Care,Nursing Care
Cambridgeshire County Council,01-Sep-23,51302054917,"-1,094.97",MAKING SPACE,CARE ESTABLISHMENT,OPPD - Cost of Care - East Cambs - Over 65,East Cambs - O P Team - Care,Nursing Care
Cambridgeshire County Council,01-Sep-23,51302054917,"-1,094.97",MAKING SPACE,CARE ESTABLISHMENT,OPPD - Cost of Care - East Cambs - Over 65,East Cambs - O P Team - Care,Nursing Care
Cambridgeshire County Council,01-Sep-23,51302054917,"-1,094.97",MAKING SPACE,CARE ESTABLISHMENT,OPPD - Cost of Care - East Cambs - Over 65,East Cambs - O P Team - Care,Nursing Care
Cambridgeshire County Council,01-Sep-23,51302054917,"-1,094.97",MAKING SPACE,CARE ESTABLISHMENT,OPPD - Cost of Care - East Cambs - Over 65,East Cambs - O P Team - Care,Nursing Care
Cambridgeshire County Council,01-Sep-23,51302054917,"-1,094.97",MAKING SPACE,CARE ESTABLISHMENT,OPPD - Cost of Care - East Cambs - Over 65,East Cambs - O P Team - Care,Nursing Care
Cambridgeshire County Council,01-Sep-23,51302054917,"-1,094.97",MAKING SPACE,CARE ESTABLISHMENT,OPPD - Cost of Care - East Cambs - Over 65,East Cambs - O P Team - Care,Nursing Care
Cambridgeshire County Council,01-Sep-23,51302054917,"-1,094.97",MAKING SPACE,CARE ESTABLISHMENT,OPPD - Cost of Care - East Cambs - Over 65,East Cambs - O P Team - Care,Nursing Care
Cambridgeshire County Council,01-Sep-23,51302054917,"-1,094.97",MAKING SPACE,CARE ESTABLISHMENT,OPPD - Cost of Care - East Cambs - Over 65,East Cambs - O P Team - Care,Nursing Care
Cambridgeshire County Council,01-Sep-23,51302054917,"-1,094.97",MAKING SPACE,CARE ESTABLISHMENT,OPPD - Cost of Care - East Cambs - Over 65,East Cambs - O P Team - Care,Nursing Care
Cambridgeshire County Council,01-Sep-23,51302054917,"-1,094.97",MAKING SPACE,CARE ESTABLISHMENT,OPPD - Cost of Care - East Cambs - Over 65,East Cambs - O P Team - Care,Nursing Care
Cambridgeshire County Council,01-Sep-23,51302054917,"-1,094.97",MAKING SPACE,CARE ESTABLISHMENT,OPPD - Cost of Care - East Cambs - Over 65,East Cambs - O P Team - Care,Nursing Care
Cambridgeshire County Council,01-Sep-23,51302054917,"-1,094.97",MAKING SPACE,CARE ESTABLISHMENT,OPPD - Cost of Care - East Cambs - Over 65,East Cambs - O P Team - Care,Nursing Care
Cambridgeshire County Council,01-Sep-23,51302054917,"-1,094.97",MAKING SPACE,CARE ESTABLISHMENT,OPPD - Cost of Care - East Cambs - Over 65,East Cambs - O P Team - Care,Nursing Care
Cambridgeshire County Council,01-Sep-23,51302054917,"-1,094.97",MAKING SPACE,CARE ESTABLISHMENT,OPPD - Cost of Care - East Cambs - Over 65,East Cambs - O P Team - Care,Nursing Care
Cambridgeshire County Council,01-Sep-23,51302054917,"-1,094.97",MAKING SPACE,CARE ESTABLISHMENT,OPPD - Cost of Care - East Cambs - Over 65,East Cambs - O P Team - Care,Nursing Care
Cambridgeshire County Council,01-Sep-23,51302054917,"-1,094.97",MAKING SPACE,CARE ESTABLISHMENT,OPPD - Cost of Care - East Cambs - Over 65,East Cambs - O P Team - Care,Nursing Care
Cambridgeshire County Council,01-Sep-23,51302054917,"-1,094.97",MAKING SPACE,CARE ESTABLISHMENT,OPPD - Cost of Care - East Cambs - Over 65,East Cambs - O P Team - Care,Nursing Care
Cambridgeshire County Council,01-Sep-23,51302054917,"-1,094.97",MAKING SPACE,CARE ESTABLISHMENT,OPPD - Cost of Care - East Cambs - Over 65,East Cambs - O P Team - Care,Nursing Care
Cambridgeshire County Council,01-Sep-23,51302054917,"-1,094.97",MAKING SPACE,CARE ESTABLISHMENT,OPPD - Cost of Care - East Cambs - Over 65,East Cambs - O P Team - Care,Nursing Care
Cambridgeshire County Council,01-Sep-23,51302054917,"-1,094.97",MAKING SPACE,CARE ESTABLISHMENT,OPPD - Cost of Care - East Cambs - Over 65,East Cambs - O P Team - Care,Nursing Care
Cambridgeshire County Council,01-Sep-23,51302054917,"-1,094.97",MAKING SPACE,CARE ESTABLISHMENT,OPPD - Cost of Care - East Cambs - Over 65,East Cambs - O P Team - Care,Nursing Care
Cambridgeshire County Council,01-Sep-23,51302055332,"-1,074.77",CARETECH COMMUNITY SERVICES,CARE ESTABLISHMENT,LD - South Locality - Cost of Care,LD - South Cambs - Special Needs,Residential Care
Cambridgeshire County Council,01-Sep-23,51302055332,"-1,074.77",CARETECH COMMUNITY SERVICES,CARE ESTABLISHMENT,LD - South Locality - Cost of Care,LD - South Cambs - Special Needs,Residential Care
Cambridgeshire County Council,01-Sep-23,51302055335,"-1,073.13",CARETECH COMMUNITY SERVICES,CARE ESTABLISHMENT,LD - Hunts Locality - Cost of Care,LD - Huntingdonshire - Care,Residential Care
Cambridgeshire County Council,01-Sep-23,51302056151,"-1,068.50",Redacted Personal Data,SERVICE USER,LD - City Locality - Cost of Care,LD - City - Care,Direct Payments
Cambridgeshire County Council,01-Sep-23,51302056151,"-1,068.50",Redacted Personal Data,SERVICE USER,LD - City Locality - Cost of Care,LD - City - Care,Direct Payments
Cambridgeshire County Council,01-Sep-23,51302056151,"-1,068.50",Redacted Personal Data,SERVICE USER,LD - City Locality - Cost of Care,LD - City - Care,Direct Payments
Cambridgeshire County Council,01-Sep-23,51302056319,"-1,055.93",Redacted Personal Data,SERVICE USER,LD - Hunts Locality - Cost of Care,LD - Huntingdonshire - Care,Direct Payments
Cambridgeshire County Council,01-Sep-23,51302054287,"-1,055.64",Askham Services Limited,COMPANY,OPPD - Cost of Care - Fenland - Over 65,Older People - Fenland - Care,Nursing Care
Cambridgeshire County Council,01-Sep-23,51302054287,"-1,055.64",Askham Services Limited,COMPANY,OPPD - Cost of Care - Fenland - Over 65,Older People - Fenland - Care,Nursing Care
Cambridgeshire County Council,01-Sep-23,51301972078,"-1,000.00",Redacted Personal Data,INDIVIDUAL,LD - Young Adults Team,LD - Young Adults - Care,Direct Payments
Cambridgeshire County Council,01-Sep-23,51302056342,-981.61,Redacted Personal Data,SERVICE USER,LD - South Locality - Cost of Care,LD - South Cambs - Care,Direct Payments
Cambridgeshire County Council,01-Sep-23,51302054830,-978.66,WOODLANDS CARE CENTRE,CARE ESTABLISHMENT,OPPD - Cost of Care - City South - Over 65,Older People - City & South - Care,Nursing Care
Cambridgeshire County Council,01-Sep-23,51302055560,-960.00,WERRINGTON LODGE CARE HOME,CARE ESTABLISHMENT,OPPD - Cost of Care - Fenland - Over 65,Older People - Fenland - Care,Nursing Care
Cambridgeshire County Council,01-Sep-23,51302055560,-960.00,WERRINGTON LODGE CARE HOME,CARE ESTABLISHMENT,OPPD - Cost of Care - Fenland - Over 65,Older People - Fenland - Care,Nursing Care
Cambridgeshire County Council,01-Sep-23,51302055560,-960.00,WERRINGTON LODGE CARE HOME,CARE ESTABLISHMENT,OPPD - Cost of Care - Fenland - Over 65,Older People - Fenland - Care,Nursing Care
Cambridgeshire County Council,01-Sep-23,51302054766,-956.06,BARCHESTER HEALTHCARE HOMES LTD,CARE ESTABLISHMENT,OPMH - City & South,Older People Mental Health City & South,Nursing Care
Cambridgeshire County Council,01-Sep-23,51302054766,-956.06,BARCHESTER HEALTHCARE HOMES LTD,CARE ESTABLISHMENT,OPMH - City & South,Older People Mental Health City & South,Nursing Care
Cambridgeshire County Council,01-Sep-23,51302054766,-956.06,BARCHESTER HEALTHCARE HOMES LTD,CARE ESTABLISHMENT,OPMH - City & South,Older People Mental Health City & South,Nursing Care
Cambridgeshire County Council,01-Sep-23,51302054766,-956.06,BARCHESTER HEALTHCARE HOMES LTD,CARE ESTABLISHMENT,OPMH - City & South,Older People Mental Health City & South,Nursing Care
Cambridgeshire County Council,01-Sep-23,51302054766,-956.06,BARCHESTER HEALTHCARE HOMES LTD,CARE ESTABLISHMENT,OPMH - City & South,Older People Mental Health City & South,Nursing Care
Cambridgeshire County Council,01-Sep-23,51302054766,-956.06,BARCHESTER HEALTHCARE HOMES LTD,CARE ESTABLISHMENT,OPMH - City & South,Older People Mental Health City & South,Nursing Care
Cambridgeshire County Council,01-Sep-23,51302054766,-956.06,BARCHESTER HEALTHCARE HOMES LTD,CARE ESTABLISHMENT,OPMH - City & South,Older People Mental Health City & South,Nursing Care
Cambridgeshire County Council,01-Sep-23,51302054766,-956.06,BARCHESTER HEALTHCARE HOMES LTD,CARE ESTABLISHMENT,OPMH - City & South,Older People Mental Health City & South,Nursing Care
Cambridgeshire County Council,01-Sep-23,51302054766,-956.06,BARCHESTER HEALTHCARE HOMES LTD,CARE ESTABLISHMENT,OPMH - City & South,Older People Mental Health City & South,Nursing Care
Cambridgeshire County Council,01-Sep-23,51302054766,-956.06,BARCHESTER HEALTHCARE HOMES LTD,CARE ESTABLISHMENT,OPMH - City & South,Older People Mental Health City & South,Nursing Care
Cambridgeshire County Council,01-Sep-23,51302054766,-956.06,BARCHESTER HEALTHCARE HOMES LTD,CARE ESTABLISHMENT,OPMH - City & South,Older People Mental Health City & South,Nursing Care
Cambridgeshire County Council,01-Sep-23,51302054766,-956.06,BARCHESTER HEALTHCARE HOMES LTD,CARE ESTABLISHMENT,OPMH - City & South,Older People Mental Health City & South,Nursing Care
Cambridgeshire County Council,01-Sep-23,51302054766,-956.06,BARCHESTER HEALTHCARE HOMES LTD,CARE ESTABLISHMENT,OPMH - City & South,Older People Mental Health City & South,Nursing Care
Cambridgeshire County Council,01-Sep-23,51302054766,-956.06,BARCHESTER HEALTHCARE HOMES LTD,CARE ESTABLISHMENT,OPMH - City & South,Older People Mental Health City & South,Nursing Care
Cambridgeshire County Council,01-Sep-23,51302054766,-956.06,BARCHESTER HEALTHCARE HOMES LTD,CARE ESTABLISHMENT,OPMH - City & South,Older People Mental Health City & South,Nursing Care
Cambridgeshire County Council,01-Sep-23,51302054766,-956.06,BARCHESTER HEALTHCARE HOMES LTD,CARE ESTABLISHMENT,OPMH - City & South,Older People Mental Health City & South,Nursing Care
Cambridgeshire County Council,01-Sep-23,51302054766,-956.06,BARCHESTER HEALTHCARE HOMES LTD,CARE ESTABLISHMENT,OPMH - City & South,Older People Mental Health City & South,Nursing Care
Cambridgeshire County Council,01-Sep-23,51302056258,-950.00,Redacted Personal Data,SERVICE USER,OPPD - Cost of Care - Huntingdon - Under 65,OPPD - Under 65 - Huntingdon,Direct Payments
Cambridgeshire County Council,01-Sep-23,51302056258,-950.00,Redacted Personal Data,SERVICE USER,OPPD - Cost of Care - Huntingdon - Under 65,OPPD - Under 65 - Huntingdon,Direct Payments
Cambridgeshire County Council,01-Sep-23,51302056258,-950.00,Redacted Personal Data,SERVICE USER,OPPD - Cost of Care - Huntingdon - Under 65,OPPD - Under 65 - Huntingdon,Direct Payments
Cambridgeshire County Council,01-Sep-23,51302056258,-950.00,Redacted Personal Data,SERVICE USER,OPPD - Cost of Care - Huntingdon - Under 65,OPPD - Under 65 - Huntingdon,Direct Payments
Cambridgeshire County Council,01-Sep-23,51302056258,-950.00,Redacted Personal Data,SERVICE USER,OPPD - Cost of Care - Huntingdon - Under 65,OPPD - Under 65 - Huntingdon,Direct Payments
Cambridgeshire County Council,01-Sep-23,51302056258,-950.00,Redacted Personal Data,SERVICE USER,OPPD - Cost of Care - Huntingdon - Under 65,OPPD - Under 65 - Huntingdon,Direct Payments
Cambridgeshire County Council,01-Sep-23,51302054945,-950.00,ROSE LODGE,CARE ESTABLISHMENT,OPPD - Cost of Care - Fenland - Over 65,Older People - Fenland - Care,Nursing Care
Cambridgeshire County Council,01-Sep-23,51302054945,-950.00,ROSE LODGE,CARE ESTABLISHMENT,OPPD - Cost of Care - Fenland - Over 65,Older People - Fenland - Care,Nursing Care
Cambridgeshire County Council,01-Sep-23,51302054945,-950.00,ROSE LODGE,CARE ESTABLISHMENT,OPPD - Cost of Care - Fenland - Over 65,Older People - Fenland - Care,Nursing Care
Cambridgeshire County Council,01-Sep-23,51302054945,-950.00,ROSE LODGE,CARE ESTABLISHMENT,OPPD - Cost of Care - Fenland - Over 65,Older People - Fenland - Care,Nursing Care
Cambridgeshire County Council,01-Sep-23,51302054945,-950.00,ROSE LODGE,CARE ESTABLISHMENT,OPPD - Cost of Care - Fenland - Over 65,Older People - Fenland - Care,Nursing Care
Cambridgeshire County Council,01-Sep-23,51302054917,-938.55,MAKING SPACE,CARE ESTABLISHMENT,OPPD - Cost of Care - East Cambs - Over 65,East Cambs - O P Team - Care,Nursing Care
Cambridgeshire County Council,01-Sep-23,51302054968,-924.00,FARRINGTON CARE HOMES LTD T/A WOODLANDS RESIDENTIAL CARE HOME,CARE ESTABLISHMENT,AMH Cambridge South - care,Cambridge South Adult Mental Health Team,Residential Care
Cambridgeshire County Council,01-Sep-23,51302054968,-924.00,FARRINGTON CARE HOMES LTD T/A WOODLANDS RESIDENTIAL CARE HOME,CARE ESTABLISHMENT,AMH Cambridge South - care,Cambridge South Adult Mental Health Team,Residential Care
Cambridgeshire County Council,01-Sep-23,51302054968,-924.00,FARRINGTON CARE HOMES LTD T/A WOODLANDS RESIDENTIAL CARE HOME,CARE ESTABLISHMENT,AMH Cambridge South - care,Cambridge South Adult Mental Health Team,Residential Care
Cambridgeshire County Council,01-Sep-23,51302054968,-924.00,FARRINGTON CARE HOMES LTD T/A WOODLANDS RESIDENTIAL CARE HOME,CARE ESTABLISHMENT,AMH Cambridge South - care,Cambridge South Adult Mental Health Team,Residential Care
Cambridgeshire County Council,01-Sep-23,51302054968,-924.00,FARRINGTON CARE HOMES LTD T/A WOODLANDS RESIDENTIAL CARE HOME,CARE ESTABLISHMENT,AMH Cambridge South - care,Cambridge South Adult Mental Health Team,Residential Care
Cambridgeshire County Council,01-Sep-23,51302054968,-924.00,FARRINGTON CARE HOMES LTD T/A WOODLANDS RESIDENTIAL CARE HOME,CARE ESTABLISHMENT,AMH Cambridge South - care,Cambridge South Adult Mental Health Team,Residential Care
Cambridgeshire County Council,01-Sep-23,51302054968,-924.00,FARRINGTON CARE HOMES LTD T/A WOODLANDS RESIDENTIAL CARE HOME,CARE ESTABLISHMENT,AMH Cambridge South - care,Cambridge South Adult Mental Health Team,Residential Care
Cambridgeshire County Council,01-Sep-23,51302054968,-924.00,FARRINGTON CARE HOMES LTD T/A WOODLANDS RESIDENTIAL CARE HOME,CARE ESTABLISHMENT,AMH Cambridge South - care,Cambridge South Adult Mental Health Team,Residential Care
Cambridgeshire County Council,01-Sep-23,51302054968,-924.00,FARRINGTON CARE HOMES LTD T/A WOODLANDS RESIDENTIAL CARE HOME,CARE ESTABLISHMENT,AMH Cambridge South - care,Cambridge South Adult Mental Health Team,Residential Care
Cambridgeshire County Council,01-Sep-23,51302054227,-900.55,THE RED HOUSE RESIDENTIAL & NURSING HOME,CARE ESTABLISHMENT,OPPD - Cost of Care - Huntingdon - Over 65,Hunts OP Team - Care,Nursing Care
Cambridgeshire County Council,01-Sep-23,51302054227,-900.55,THE RED HOUSE RESIDENTIAL & NURSING HOME,CARE ESTABLISHMENT,OPPD - Cost of Care - Huntingdon - Over 65,Hunts OP Team - Care,Nursing Care
Cambridgeshire County Council,01-Sep-23,51302054772,-900.55,ABBEY HEALTHCARE (HUNTINGDON) LTD,CARE ESTABLISHMENT,OPPD - Cost of Care - Huntingdon - Over 65,Hunts OP Team - Care,Nursing Care
Cambridgeshire County Council,01-Sep-23,51302054772,-900.55,ABBEY HEALTHCARE (HUNTINGDON) LTD,CARE ESTABLISHMENT,OPPD - Cost of Care - Huntingdon - Over 65,Hunts OP Team - Care,Nursing Care
Cambridgeshire County Council,01-Sep-23,51302054772,-900.55,ABBEY HEALTHCARE (HUNTINGDON) LTD,CARE ESTABLISHMENT,OPPD - Cost of Care - Huntingdon - Over 65,Hunts OP Team - Care,Nursing Care
Cambridgeshire County Council,01-Sep-23,51302055111,-898.92,SOHAM LODGE,CARE ESTABLISHMENT,OPPD - Cost of Care - East Cambs - Over 65,East Cambs - O P Team - Care,Nursing Care
Cambridgeshire County Council,01-Sep-23,51302055111,-898.92,SOHAM LODGE,CARE ESTABLISHMENT,OPPD - Cost of Care - East Cambs - Over 65,East Cambs - O P Team - Care,Nursing Care
Cambridgeshire County Council,01-Sep-23,51302055111,-898.92,SOHAM LODGE,CARE ESTABLISHMENT,OPPD - Cost of Care - East Cambs - Over 65,East Cambs - O P Team - Care,Nursing Care
Cambridgeshire County Council,01-Sep-23,51302055111,-898.92,SOHAM LODGE,CARE ESTABLISHMENT,OPPD - Cost of Care - East Cambs - Over 65,East Cambs - O P Team - Care,Nursing Care
Cambridgeshire County Council,01-Sep-23,51302055111,-898.92,SOHAM LODGE,CARE ESTABLISHMENT,OPPD - Cost of Care - East Cambs - Over 65,East Cambs - O P Team - Care,Nursing Care
Cambridgeshire County Council,01-Sep-23,51302055218,-890.81,WERRINGTON LODGE CARE HOME,CARE ESTABLISHMENT,OPPD - Cost of Care - Fenland - Over 65,Older People - Fenland - Care,Nursing Care
Cambridgeshire County Council,01-Sep-23,51302055218,-890.81,WERRINGTON LODGE CARE HOME,CARE ESTABLISHMENT,OPPD - Cost of Care - Fenland - Over 65,Older People - Fenland - Care,Nursing Care
Cambridgeshire County Council,01-Sep-23,51302055218,-890.81,WERRINGTON LODGE CARE HOME,CARE ESTABLISHMENT,OPPD - Cost of Care - Fenland - Over 65,Older People - Fenland - Care,Nursing Care
Cambridgeshire County Council,01-Sep-23,51302055218,-890.81,WERRINGTON LODGE CARE HOME,CARE ESTABLISHMENT,OPPD - Cost of Care - Fenland - Over 65,Older People - Fenland - Care,Nursing Care
Cambridgeshire County Council,01-Sep-23,51302055218,-890.81,WERRINGTON LODGE CARE HOME,CARE ESTABLISHMENT,OPPD - Cost of Care - Fenland - Over 65,Older People - Fenland - Care,Nursing Care
Cambridgeshire County Council,01-Sep-23,51302055218,-890.81,WERRINGTON LODGE CARE HOME,CARE ESTABLISHMENT,OPPD - Cost of Care - Fenland - Over 65,Older People - Fenland - Care,Nursing Care
Cambridgeshire County Council,01-Sep-23,51302055218,-890.81,WERRINGTON LODGE CARE HOME,CARE ESTABLISHMENT,OPPD - Cost of Care - Fenland - Over 65,Older People - Fenland - Care,Nursing Care
Cambridgeshire County Council,01-Sep-23,51302055218,-890.81,WERRINGTON LODGE CARE HOME,CARE ESTABLISHMENT,OPPD - Cost of Care - Fenland - Over 65,Older People - Fenland - Care,Nursing Care
Cambridgeshire County Council,01-Sep-23,51302036242,-888.39,Redacted Personal Data,SERVICE USER,LD - South Locality - Cost of Care,LD - South Cambs - Care,Direct Payments
Cambridgeshire County Council,01-Sep-23,51302036242,-888.39,Redacted Personal Data,SERVICE USER,LD - South Locality - Cost of Care,LD - South Cambs - Care,Direct Payments
Cambridgeshire County Council,01-Sep-23,51302036242,-888.39,Redacted Personal Data,SERVICE USER,LD - South Locality - Cost of Care,LD - South Cambs - Care,Direct Payments
Cambridgeshire County Council,01-Sep-23,51302036242,-888.39,Redacted Personal Data,SERVICE USER,LD - South Locality - Cost of Care,LD - South Cambs - Care,Direct Payments
Cambridgeshire County Council,01-Sep-23,51302056034,-888.39,Redacted Personal Data,SERVICE USER,LD - South Locality - Cost of Care,LD - South Cambs - Care,Direct Payments
Cambridgeshire County Council,01-Sep-23,51302056034,-888.39,Redacted Personal Data,SERVICE USER,LD - South Locality - Cost of Care,LD - South Cambs - Care,Direct Payments
Cambridgeshire County Council,01-Sep-23,51302054968,-885.00,FARRINGTON CARE HOMES LTD T/A WOODLANDS RESIDENTIAL CARE HOME,CARE ESTABLISHMENT,AMH Cambridge South - care,Cambridge South Adult Mental Health Team,Residential Care
Cambridgeshire County Council,01-Sep-23,51302054968,-885.00,FARRINGTON CARE HOMES LTD T/A WOODLANDS RESIDENTIAL CARE HOME,CARE ESTABLISHMENT,AMH Cambridge South - care,Cambridge South Adult Mental Health Team,Residential Care
Cambridgeshire County Council,01-Sep-23,51302054968,-885.00,FARRINGTON CARE HOMES LTD T/A WOODLANDS RESIDENTIAL CARE HOME,CARE ESTABLISHMENT,AMH Cambridge South - care,Cambridge South Adult Mental Health Team,Residential Care
Cambridgeshire County Council,01-Sep-23,51302054968,-885.00,FARRINGTON CARE HOMES LTD T/A WOODLANDS RESIDENTIAL CARE HOME,CARE ESTABLISHMENT,AMH Cambridge South - care,Cambridge South Adult Mental Health Team,Residential Care
Cambridgeshire County Council,01-Sep-23,51302054968,-885.00,FARRINGTON CARE HOMES LTD T/A WOODLANDS RESIDENTIAL CARE HOME,CARE ESTABLISHMENT,AMH Cambridge South - care,Cambridge South Adult Mental Health Team,Residential Care
Cambridgeshire County Council,01-Sep-23,51302054968,-885.00,FARRINGTON CARE HOMES LTD T/A WOODLANDS RESIDENTIAL CARE HOME,CARE ESTABLISHMENT,AMH Cambridge South - care,Cambridge South Adult Mental Health Team,Residential Care
Cambridgeshire County Council,01-Sep-23,51302054968,-885.00,FARRINGTON CARE HOMES LTD T/A WOODLANDS RESIDENTIAL CARE HOME,CARE ESTABLISHMENT,AMH Cambridge South - care,Cambridge South Adult Mental Health Team,Residential Care
Cambridgeshire County Council,01-Sep-23,51302054968,-885.00,FARRINGTON CARE HOMES LTD T/A WOODLANDS RESIDENTIAL CARE HOME,CARE ESTABLISHMENT,AMH Cambridge South - care,Cambridge South Adult Mental Health Team,Residential Care
Cambridgeshire County Council,01-Sep-23,51302054968,-885.00,FARRINGTON CARE HOMES LTD T/A WOODLANDS RESIDENTIAL CARE HOME,CARE ESTABLISHMENT,AMH Cambridge South - care,Cambridge South Adult Mental Health Team,Residential Care
Cambridgeshire County Council,01-Sep-23,51302055180,-873.91,MM2 Care Homes Ltd t/a The Chestnuts MM2 (Wisbech),COMPANY,OPPD - Cost of Care - Fenland - Over 65,Older People - Fenland - Care,Residential Care
Cambridgeshire County Council,01-Sep-23,51302055180,-873.91,MM2 Care Homes Ltd t/a The Chestnuts MM2 (Wisbech),COMPANY,OPPD - Cost of Care - Fenland - Over 65,Older People - Fenland - Care,Residential Care
Cambridgeshire County Council,01-Sep-23,51302054365,-871.10,HOME MEADOW LTD,CARE ESTABLISHMENT,OPPD - Cost of Care - City South - Over 65,Older People - City & South - Care,Residential Care
Cambridgeshire County Council,01-Sep-23,51302054365,-871.10,HOME MEADOW LTD,CARE ESTABLISHMENT,OPPD - Cost of Care - City South - Over 65,Older People - City & South - Care,Residential Care
Cambridgeshire County Council,01-Sep-23,51302054365,-871.10,HOME MEADOW LTD,CARE ESTABLISHMENT,OPPD - Cost of Care - City South - Over 65,Older People - City & South - Care,Residential Care
Cambridgeshire County Council,01-Sep-23,51302054771,-870.22,ABBEY HEALTHCARE (HUNTINGDON) LTD,CARE ESTABLISHMENT,OPPD - Cost of Care - Huntingdon - Over 65,Hunts OP Team - Care,Nursing Care
Cambridgeshire County Council,01-Sep-23,51302054771,-870.22,ABBEY HEALTHCARE (HUNTINGDON) LTD,CARE ESTABLISHMENT,OPPD - Cost of Care - Huntingdon - Over 65,Hunts OP Team - Care,Nursing Care
Cambridgeshire County Council,01-Sep-23,51302054771,-870.22,ABBEY HEALTHCARE (HUNTINGDON) LTD,CARE ESTABLISHMENT,OPPD - Cost of Care - Huntingdon - Over 65,Hunts OP Team - Care,Nursing Care
Cambridgeshire County Council,01-Sep-23,51302055559,-850.00,POLEBROOK NURSING & RESIDENTIAL HOME,CARE ESTABLISHMENT,OPPD - Cost of Care - Fenland - Over 65,Older People - Fenland - Care,Nursing Care
Cambridgeshire County Council,01-Sep-23,51302055559,-850.00,POLEBROOK NURSING & RESIDENTIAL HOME,CARE ESTABLISHMENT,OPPD - Cost of Care - Fenland - Over 65,Older People - Fenland - Care,Nursing Care
Cambridgeshire County Council,01-Sep-23,51302055559,-850.00,POLEBROOK NURSING & RESIDENTIAL HOME,CARE ESTABLISHMENT,OPPD - Cost of Care - Fenland - Over 65,Older People - Fenland - Care,Nursing Care
Cambridgeshire County Council,01-Sep-23,51302055559,-850.00,POLEBROOK NURSING & RESIDENTIAL HOME,CARE ESTABLISHMENT,OPPD - Cost of Care - Fenland - Over 65,Older People - Fenland - Care,Nursing Care
Cambridgeshire County Council,01-Sep-23,51302055559,-850.00,POLEBROOK NURSING & RESIDENTIAL HOME,CARE ESTABLISHMENT,OPPD - Cost of Care - Fenland - Over 65,Older People - Fenland - Care,Nursing Care
Cambridgeshire County Council,01-Sep-23,51302055559,-850.00,POLEBROOK NURSING & RESIDENTIAL HOME,CARE ESTABLISHMENT,OPPD - Cost of Care - Fenland - Over 65,Older People - Fenland - Care,Nursing Care
Cambridgeshire County Council,01-Sep-23,51302055559,-850.00,POLEBROOK NURSING & RESIDENTIAL HOME,CARE ESTABLISHMENT,OPPD - Cost of Care - Fenland - Over 65,Older People - Fenland - Care,Nursing Care
Cambridgeshire County Council,01-Sep-23,51302055559,-850.00,POLEBROOK NURSING & RESIDENTIAL HOME,CARE ESTABLISHMENT,OPPD - Cost of Care - Fenland - Over 65,Older People - Fenland - Care,Nursing Care
Cambridgeshire County Council,01-Sep-23,51302055559,-850.00,POLEBROOK NURSING & RESIDENTIAL HOME,CARE ESTABLISHMENT,OPPD - Cost of Care - Fenland - Over 65,Older People - Fenland - Care,Nursing Care
Cambridgeshire County Council,01-Sep-23,51302055559,-850.00,POLEBROOK NURSING & RESIDENTIAL HOME,CARE ESTABLISHMENT,OPPD - Cost of Care - Fenland - Over 65,Older People - Fenland - Care,Nursing Care
Cambridgeshire County Council,01-Sep-23,51302055559,-850.00,POLEBROOK NURSING & RESIDENTIAL HOME,CARE ESTABLISHMENT,OPPD - Cost of Care - Fenland - Over 65,Older People - Fenland - Care,Nursing Care
Cambridgeshire County Council,01-Sep-23,51302055255,-828.00,Maven Healthcare,CARE ESTABLISHMENT,OPPD - Cost of Care - City South - Over 65,Older People - City & South - Care,Nursing Care
Cambridgeshire County Council,01-Sep-23,51302055255,-828.00,Maven Healthcare,CARE ESTABLISHMENT,OPPD - Cost of Care - City South - Over 65,Older People - City & South - Care,Nursing Care
Cambridgeshire County Council,01-Sep-23,51302055255,-828.00,Maven Healthcare,CARE ESTABLISHMENT,OPPD - Cost of Care - City South - Over 65,Older People - City & South - Care,Nursing Care
Cambridgeshire County Council,01-Sep-23,51302055560,-822.86,WERRINGTON LODGE CARE HOME,CARE ESTABLISHMENT,OPPD - Cost of Care - Fenland - Over 65,Older People - Fenland - Care,Nursing Care
Cambridgeshire County Council,01-Sep-23,51302055332,-818.49,CARETECH COMMUNITY SERVICES,CARE ESTABLISHMENT,LD - South Locality - Cost of Care,LD - South Cambs - Special Needs,Residential Care
Cambridgeshire County Council,01-Sep-23,51302054402,-810.35,HATLEY COURT HAVEN LTD,CARE ESTABLISHMENT,OPPD - Cost of Care - East Cambs - Over 65,East Cambs - O P Team - Care,Residential Care
Cambridgeshire County Council,01-Sep-23,51302054402,-810.35,HATLEY COURT HAVEN LTD,CARE ESTABLISHMENT,OPPD - Cost of Care - East Cambs - Over 65,East Cambs - O P Team - Care,Residential Care
Cambridgeshire County Council,01-Sep-23,51302054402,-810.35,HATLEY COURT HAVEN LTD,CARE ESTABLISHMENT,OPPD - Cost of Care - East Cambs - Over 65,East Cambs - O P Team - Care,Residential Care
Cambridgeshire County Council,01-Sep-23,51302054402,-810.35,HATLEY COURT HAVEN LTD,CARE ESTABLISHMENT,OPPD - Cost of Care - East Cambs - Over 65,East Cambs - O P Team - Care,Residential Care
Cambridgeshire County Council,01-Sep-23,51302054402,-810.35,HATLEY COURT HAVEN LTD,CARE ESTABLISHMENT,OPPD - Cost of Care - East Cambs - Over 65,East Cambs - O P Team - Care,Residential Care
Cambridgeshire County Council,01-Sep-23,51302054402,-810.35,HATLEY COURT HAVEN LTD,CARE ESTABLISHMENT,OPPD - Cost of Care - East Cambs - Over 65,East Cambs - O P Team - Care,Residential Care
Cambridgeshire County Council,01-Sep-23,51302054402,-810.35,HATLEY COURT HAVEN LTD,CARE ESTABLISHMENT,OPPD - Cost of Care - East Cambs - Over 65,East Cambs - O P Team - Care,Residential Care
Cambridgeshire County Council,01-Sep-23,51302054402,-810.35,HATLEY COURT HAVEN LTD,CARE ESTABLISHMENT,OPPD - Cost of Care - East Cambs - Over 65,East Cambs - O P Team - Care,Residential Care
Cambridgeshire County Council,01-Sep-23,51302054402,-810.35,HATLEY COURT HAVEN LTD,CARE ESTABLISHMENT,OPPD - Cost of Care - East Cambs - Over 65,East Cambs - O P Team - Care,Residential Care
Cambridgeshire County Council,01-Sep-23,51302054402,-810.35,HATLEY COURT HAVEN LTD,CARE ESTABLISHMENT,OPPD - Cost of Care - East Cambs - Over 65,East Cambs - O P Team - Care,Residential Care
Cambridgeshire County Council,01-Sep-23,51302054402,-810.35,HATLEY COURT HAVEN LTD,CARE ESTABLISHMENT,OPPD - Cost of Care - East Cambs - Over 65,East Cambs - O P Team - Care,Residential Care
Cambridgeshire County Council,01-Sep-23,51302054402,-810.35,HATLEY COURT HAVEN LTD,CARE ESTABLISHMENT,OPPD - Cost of Care - East Cambs - Over 65,East Cambs - O P Team - Care,Residential Care
Cambridgeshire County Council,01-Sep-23,51302054402,-810.35,HATLEY COURT HAVEN LTD,CARE ESTABLISHMENT,OPPD - Cost of Care - East Cambs - Over 65,East Cambs - O P Team - Care,Residential Care
Cambridgeshire County Council,01-Sep-23,51302054402,-810.35,HATLEY COURT HAVEN LTD,CARE ESTABLISHMENT,OPPD - Cost of Care - East Cambs - Over 65,East Cambs - O P Team - Care,Residential Care
Cambridgeshire County Council,01-Sep-23,51302054402,-810.35,HATLEY COURT HAVEN LTD,CARE ESTABLISHMENT,OPPD - Cost of Care - East Cambs - Over 65,East Cambs - O P Team - Care,Residential Care
Cambridgeshire County Council,01-Sep-23,51302054402,-810.35,HATLEY COURT HAVEN LTD,CARE ESTABLISHMENT,OPPD - Cost of Care - East Cambs - Over 65,East Cambs - O P Team - Care,Residential Care
Cambridgeshire County Council,01-Sep-23,51302054402,-810.35,HATLEY COURT HAVEN LTD,CARE ESTABLISHMENT,OPPD - Cost of Care - East Cambs - Over 65,East Cambs - O P Team - Care,Residential Care
Cambridgeshire County Council,01-Sep-23,51302054402,-810.35,HATLEY COURT HAVEN LTD,CARE ESTABLISHMENT,OPPD - Cost of Care - East Cambs - Over 65,East Cambs - O P Team - Care,Residential Care
Cambridgeshire County Council,01-Sep-23,51302054402,-810.35,HATLEY COURT HAVEN LTD,CARE ESTABLISHMENT,OPPD - Cost of Care - East Cambs - Over 65,East Cambs - O P Team - Care,Residential Care
Cambridgeshire County Council,01-Sep-23,51302055193,-810.35,Heathlands House T/A Care UK Community Partnerships Ltd,COMPANY,OPPD - Cost of Care - City South - Over 65,Older People - City & South - Care,Residential Care
Cambridgeshire County Council,01-Sep-23,51302055193,-810.35,Heathlands House T/A Care UK Community Partnerships Ltd,COMPANY,OPPD - Cost of Care - City South - Over 65,Older People - City & South - Care,Residential Care
Cambridgeshire County Council,01-Sep-23,51302054494,-810.35,HATLEY COURT HAVEN LTD,CARE ESTABLISHMENT,OPPD - Cost of Care - City South - Over 65,Older People - City & South - Care,Residential Care
Cambridgeshire County Council,01-Sep-23,51302054527,-808.65,FERRARS HALL CARE HOME,CARE ESTABLISHMENT,OPPD - Cost of Care - Huntingdon - Over 65,Hunts OP Team - Care,Residential Care
Cambridgeshire County Council,01-Sep-23,51302054527,-808.65,FERRARS HALL CARE HOME,CARE ESTABLISHMENT,OPPD - Cost of Care - Huntingdon - Over 65,Hunts OP Team - Care,Residential Care
Cambridgeshire County Council,01-Sep-23,51302054527,-808.65,FERRARS HALL CARE HOME,CARE ESTABLISHMENT,OPPD - Cost of Care - Huntingdon - Over 65,Hunts OP Team - Care,Residential Care
Cambridgeshire County Council,01-Sep-23,51302054527,-808.65,FERRARS HALL CARE HOME,CARE ESTABLISHMENT,OPPD - Cost of Care - Huntingdon - Over 65,Hunts OP Team - Care,Residential Care
Cambridgeshire County Council,01-Sep-23,51302054804,-807.80,THE CAMBRIDGE HOUSING SOCIETY LTD,CARE ESTABLISHMENT,Autism and Adult Support - Cost of Care,Autism and Adult Support - Care,Residential Care
Cambridgeshire County Council,01-Sep-23,51302054804,-807.80,THE CAMBRIDGE HOUSING SOCIETY LTD,CARE ESTABLISHMENT,Autism and Adult Support - Cost of Care,Autism and Adult Support - Care,Residential Care
Cambridgeshire County Council,01-Sep-23,51302054804,-807.80,THE CAMBRIDGE HOUSING SOCIETY LTD,CARE ESTABLISHMENT,Autism and Adult Support - Cost of Care,Autism and Adult Support - Care,Residential Care
Cambridgeshire County Council,01-Sep-23,51302054804,-807.80,THE CAMBRIDGE HOUSING SOCIETY LTD,CARE ESTABLISHMENT,Autism and Adult Support - Cost of Care,Autism and Adult Support - Care,Residential Care
Cambridgeshire County Council,01-Sep-23,51302054804,-807.80,THE CAMBRIDGE HOUSING SOCIETY LTD,CARE ESTABLISHMENT,Autism and Adult Support - Cost of Care,Autism and Adult Support - Care,Residential Care
Cambridgeshire County Council,01-Sep-23,51302054804,-807.80,THE CAMBRIDGE HOUSING SOCIETY LTD,CARE ESTABLISHMENT,Autism and Adult Support - Cost of Care,Autism and Adult Support - Care,Residential Care
Cambridgeshire County Council,01-Sep-23,51302054242,-807.12,LYNCROFT RESIDENTIAL HOME,CARE ESTABLISHMENT,OPPD - Cost of Care - Fenland - Over 65,Older People - Fenland - Care,Residential Care
Cambridgeshire County Council,01-Sep-23,51302045753,-807.12,CLOVELLY HOUSE RESIDENTIAL HOME,CARE ESTABLISHMENT,OPPD - Cost of Care - Fenland - Over 65,Older People - Fenland - Care,Residential Care
Cambridgeshire County Council,01-Sep-23,51302045753,-807.12,CLOVELLY HOUSE RESIDENTIAL HOME,CARE ESTABLISHMENT,OPPD - Cost of Care - Fenland - Over 65,Older People - Fenland - Care,Residential Care
Cambridgeshire County Council,01-Sep-23,51302045753,-807.12,CLOVELLY HOUSE RESIDENTIAL HOME,CARE ESTABLISHMENT,OPPD - Cost of Care - Fenland - Over 65,Older People - Fenland - Care,Residential Care
Cambridgeshire County Council,01-Sep-23,51302045753,-807.12,CLOVELLY HOUSE RESIDENTIAL HOME,CARE ESTABLISHMENT,OPPD - Cost of Care - Fenland - Over 65,Older People - Fenland - Care,Residential Care
Cambridgeshire County Council,01-Sep-23,51302045753,-807.12,CLOVELLY HOUSE RESIDENTIAL HOME,CARE ESTABLISHMENT,OPPD - Cost of Care - Fenland - Over 65,Older People - Fenland - Care,Residential Care
Cambridgeshire County Council,01-Sep-23,51302045753,-807.12,CLOVELLY HOUSE RESIDENTIAL HOME,CARE ESTABLISHMENT,OPPD - Cost of Care - Fenland - Over 65,Older People - Fenland - Care,Residential Care
Cambridgeshire County Council,01-Sep-23,51302045753,-807.12,CLOVELLY HOUSE RESIDENTIAL HOME,CARE ESTABLISHMENT,OPPD - Cost of Care - Fenland - Over 65,Older People - Fenland - Care,Residential Care
Cambridgeshire County Council,01-Sep-23,51302045753,-807.12,CLOVELLY HOUSE RESIDENTIAL HOME,CARE ESTABLISHMENT,OPPD - Cost of Care - Fenland - Over 65,Older People - Fenland - Care,Residential Care
Cambridgeshire County Council,01-Sep-23,51302056153,-806.64,Redacted Personal Data,SERVICE USER,LD - City Locality - Cost of Care,LD - City - Care,Direct Payments
Cambridgeshire County Council,01-Sep-23,51302056153,-806.64,Redacted Personal Data,SERVICE USER,LD - City Locality - Cost of Care,LD - City - Care,Direct Payments
Cambridgeshire County Council,01-Sep-23,51302056153,-806.64,Redacted Personal Data,SERVICE USER,LD - City Locality - Cost of Care,LD - City - Care,Direct Payments
Cambridgeshire County Council,01-Sep-23,51302056153,-806.64,Redacted Personal Data,SERVICE USER,LD - City Locality - Cost of Care,LD - City - Care,Direct Payments
Cambridgeshire County Council,01-Sep-23,51302056153,-806.64,Redacted Personal Data,SERVICE USER,LD - City Locality - Cost of Care,LD - City - Care,Direct Payments
Cambridgeshire County Council,01-Sep-23,51302056153,-806.64,Redacted Personal Data,SERVICE USER,LD - City Locality - Cost of Care,LD - City - Care,Direct Payments
Cambridgeshire County Council,01-Sep-23,51302056153,-806.64,Redacted Personal Data,SERVICE USER,LD - City Locality - Cost of Care,LD - City - Care,Direct Payments
Cambridgeshire County Council,01-Sep-23,51302056153,-806.64,Redacted Personal Data,SERVICE USER,LD - City Locality - Cost of Care,LD - City - Care,Direct Payments
Cambridgeshire County Council,01-Sep-23,51302056153,-806.64,Redacted Personal Data,SERVICE USER,LD - City Locality - Cost of Care,LD - City - Care,Direct Payments
Cambridgeshire County Council,01-Sep-23,51302056153,-806.64,Redacted Personal Data,SERVICE USER,LD - City Locality - Cost of Care,LD - City - Care,Direct Payments
Cambridgeshire County Council,01-Sep-23,51302056153,-806.64,Redacted Personal Data,SERVICE USER,LD - City Locality - Cost of Care,LD - City - Care,Direct Payments
Cambridgeshire County Council,01-Sep-23,51302056153,-806.64,Redacted Personal Data,SERVICE USER,LD - City Locality - Cost of Care,LD - City - Care,Direct Payments
Cambridgeshire County Council,01-Sep-23,51302056153,-806.64,Redacted Personal Data,SERVICE USER,LD - City Locality - Cost of Care,LD - City - Care,Direct Payments
Cambridgeshire County Council,01-Sep-23,51302054566,-806.00,KINGFISHER HOUSE,CARE ESTABLISHMENT,OPPD - Cost of Care - East Cambs - Over 65,East Cambs - O P Team - Care,Nursing Care
Cambridgeshire County Council,01-Sep-23,51302054566,-806.00,KINGFISHER HOUSE,CARE ESTABLISHMENT,OPPD - Cost of Care - East Cambs - Over 65,East Cambs - O P Team - Care,Nursing Care
Cambridgeshire County Council,01-Sep-23,51302054566,-806.00,KINGFISHER HOUSE,CARE ESTABLISHMENT,OPPD - Cost of Care - East Cambs - Over 65,East Cambs - O P Team - Care,Nursing Care
Cambridgeshire County Council,01-Sep-23,51302054566,-806.00,KINGFISHER HOUSE,CARE ESTABLISHMENT,OPPD - Cost of Care - East Cambs - Over 65,East Cambs - O P Team - Care,Nursing Care
Cambridgeshire County Council,01-Sep-23,51302054566,-806.00,KINGFISHER HOUSE,CARE ESTABLISHMENT,OPPD - Cost of Care - East Cambs - Over 65,East Cambs - O P Team - Care,Nursing Care
Cambridgeshire County Council,01-Sep-23,51302054566,-806.00,KINGFISHER HOUSE,CARE ESTABLISHMENT,OPPD - Cost of Care - East Cambs - Over 65,East Cambs - O P Team - Care,Nursing Care
Cambridgeshire County Council,01-Sep-23,51302054566,-806.00,KINGFISHER HOUSE,CARE ESTABLISHMENT,OPPD - Cost of Care - East Cambs - Over 65,East Cambs - O P Team - Care,Nursing Care
Cambridgeshire County Council,01-Sep-23,51302055444,-800.03,CLOVELLY HOUSE RESIDENTIAL HOME,CARE ESTABLISHMENT,OPPD - Cost of Care - City South - Over 65,Older People - City & South - Care,Residential Care
Cambridgeshire County Council,01-Sep-23,51302055444,-800.03,CLOVELLY HOUSE RESIDENTIAL HOME,CARE ESTABLISHMENT,OPPD - Cost of Care - City South - Over 65,Older People - City & South - Care,Residential Care
Cambridgeshire County Council,01-Sep-23,51302055444,-800.03,CLOVELLY HOUSE RESIDENTIAL HOME,CARE ESTABLISHMENT,OPPD - Cost of Care - City South - Over 65,Older People - City & South - Care,Residential Care
Cambridgeshire County Council,01-Sep-23,51302055444,-800.03,CLOVELLY HOUSE RESIDENTIAL HOME,CARE ESTABLISHMENT,OPPD - Cost of Care - City South - Over 65,Older People - City & South - Care,Residential Care
Cambridgeshire County Council,01-Sep-23,51302055444,-800.03,CLOVELLY HOUSE RESIDENTIAL HOME,CARE ESTABLISHMENT,OPPD - Cost of Care - City South - Over 65,Older People - City & South - Care,Residential Care
Cambridgeshire County Council,01-Sep-23,51302054598,-800.00,FERRARS HALL CARE HOME,CARE ESTABLISHMENT,OPMH - Hunts & Fens,Older People Mental Health Fenland,Residential Care
Cambridgeshire County Council,01-Sep-23,51302054598,-800.00,FERRARS HALL CARE HOME,CARE ESTABLISHMENT,OPMH - Hunts & Fens,Older People Mental Health Fenland,Residential Care
Cambridgeshire County Council,01-Sep-23,51302054598,-800.00,FERRARS HALL CARE HOME,CARE ESTABLISHMENT,OPMH - Hunts & Fens,Older People Mental Health Fenland,Residential Care
Cambridgeshire County Council,01-Sep-23,51302054598,-800.00,FERRARS HALL CARE HOME,CARE ESTABLISHMENT,OPMH - Hunts & Fens,Older People Mental Health Fenland,Residential Care
Cambridgeshire County Council,01-Sep-23,51302054598,-800.00,FERRARS HALL CARE HOME,CARE ESTABLISHMENT,OPMH - Hunts & Fens,Older People Mental Health Fenland,Residential Care
Cambridgeshire County Council,01-Sep-23,51302054598,-800.00,FERRARS HALL CARE HOME,CARE ESTABLISHMENT,OPMH - Hunts & Fens,Older People Mental Health Fenland,Residential Care
Cambridgeshire County Council,01-Sep-23,51302054598,-800.00,FERRARS HALL CARE HOME,CARE ESTABLISHMENT,OPMH - Hunts & Fens,Older People Mental Health Fenland,Residential Care
Cambridgeshire County Council,01-Sep-23,51302054598,-800.00,FERRARS HALL CARE HOME,CARE ESTABLISHMENT,OPMH - Hunts & Fens,Older People Mental Health Fenland,Residential Care
Cambridgeshire County Council,01-Sep-23,51302054598,-800.00,FERRARS HALL CARE HOME,CARE ESTABLISHMENT,OPMH - Hunts & Fens,Older People Mental Health Fenland,Residential Care
Cambridgeshire County Council,01-Sep-23,51302054598,-800.00,FERRARS HALL CARE HOME,CARE ESTABLISHMENT,OPMH - Hunts & Fens,Older People Mental Health Fenland,Residential Care
Cambridgeshire County Council,01-Sep-23,51302054563,-800.00,FERRARS HALL CARE HOME,CARE ESTABLISHMENT,OPPD - Cost of Care - Huntingdon - Over 65,Hunts OP Team - Care,Residential Care
Cambridgeshire County Council,01-Sep-23,51302054563,-800.00,FERRARS HALL CARE HOME,CARE ESTABLISHMENT,OPPD - Cost of Care - Huntingdon - Over 65,Hunts OP Team - Care,Residential Care
Cambridgeshire County Council,01-Sep-23,51302054563,-800.00,FERRARS HALL CARE HOME,CARE ESTABLISHMENT,OPPD - Cost of Care - Huntingdon - Over 65,Hunts OP Team - Care,Residential Care
Cambridgeshire County Council,01-Sep-23,51302054563,-800.00,FERRARS HALL CARE HOME,CARE ESTABLISHMENT,OPPD - Cost of Care - Huntingdon - Over 65,Hunts OP Team - Care,Residential Care
Cambridgeshire County Council,01-Sep-23,51302054563,-800.00,FERRARS HALL CARE HOME,CARE ESTABLISHMENT,OPPD - Cost of Care - Huntingdon - Over 65,Hunts OP Team - Care,Residential Care
Cambridgeshire County Council,01-Sep-23,51302054563,-800.00,FERRARS HALL CARE HOME,CARE ESTABLISHMENT,OPPD - Cost of Care - Huntingdon - Over 65,Hunts OP Team - Care,Residential Care
Cambridgeshire County Council,01-Sep-23,51302054563,-800.00,FERRARS HALL CARE HOME,CARE ESTABLISHMENT,OPPD - Cost of Care - Huntingdon - Over 65,Hunts OP Team - Care,Residential Care
Cambridgeshire County Council,01-Sep-23,51302054563,-800.00,FERRARS HALL CARE HOME,CARE ESTABLISHMENT,OPPD - Cost of Care - Huntingdon - Over 65,Hunts OP Team - Care,Residential Care
Cambridgeshire County Council,01-Sep-23,51302055326,-795.67,VOYAGE,CARE ESTABLISHMENT,LD - South Locality - Cost of Care,LD - South Cambs - Care,Residential Care
Cambridgeshire County Council,01-Sep-23,51302055326,-795.67,VOYAGE,CARE ESTABLISHMENT,LD - South Locality - Cost of Care,LD - South Cambs - Care,Residential Care
Cambridgeshire County Council,01-Sep-23,51302055326,-795.67,VOYAGE,CARE ESTABLISHMENT,LD - South Locality - Cost of Care,LD - South Cambs - Care,Residential Care
Cambridgeshire County Council,01-Sep-23,51302055326,-795.67,VOYAGE,CARE ESTABLISHMENT,LD - South Locality - Cost of Care,LD - South Cambs - Care,Residential Care
Cambridgeshire County Council,01-Sep-23,51302055326,-795.67,VOYAGE,CARE ESTABLISHMENT,LD - South Locality - Cost of Care,LD - South Cambs - Care,Residential Care
Cambridgeshire County Council,01-Sep-23,51302055326,-795.67,VOYAGE,CARE ESTABLISHMENT,LD - South Locality - Cost of Care,LD - South Cambs - Care,Residential Care
Cambridgeshire County Council,01-Sep-23,51302055326,-795.67,VOYAGE,CARE ESTABLISHMENT,LD - South Locality - Cost of Care,LD - South Cambs - Care,Residential Care
Cambridgeshire County Council,01-Sep-23,51302055326,-795.67,VOYAGE,CARE ESTABLISHMENT,LD - South Locality - Cost of Care,LD - South Cambs - Care,Residential Care
Cambridgeshire County Council,01-Sep-23,51302055326,-795.67,VOYAGE,CARE ESTABLISHMENT,LD - South Locality - Cost of Care,LD - South Cambs - Care,Residential Care
Cambridgeshire County Council,01-Sep-23,51302055326,-795.67,VOYAGE,CARE ESTABLISHMENT,LD - South Locality - Cost of Care,LD - South Cambs - Care,Residential Care
Cambridgeshire County Council,01-Sep-23,51302055326,-795.67,VOYAGE,CARE ESTABLISHMENT,LD - South Locality - Cost of Care,LD - South Cambs - Care,Residential Care
Cambridgeshire County Council,01-Sep-23,51302055326,-795.67,VOYAGE,CARE ESTABLISHMENT,LD - South Locality - Cost of Care,LD - South Cambs - Care,Residential Care
Cambridgeshire County Council,01-Sep-23,51302055326,-795.67,VOYAGE,CARE ESTABLISHMENT,LD - South Locality - Cost of Care,LD - South Cambs - Care,Residential Care
Cambridgeshire County Council,01-Sep-23,51302055326,-795.67,VOYAGE,CARE ESTABLISHMENT,LD - South Locality - Cost of Care,LD - South Cambs - Care,Residential Care
Cambridgeshire County Council,01-Sep-23,51302055326,-795.67,VOYAGE,CARE ESTABLISHMENT,LD - South Locality - Cost of Care,LD - South Cambs - Care,Residential Care
Cambridgeshire County Council,01-Sep-23,51302055326,-795.67,VOYAGE,CARE ESTABLISHMENT,LD - South Locality - Cost of Care,LD - South Cambs - Care,Residential Care
Cambridgeshire County Council,01-Sep-23,51302055326,-795.67,VOYAGE,CARE ESTABLISHMENT,LD - South Locality - Cost of Care,LD - South Cambs - Care,Residential Care
Cambridgeshire County Council,01-Sep-23,51302055326,-795.67,VOYAGE,CARE ESTABLISHMENT,LD - South Locality - Cost of Care,LD - South Cambs - Care,Residential Care
Cambridgeshire County Council,01-Sep-23,51302055326,-795.67,VOYAGE,CARE ESTABLISHMENT,LD - South Locality - Cost of Care,LD - South Cambs - Care,Residential Care
Cambridgeshire County Council,01-Sep-23,51302055326,-795.67,VOYAGE,CARE ESTABLISHMENT,LD - South Locality - Cost of Care,LD - South Cambs - Care,Residential Care
Cambridgeshire County Council,01-Sep-23,51302055326,-795.67,VOYAGE,CARE ESTABLISHMENT,LD - South Locality - Cost of Care,LD - South Cambs - Care,Residential Care
Cambridgeshire County Council,01-Sep-23,51302055326,-795.67,VOYAGE,CARE ESTABLISHMENT,LD - South Locality - Cost of Care,LD - South Cambs - Care,Residential Care
Cambridgeshire County Council,01-Sep-23,51302055326,-795.67,VOYAGE,CARE ESTABLISHMENT,LD - South Locality - Cost of Care,LD - South Cambs - Care,Residential Care
Cambridgeshire County Council,01-Sep-23,51302054897,-783.65,FARRINGTON CARE HOMES LTD T/A WOODLANDS RESIDENTIAL CARE HOME,CARE ESTABLISHMENT,OPPD - Cost of Care - Huntingdon - Over 65,Hunts OP Team - Care,Residential Care
Cambridgeshire County Council,01-Sep-23,51302054897,-783.65,FARRINGTON CARE HOMES LTD T/A WOODLANDS RESIDENTIAL CARE HOME,CARE ESTABLISHMENT,OPPD - Cost of Care - Huntingdon - Over 65,Hunts OP Team - Care,Residential Care
Cambridgeshire County Council,01-Sep-23,51302054897,-783.65,FARRINGTON CARE HOMES LTD T/A WOODLANDS RESIDENTIAL CARE HOME,CARE ESTABLISHMENT,OPPD - Cost of Care - Huntingdon - Over 65,Hunts OP Team - Care,Residential Care
Cambridgeshire County Council,01-Sep-23,51302054136,-779.87,Glenholme Senior Living (Vera James House) limited,CARE ESTABLISHMENT,OPPD - Cost of Care - East Cambs - Over 65,East Cambs - O P Team - Care,Residential Care
Cambridgeshire County Council,01-Sep-23,51302054136,-779.87,Glenholme Senior Living (Vera James House) limited,CARE ESTABLISHMENT,OPPD - Cost of Care - East Cambs - Over 65,East Cambs - O P Team - Care,Residential Care
Cambridgeshire County Council,01-Sep-23,51302055332,-775.08,CARETECH COMMUNITY SERVICES,CARE ESTABLISHMENT,LD - South Locality - Cost of Care,LD - South Cambs - Special Needs,Residential Care
Cambridgeshire County Council,01-Sep-23,51302055174,-772.14,ST GEORGE'S COURT,CARE ESTABLISHMENT,OPPD - Cost of Care - City South - Over 65,Older People - City & South - Care,Residential Care
Cambridgeshire County Council,01-Sep-23,51302055174,-772.14,ST GEORGE'S COURT,CARE ESTABLISHMENT,OPPD - Cost of Care - City South - Over 65,Older People - City & South - Care,Residential Care
Cambridgeshire County Council,01-Sep-23,51302055174,-772.14,ST GEORGE'S COURT,CARE ESTABLISHMENT,OPPD - Cost of Care - City South - Over 65,Older People - City & South - Care,Residential Care
Cambridgeshire County Council,01-Sep-23,51302054571,-757.80,HOME MEADOW LTD,CARE ESTABLISHMENT,OPPD - Cost of Care - City South - Over 65,Older People - City & South - Care,Residential Care
Cambridgeshire County Council,01-Sep-23,51302054571,-757.80,HOME MEADOW LTD,CARE ESTABLISHMENT,OPPD - Cost of Care - City South - Over 65,Older People - City & South - Care,Residential Care
Cambridgeshire County Council,01-Sep-23,51302054519,-757.80,HOME MEADOW LTD,CARE ESTABLISHMENT,OPPD - Cost of Care - City South - Over 65,Older People - City & South - Care,Residential Care
Cambridgeshire County Council,01-Sep-23,51302054519,-757.80,HOME MEADOW LTD,CARE ESTABLISHMENT,OPPD - Cost of Care - City South - Over 65,Older People - City & South - Care,Residential Care
Cambridgeshire County Council,01-Sep-23,51302055436,-757.12,LANGLEY LODGE RESIDENTIAL CARE HOME,CARE ESTABLISHMENT,OPPD - Cost of Care - Fenland - Over 65,Older People - Fenland - Care,Residential Care
Cambridgeshire County Council,01-Sep-23,51302055436,-757.12,LANGLEY LODGE RESIDENTIAL CARE HOME,CARE ESTABLISHMENT,OPPD - Cost of Care - Fenland - Over 65,Older People - Fenland - Care,Residential Care
Cambridgeshire County Council,01-Sep-23,51302055551,-750.00,THE TUDORS RESIDENTIAL HOME,CARE ESTABLISHMENT,OPPD - Cost of Care - Fenland - Over 65,Older People - Fenland - Care,Residential Care
Cambridgeshire County Council,01-Sep-23,51302055551,-750.00,THE TUDORS RESIDENTIAL HOME,CARE ESTABLISHMENT,OPPD - Cost of Care - Fenland - Over 65,Older People - Fenland - Care,Residential Care
Cambridgeshire County Council,01-Sep-23,51302055551,-750.00,THE TUDORS RESIDENTIAL HOME,CARE ESTABLISHMENT,OPPD - Cost of Care - Fenland - Over 65,Older People - Fenland - Care,Residential Care
Cambridgeshire County Council,01-Sep-23,51302054402,-750.00,HATLEY COURT HAVEN LTD,CARE ESTABLISHMENT,OPPD - Cost of Care - East Cambs - Over 65,East Cambs - O P Team - Care,Residential Care
Cambridgeshire County Council,01-Sep-23,51302054402,-750.00,HATLEY COURT HAVEN LTD,CARE ESTABLISHMENT,OPPD - Cost of Care - East Cambs - Over 65,East Cambs - O P Team - Care,Residential Care
Cambridgeshire County Council,01-Sep-23,51302054402,-750.00,HATLEY COURT HAVEN LTD,CARE ESTABLISHMENT,OPPD - Cost of Care - East Cambs - Over 65,East Cambs - O P Team - Care,Residential Care
Cambridgeshire County Council,01-Sep-23,51302054402,-750.00,HATLEY COURT HAVEN LTD,CARE ESTABLISHMENT,OPPD - Cost of Care - East Cambs - Over 65,East Cambs - O P Team - Care,Residential Care
Cambridgeshire County Council,01-Sep-23,51302054402,-750.00,HATLEY COURT HAVEN LTD,CARE ESTABLISHMENT,OPPD - Cost of Care - East Cambs - Over 65,East Cambs - O P Team - Care,Residential Care
Cambridgeshire County Council,01-Sep-23,51302054402,-750.00,HATLEY COURT HAVEN LTD,CARE ESTABLISHMENT,OPPD - Cost of Care - East Cambs - Over 65,East Cambs - O P Team - Care,Residential Care
Cambridgeshire County Council,01-Sep-23,51302054557,-750.00,CROMWELL HOUSE HEALTH CARE,CARE ESTABLISHMENT,OPPD - Cost of Care - Huntingdon - Over 65,Hunts OP Team - Care,Residential Care
Cambridgeshire County Council,01-Sep-23,51302054557,-750.00,CROMWELL HOUSE HEALTH CARE,CARE ESTABLISHMENT,OPPD - Cost of Care - Huntingdon - Over 65,Hunts OP Team - Care,Residential Care
Cambridgeshire County Council,01-Sep-23,51302054557,-750.00,CROMWELL HOUSE HEALTH CARE,CARE ESTABLISHMENT,OPPD - Cost of Care - Huntingdon - Over 65,Hunts OP Team - Care,Residential Care
Cambridgeshire County Council,01-Sep-23,51302054557,-750.00,CROMWELL HOUSE HEALTH CARE,CARE ESTABLISHMENT,OPPD - Cost of Care - Huntingdon - Over 65,Hunts OP Team - Care,Residential Care
Cambridgeshire County Council,01-Sep-23,51302054557,-750.00,CROMWELL HOUSE HEALTH CARE,CARE ESTABLISHMENT,OPPD - Cost of Care - Huntingdon - Over 65,Hunts OP Team - Care,Residential Care
Cambridgeshire County Council,01-Sep-23,51302054557,-750.00,CROMWELL HOUSE HEALTH CARE,CARE ESTABLISHMENT,OPPD - Cost of Care - Huntingdon - Over 65,Hunts OP Team - Care,Residential Care
Cambridgeshire County Council,01-Sep-23,51302054557,-750.00,CROMWELL HOUSE HEALTH CARE,CARE ESTABLISHMENT,OPPD - Cost of Care - Huntingdon - Over 65,Hunts OP Team - Care,Residential Care
Cambridgeshire County Council,01-Sep-23,51302054557,-750.00,CROMWELL HOUSE HEALTH CARE,CARE ESTABLISHMENT,OPPD - Cost of Care - Huntingdon - Over 65,Hunts OP Team - Care,Residential Care
Cambridgeshire County Council,01-Sep-23,51302054557,-750.00,CROMWELL HOUSE HEALTH CARE,CARE ESTABLISHMENT,OPPD - Cost of Care - Huntingdon - Over 65,Hunts OP Team - Care,Residential Care
Cambridgeshire County Council,01-Sep-23,51302054557,-750.00,CROMWELL HOUSE HEALTH CARE,CARE ESTABLISHMENT,OPPD - Cost of Care - Huntingdon - Over 65,Hunts OP Team - Care,Residential Care
Cambridgeshire County Council,01-Sep-23,51302054557,-750.00,CROMWELL HOUSE HEALTH CARE,CARE ESTABLISHMENT,OPPD - Cost of Care - Huntingdon - Over 65,Hunts OP Team - Care,Residential Care
Cambridgeshire County Council,01-Sep-23,51302054557,-750.00,CROMWELL HOUSE HEALTH CARE,CARE ESTABLISHMENT,OPPD - Cost of Care - Huntingdon - Over 65,Hunts OP Team - Care,Residential Care
Cambridgeshire County Council,01-Sep-23,51302054557,-750.00,CROMWELL HOUSE HEALTH CARE,CARE ESTABLISHMENT,OPPD - Cost of Care - Huntingdon - Over 65,Hunts OP Team - Care,Residential Care
Cambridgeshire County Council,01-Sep-23,51302054557,-750.00,CROMWELL HOUSE HEALTH CARE,CARE ESTABLISHMENT,OPPD - Cost of Care - Huntingdon - Over 65,Hunts OP Team - Care,Residential Care
Cambridgeshire County Council,01-Sep-23,51302054591,-750.00,HATLEY COURT HAVEN LTD,CARE ESTABLISHMENT,OPPD - Cost of Care - City South - Over 65,Older People - City & South - Care,Residential Care
Cambridgeshire County Council,01-Sep-23,51302055267,-750.00,HUNTERS HEALTHCARE (HUNTERS DOWN),CARE ESTABLISHMENT,OPPD - Cost of Care - Huntingdon - Over 65,Hunts OP Team - Care,Residential Care
Cambridgeshire County Council,01-Sep-23,51302054283,-748.65,THE RED HOUSE RESIDENTIAL & NURSING HOME,CARE ESTABLISHMENT,OPPD - Cost of Care - Fenland - Over 65,Older People - Fenland - Care,Residential Care
Cambridgeshire County Council,01-Sep-23,51302054283,-748.65,THE RED HOUSE RESIDENTIAL & NURSING HOME,CARE ESTABLISHMENT,OPPD - Cost of Care - Fenland - Over 65,Older People - Fenland - Care,Residential Care
Cambridgeshire County Council,01-Sep-23,51302054222,-748.65,THE RED HOUSE RESIDENTIAL & NURSING HOME,CARE ESTABLISHMENT,OPPD - Cost of Care - Huntingdon - Over 65,Hunts OP Team - Care,Residential Care
Cambridgeshire County Council,01-Sep-23,51302054222,-748.65,THE RED HOUSE RESIDENTIAL & NURSING HOME,CARE ESTABLISHMENT,OPPD - Cost of Care - Huntingdon - Over 65,Hunts OP Team - Care,Residential Care
Cambridgeshire County Council,01-Sep-23,51302054222,-748.65,THE RED HOUSE RESIDENTIAL & NURSING HOME,CARE ESTABLISHMENT,OPPD - Cost of Care - Huntingdon - Over 65,Hunts OP Team - Care,Residential Care
Cambridgeshire County Council,01-Sep-23,51302054222,-748.65,THE RED HOUSE RESIDENTIAL & NURSING HOME,CARE ESTABLISHMENT,OPPD - Cost of Care - Huntingdon - Over 65,Hunts OP Team - Care,Residential Care
Cambridgeshire County Council,01-Sep-23,51302054222,-748.65,THE RED HOUSE RESIDENTIAL & NURSING HOME,CARE ESTABLISHMENT,OPPD - Cost of Care - Huntingdon - Over 65,Hunts OP Team - Care,Residential Care
Cambridgeshire County Council,01-Sep-23,51302054222,-748.65,THE RED HOUSE RESIDENTIAL & NURSING HOME,CARE ESTABLISHMENT,OPPD - Cost of Care - Huntingdon - Over 65,Hunts OP Team - Care,Residential Care
Cambridgeshire County Council,01-Sep-23,51302054771,-745.90,ABBEY HEALTHCARE (HUNTINGDON) LTD,CARE ESTABLISHMENT,OPPD - Cost of Care - Huntingdon - Over 65,Hunts OP Team - Care,Nursing Care
Cambridgeshire County Council,01-Sep-23,51302036281,-732.57,Redacted Personal Data,SERVICE USER,LD - South Locality - Cost of Care,LD - South Cambs - Care,Direct Payments
Cambridgeshire County Council,01-Sep-23,51302036281,-732.57,Redacted Personal Data,SERVICE USER,LD - South Locality - Cost of Care,LD - South Cambs - Care,Direct Payments
Cambridgeshire County Council,01-Sep-23,51302036281,-732.57,Redacted Personal Data,SERVICE USER,LD - South Locality - Cost of Care,LD - South Cambs - Care,Direct Payments
Cambridgeshire County Council,01-Sep-23,51302036281,-732.57,Redacted Personal Data,SERVICE USER,LD - South Locality - Cost of Care,LD - South Cambs - Care,Direct Payments
Cambridgeshire County Council,01-Sep-23,51302056071,-732.57,Redacted Personal Data,SERVICE USER,LD - South Locality - Cost of Care,LD - South Cambs - Care,Direct Payments
Cambridgeshire County Council,01-Sep-23,51302056071,-732.57,Redacted Personal Data,SERVICE USER,LD - South Locality - Cost of Care,LD - South Cambs - Care,Direct Payments
Cambridgeshire County Council,01-Sep-23,51302054949,-730.00,LILY HOUSE,CARE ESTABLISHMENT,OPPD - Cost of Care - Fenland - Over 65,Older People - Fenland - Care,Residential Care
Cambridgeshire County Council,01-Sep-23,51302054949,-730.00,LILY HOUSE,CARE ESTABLISHMENT,OPPD - Cost of Care - Fenland - Over 65,Older People - Fenland - Care,Residential Care
Cambridgeshire County Council,01-Sep-23,51302054949,-730.00,LILY HOUSE,CARE ESTABLISHMENT,OPPD - Cost of Care - Fenland - Over 65,Older People - Fenland - Care,Residential Care
Cambridgeshire County Council,01-Sep-23,51302054949,-730.00,LILY HOUSE,CARE ESTABLISHMENT,OPPD - Cost of Care - Fenland - Over 65,Older People - Fenland - Care,Residential Care
Cambridgeshire County Council,01-Sep-23,51302054949,-730.00,LILY HOUSE,CARE ESTABLISHMENT,OPPD - Cost of Care - Fenland - Over 65,Older People - Fenland - Care,Residential Care
Cambridgeshire County Council,01-Sep-23,51302054949,-730.00,LILY HOUSE,CARE ESTABLISHMENT,OPPD - Cost of Care - Fenland - Over 65,Older People - Fenland - Care,Residential Care
Cambridgeshire County Council,01-Sep-23,51302054949,-730.00,LILY HOUSE,CARE ESTABLISHMENT,OPPD - Cost of Care - Fenland - Over 65,Older People - Fenland - Care,Residential Care
Cambridgeshire County Council,01-Sep-23,51302054555,-730.00,HOME MEADOW LTD,CARE ESTABLISHMENT,OPPD - Cost of Care - City South - Over 65,Older People - City & South - Care,Residential Care
Cambridgeshire County Council,01-Sep-23,51302054555,-730.00,HOME MEADOW LTD,CARE ESTABLISHMENT,OPPD - Cost of Care - City South - Over 65,Older People - City & South - Care,Residential Care
Cambridgeshire County Council,01-Sep-23,51302054555,-730.00,HOME MEADOW LTD,CARE ESTABLISHMENT,OPPD - Cost of Care - City South - Over 65,Older People - City & South - Care,Residential Care
Cambridgeshire County Council,01-Sep-23,51302055559,-728.57,POLEBROOK NURSING & RESIDENTIAL HOME,CARE ESTABLISHMENT,OPPD - Cost of Care - Fenland - Over 65,Older People - Fenland - Care,Nursing Care
Cambridgeshire County Council,01-Sep-23,51302054452,-728.00,KINGFISHER HOUSE,CARE ESTABLISHMENT,OPPD - Cost of Care - East Cambs - Over 65,East Cambs - O P Team - Care,Nursing Care
Cambridgeshire County Council,01-Sep-23,51302054452,-728.00,KINGFISHER HOUSE,CARE ESTABLISHMENT,OPPD - Cost of Care - East Cambs - Over 65,East Cambs - O P Team - Care,Nursing Care
Cambridgeshire County Council,01-Sep-23,51302054065,-697.66,ALIWAL HEALTHCARE LTD,CARE ESTABLISHMENT,OPPD - Cost of Care - Fenland - Over 65,Older People - Fenland - Care,Residential Care
Cambridgeshire County Council,01-Sep-23,51302054065,-697.66,ALIWAL HEALTHCARE LTD,CARE ESTABLISHMENT,OPPD - Cost of Care - Fenland - Over 65,Older People - Fenland - Care,Residential Care
Cambridgeshire County Council,01-Sep-23,51302054065,-697.66,ALIWAL HEALTHCARE LTD,CARE ESTABLISHMENT,OPPD - Cost of Care - Fenland - Over 65,Older People - Fenland - Care,Residential Care
Cambridgeshire County Council,01-Sep-23,51302054065,-697.66,ALIWAL HEALTHCARE LTD,CARE ESTABLISHMENT,OPPD - Cost of Care - Fenland - Over 65,Older People - Fenland - Care,Residential Care
Cambridgeshire County Council,01-Sep-23,51302054065,-697.66,ALIWAL HEALTHCARE LTD,CARE ESTABLISHMENT,OPPD - Cost of Care - Fenland - Over 65,Older People - Fenland - Care,Residential Care
Cambridgeshire County Council,01-Sep-23,51302054065,-697.66,ALIWAL HEALTHCARE LTD,CARE ESTABLISHMENT,OPPD - Cost of Care - Fenland - Over 65,Older People - Fenland - Care,Residential Care
Cambridgeshire County Council,01-Sep-23,51302054065,-697.66,ALIWAL HEALTHCARE LTD,CARE ESTABLISHMENT,OPPD - Cost of Care - Fenland - Over 65,Older People - Fenland - Care,Residential Care
Cambridgeshire County Council,01-Sep-23,51302054065,-697.66,ALIWAL HEALTHCARE LTD,CARE ESTABLISHMENT,OPPD - Cost of Care - Fenland - Over 65,Older People - Fenland - Care,Residential Care
Cambridgeshire County Council,01-Sep-23,51302054065,-697.66,ALIWAL HEALTHCARE LTD,CARE ESTABLISHMENT,OPPD - Cost of Care - Fenland - Over 65,Older People - Fenland - Care,Residential Care
Cambridgeshire County Council,01-Sep-23,51302054065,-697.66,ALIWAL HEALTHCARE LTD,CARE ESTABLISHMENT,OPPD - Cost of Care - Fenland - Over 65,Older People - Fenland - Care,Residential Care
Cambridgeshire County Council,01-Sep-23,51302054065,-697.66,ALIWAL HEALTHCARE LTD,CARE ESTABLISHMENT,OPPD - Cost of Care - Fenland - Over 65,Older People - Fenland - Care,Residential Care
Cambridgeshire County Council,01-Sep-23,51302054065,-697.66,ALIWAL HEALTHCARE LTD,CARE ESTABLISHMENT,OPPD - Cost of Care - Fenland - Over 65,Older People - Fenland - Care,Residential Care
Cambridgeshire County Council,01-Sep-23,51302054065,-697.66,ALIWAL HEALTHCARE LTD,CARE ESTABLISHMENT,OPPD - Cost of Care - Fenland - Over 65,Older People - Fenland - Care,Residential Care
Cambridgeshire County Council,01-Sep-23,51302054065,-697.66,ALIWAL HEALTHCARE LTD,CARE ESTABLISHMENT,OPPD - Cost of Care - Fenland - Over 65,Older People - Fenland - Care,Residential Care
Cambridgeshire County Council,01-Sep-23,51302054065,-697.66,ALIWAL HEALTHCARE LTD,CARE ESTABLISHMENT,OPPD - Cost of Care - Fenland - Over 65,Older People - Fenland - Care,Residential Care
Cambridgeshire County Council,01-Sep-23,51302054065,-697.66,ALIWAL HEALTHCARE LTD,CARE ESTABLISHMENT,OPPD - Cost of Care - Fenland - Over 65,Older People - Fenland - Care,Residential Care
Cambridgeshire County Council,01-Sep-23,51302054065,-697.66,ALIWAL HEALTHCARE LTD,CARE ESTABLISHMENT,OPPD - Cost of Care - Fenland - Over 65,Older People - Fenland - Care,Residential Care
Cambridgeshire County Council,01-Sep-23,51302054804,-692.40,THE CAMBRIDGE HOUSING SOCIETY LTD,CARE ESTABLISHMENT,Autism and Adult Support - Cost of Care,Autism and Adult Support - Care,Residential Care
Cambridgeshire County Council,01-Sep-23,51302054243,-691.82,Glenholme Senior Living (Vera James House) limited,CARE ESTABLISHMENT,OPPD - Cost of Care - East Cambs - Over 65,East Cambs - O P Team - Care,Residential Care
Cambridgeshire County Council,01-Sep-23,51302054566,-690.86,KINGFISHER HOUSE,CARE ESTABLISHMENT,OPPD - Cost of Care - East Cambs - Over 65,East Cambs - O P Team - Care,Nursing Care
Cambridgeshire County Council,01-Sep-23,51302054195,-686.40,Redacted Personal Data,INDIVIDUAL,OPPD - Cost of Care - Fenland - Over 65,Older People - Fenland - Care,Nursing Care
Cambridgeshire County Council,01-Sep-23,51302054195,-686.40,Redacted Personal Data,INDIVIDUAL,OPPD - Cost of Care - Fenland - Over 65,Older People - Fenland - Care,Nursing Care
Cambridgeshire County Council,01-Sep-23,51302054195,-686.40,Redacted Personal Data,INDIVIDUAL,OPPD - Cost of Care - Fenland - Over 65,Older People - Fenland - Care,Nursing Care
Cambridgeshire County Council,01-Sep-23,51302054195,-686.40,Redacted Personal Data,INDIVIDUAL,OPPD - Cost of Care - Fenland - Over 65,Older People - Fenland - Care,Nursing Care
Cambridgeshire County Council,01-Sep-23,51302054195,-686.40,Redacted Personal Data,INDIVIDUAL,OPPD - Cost of Care - Fenland - Over 65,Older People - Fenland - Care,Nursing Care
Cambridgeshire County Council,01-Sep-23,51302054195,-686.40,Redacted Personal Data,INDIVIDUAL,OPPD - Cost of Care - Fenland - Over 65,Older People - Fenland - Care,Nursing Care
Cambridgeshire County Council,01-Sep-23,51302054195,-686.40,Redacted Personal Data,INDIVIDUAL,OPPD - Cost of Care - Fenland - Over 65,Older People - Fenland - Care,Nursing Care
Cambridgeshire County Council,01-Sep-23,51302054195,-686.40,Redacted Personal Data,INDIVIDUAL,OPPD - Cost of Care - Fenland - Over 65,Older People - Fenland - Care,Nursing Care
Cambridgeshire County Council,01-Sep-23,51302055444,-685.74,CLOVELLY HOUSE RESIDENTIAL HOME,CARE ESTABLISHMENT,OPPD - Cost of Care - City South - Over 65,Older People - City & South - Care,Residential Care
Cambridgeshire County Council,01-Sep-23,51302055242,-680.00,CLAYBURN COURT (DUAL RES/NURS (LA/NHS))(67049),CARE ESTABLISHMENT,OPPD - Cost of Care - City South - Over 65,Older People - City & South - Care,Residential Care
Cambridgeshire County Council,01-Sep-23,51302055242,-680.00,CLAYBURN COURT (DUAL RES/NURS (LA/NHS))(67049),CARE ESTABLISHMENT,OPPD - Cost of Care - City South - Over 65,Older People - City & South - Care,Residential Care
Cambridgeshire County Council,01-Sep-23,51302055242,-680.00,CLAYBURN COURT (DUAL RES/NURS (LA/NHS))(67049),CARE ESTABLISHMENT,OPPD - Cost of Care - City South - Over 65,Older People - City & South - Care,Residential Care
Cambridgeshire County Council,01-Sep-23,51302055242,-680.00,CLAYBURN COURT (DUAL RES/NURS (LA/NHS))(67049),CARE ESTABLISHMENT,OPPD - Cost of Care - City South - Over 65,Older People - City & South - Care,Residential Care
Cambridgeshire County Council,01-Sep-23,51302054634,-679.18,HOME CLOSE LTD,CARE ESTABLISHMENT,OPMH - City & South,Older People Mental Health City & South,Nursing Care
Cambridgeshire County Council,01-Sep-23,51302054634,-679.18,HOME CLOSE LTD,CARE ESTABLISHMENT,OPMH - City & South,Older People Mental Health City & South,Nursing Care
Cambridgeshire County Council,01-Sep-23,51302054634,-679.18,HOME CLOSE LTD,CARE ESTABLISHMENT,OPMH - City & South,Older People Mental Health City & South,Nursing Care
Cambridgeshire County Council,01-Sep-23,51302056258,-678.57,Redacted Personal Data,SERVICE USER,OPPD - Cost of Care - Huntingdon - Under 65,OPPD - Under 65 - Huntingdon,Direct Payments
Cambridgeshire County Council,01-Sep-23,51302055039,-675.11,BUCHAN HEALTHCARE LTD,CARE ESTABLISHMENT,OPMH - City & South,Older People Mental Health City & South,Residential Care
Cambridgeshire County Council,01-Sep-23,51302055039,-675.11,BUCHAN HEALTHCARE LTD,CARE ESTABLISHMENT,OPMH - City & South,Older People Mental Health City & South,Residential Care
Cambridgeshire County Council,01-Sep-23,51302055039,-675.11,BUCHAN HEALTHCARE LTD,CARE ESTABLISHMENT,OPMH - City & South,Older People Mental Health City & South,Residential Care
Cambridgeshire County Council,01-Sep-23,51302055039,-675.11,BUCHAN HEALTHCARE LTD,CARE ESTABLISHMENT,OPMH - City & South,Older People Mental Health City & South,Residential Care
Cambridgeshire County Council,01-Sep-23,51302056223,-651.63,Redacted Personal Data,INDIVIDUAL,OPPD - Cost of Care - Huntingdon - Under 65,OPPD - Under 65 - Huntingdon,Direct Payments
Cambridgeshire County Council,01-Sep-23,51302056223,-651.63,Redacted Personal Data,INDIVIDUAL,OPPD - Cost of Care - Huntingdon - Under 65,OPPD - Under 65 - Huntingdon,Direct Payments
Cambridgeshire County Council,01-Sep-23,51302056223,-651.63,Redacted Personal Data,INDIVIDUAL,OPPD - Cost of Care - Huntingdon - Under 65,OPPD - Under 65 - Huntingdon,Direct Payments
Cambridgeshire County Council,01-Sep-23,51302056223,-651.63,Redacted Personal Data,INDIVIDUAL,OPPD - Cost of Care - Huntingdon - Under 65,OPPD - Under 65 - Huntingdon,Direct Payments
Cambridgeshire County Council,01-Sep-23,51302056223,-651.63,Redacted Personal Data,INDIVIDUAL,OPPD - Cost of Care - Huntingdon - Under 65,OPPD - Under 65 - Huntingdon,Direct Payments
Cambridgeshire County Council,01-Sep-23,51302056223,-651.63,Redacted Personal Data,INDIVIDUAL,OPPD - Cost of Care - Huntingdon - Under 65,OPPD - Under 65 - Huntingdon,Direct Payments
Cambridgeshire County Council,01-Sep-23,51302055436,-648.96,LANGLEY LODGE RESIDENTIAL CARE HOME,CARE ESTABLISHMENT,OPPD - Cost of Care - Fenland - Over 65,Older People - Fenland - Care,Residential Care
Cambridgeshire County Council,01-Sep-23,51302054402,-642.86,HATLEY COURT HAVEN LTD,CARE ESTABLISHMENT,OPPD - Cost of Care - East Cambs - Over 65,East Cambs - O P Team - Care,Residential Care
Cambridgeshire County Council,01-Sep-23,51302055267,-642.86,HUNTERS HEALTHCARE (HUNTERS DOWN),CARE ESTABLISHMENT,OPPD - Cost of Care - Huntingdon - Over 65,Hunts OP Team - Care,Residential Care
Cambridgeshire County Council,01-Sep-23,51302036481,-640.53,Redacted Personal Data,SERVICE USER,LD - South Locality - Cost of Care,LD - South Cambs - Care,Direct Payments
Cambridgeshire County Council,01-Sep-23,51302036481,-640.53,Redacted Personal Data,SERVICE USER,LD - South Locality - Cost of Care,LD - South Cambs - Care,Direct Payments
Cambridgeshire County Council,01-Sep-23,51302036481,-640.53,Redacted Personal Data,SERVICE USER,LD - South Locality - Cost of Care,LD - South Cambs - Care,Direct Payments
Cambridgeshire County Council,01-Sep-23,51302036481,-640.53,Redacted Personal Data,SERVICE USER,LD - South Locality - Cost of Care,LD - South Cambs - Care,Direct Payments
Cambridgeshire County Council,01-Sep-23,51302056261,-640.53,Redacted Personal Data,SERVICE USER,LD - South Locality - Cost of Care,LD - South Cambs - Care,Direct Payments
Cambridgeshire County Council,01-Sep-23,51302056261,-640.53,Redacted Personal Data,SERVICE USER,LD - South Locality - Cost of Care,LD - South Cambs - Care,Direct Payments
Cambridgeshire County Council,01-Sep-23,51302016967,-640.53,Redacted Personal Data,SERVICE USER,LD - South Locality - Cost of Care,LD - South Cambs - Care,Direct Payments
Cambridgeshire County Council,01-Sep-23,51302016967,-640.53,Redacted Personal Data,SERVICE USER,LD - South Locality - Cost of Care,LD - South Cambs - Care,Direct Payments
Cambridgeshire County Council,01-Sep-23,51302016967,-640.53,Redacted Personal Data,SERVICE USER,LD - South Locality - Cost of Care,LD - South Cambs - Care,Direct Payments
Cambridgeshire County Council,01-Sep-23,51302016967,-640.53,Redacted Personal Data,SERVICE USER,LD - South Locality - Cost of Care,LD - South Cambs - Care,Direct Payments
Cambridgeshire County Council,01-Sep-23,51302054917,-625.70,MAKING SPACE,CARE ESTABLISHMENT,OPPD - Cost of Care - East Cambs - Over 65,East Cambs - O P Team - Care,Nursing Care
Cambridgeshire County Council,01-Sep-23,51302055180,-624.22,MM2 Care Homes Ltd t/a The Chestnuts MM2 (Wisbech),COMPANY,OPPD - Cost of Care - Fenland - Over 65,Older People - Fenland - Care,Residential Care
Cambridgeshire County Council,01-Sep-23,51302055255,-591.43,Maven Healthcare,CARE ESTABLISHMENT,OPPD - Cost of Care - City South - Over 65,Older People - City & South - Care,Nursing Care
Cambridgeshire County Council,01-Sep-23,51302054998,-588.36,WOODLANDS CARE CENTRE,CARE ESTABLISHMENT,OPPD - Cost of Care - City South - Over 65,Older People - City & South - Care,Nursing Care
Cambridgeshire County Council,01-Sep-23,51302055193,-578.82,Heathlands House T/A Care UK Community Partnerships Ltd,COMPANY,OPPD - Cost of Care - City South - Over 65,Older People - City & South - Care,Residential Care
Cambridgeshire County Council,01-Sep-23,51302045753,-576.51,CLOVELLY HOUSE RESIDENTIAL HOME,CARE ESTABLISHMENT,OPPD - Cost of Care - Fenland - Over 65,Older People - Fenland - Care,Residential Care
Cambridgeshire County Council,01-Sep-23,51302056153,-576.17,Redacted Personal Data,SERVICE USER,LD - City Locality - Cost of Care,LD - City - Care,Direct Payments
Cambridgeshire County Council,01-Sep-23,51302056264,-569.30,Redacted Personal Data,INDIVIDUAL,LD - Young Adults Team,LD - Young Adults - Care,Direct Payments
Cambridgeshire County Council,01-Sep-23,51302056264,-569.30,Redacted Personal Data,INDIVIDUAL,LD - Young Adults Team,LD - Young Adults - Care,Direct Payments
Cambridgeshire County Council,01-Sep-23,51302056264,-569.30,Redacted Personal Data,INDIVIDUAL,LD - Young Adults Team,LD - Young Adults - Care,Direct Payments
Cambridgeshire County Council,01-Sep-23,51302055332,-566.40,CARETECH COMMUNITY SERVICES,CARE ESTABLISHMENT,LD - South Locality - Cost of Care,LD - South Cambs - Special Needs,Residential Care
Cambridgeshire County Council,01-Sep-23,51302054897,-559.75,FARRINGTON CARE HOMES LTD T/A WOODLANDS RESIDENTIAL CARE HOME,CARE ESTABLISHMENT,OPPD - Cost of Care - Huntingdon - Over 65,Hunts OP Team - Care,Residential Care
Cambridgeshire County Council,01-Sep-23,51302050722,-552.99,AURORA MELDRETH & ORCHARD MANOR,EDUCATION,SEN Placements,Independent Education Placements,Independent School Placements
Cambridgeshire County Council,01-Sep-23,51302054557,-535.71,CROMWELL HOUSE HEALTH CARE,CARE ESTABLISHMENT,OPPD - Cost of Care - Huntingdon - Over 65,Hunts OP Team - Care,Residential Care
Cambridgeshire County Council,01-Sep-23,51302052170,-535.71,HATLEY COURT HAVEN LTD,CARE ESTABLISHMENT,OPPD - Cost of Care - City South - Over 65,Older People - City & South - Care,Short Term Other
Cambridgeshire County Council,01-Sep-23,51302054591,-535.71,HATLEY COURT HAVEN LTD,CARE ESTABLISHMENT,OPPD - Cost of Care - City South - Over 65,Older People - City & South - Care,Residential Care
Cambridgeshire County Council,01-Sep-23,51302054222,-534.75,THE RED HOUSE RESIDENTIAL & NURSING HOME,CARE ESTABLISHMENT,OPPD - Cost of Care - Huntingdon - Over 65,Hunts OP Team - Care,Residential Care
Cambridgeshire County Council,01-Sep-23,51302054949,-521.43,LILY HOUSE,CARE ESTABLISHMENT,OPPD - Cost of Care - Fenland - Over 65,Older People - Fenland - Care,Residential Care
Cambridgeshire County Council,01-Sep-23,51302054555,-521.43,HOME MEADOW LTD,CARE ESTABLISHMENT,OPPD - Cost of Care - City South - Over 65,Older People - City & South - Care,Residential Care
Cambridgeshire County Council,01-Sep-23,51302054452,-520.00,KINGFISHER HOUSE,CARE ESTABLISHMENT,OPPD - Cost of Care - East Cambs - Over 65,East Cambs - O P Team - Care,Nursing Care
Cambridgeshire County Council,01-Sep-23,51302055473,-506.20,STAR RESIDENTIAL HOME LTD,CARE ESTABLISHMENT,OPMH - Hunts & Fens,Older People Mental Health Hunts,Nursing Care
Cambridgeshire County Council,01-Sep-23,51302055473,-506.20,STAR RESIDENTIAL HOME LTD,CARE ESTABLISHMENT,OPMH - Hunts & Fens,Older People Mental Health Hunts,Nursing Care
Cambridgeshire County Council,01-Sep-23,51302055473,-506.20,STAR RESIDENTIAL HOME LTD,CARE ESTABLISHMENT,OPMH - Hunts & Fens,Older People Mental Health Hunts,Nursing Care
Cambridgeshire County Council,01-Sep-23,51302055473,-506.20,STAR RESIDENTIAL HOME LTD,CARE ESTABLISHMENT,OPMH - Hunts & Fens,Older People Mental Health Hunts,Nursing Care
Cambridgeshire County Council,01-Sep-23,51302055473,-506.20,STAR RESIDENTIAL HOME LTD,CARE ESTABLISHMENT,OPMH - Hunts & Fens,Older People Mental Health Hunts,Nursing Care
Cambridgeshire County Council,01-Sep-23,51302055473,-506.20,STAR RESIDENTIAL HOME LTD,CARE ESTABLISHMENT,OPMH - Hunts & Fens,Older People Mental Health Hunts,Nursing Care
Cambridgeshire County Council,01-Sep-23,51302055473,-506.20,STAR RESIDENTIAL HOME LTD,CARE ESTABLISHMENT,OPMH - Hunts & Fens,Older People Mental Health Hunts,Nursing Care
Cambridgeshire County Council,01-Sep-23,51302055473,-506.20,STAR RESIDENTIAL HOME LTD,CARE ESTABLISHMENT,OPMH - Hunts & Fens,Older People Mental Health Hunts,Nursing Care
Cambridgeshire County Council,01-Sep-23,51302055473,-506.20,STAR RESIDENTIAL HOME LTD,CARE ESTABLISHMENT,OPMH - Hunts & Fens,Older People Mental Health Hunts,Nursing Care
Cambridgeshire County Council,01-Sep-23,51302056086,501.36,Redacted Personal Data,SERVICE USER,LD - Hunts Locality - Cost of Care,LD - Huntingdonshire - Care,Direct Payments
Cambridgeshire County Council,01-Sep-23,51302056086,501.36,Redacted Personal Data,SERVICE USER,LD - Hunts Locality - Cost of Care,LD - Huntingdonshire - Care,Direct Payments
Cambridgeshire County Council,01-Sep-23,51302056086,501.36,Redacted Personal Data,SERVICE USER,LD - Hunts Locality - Cost of Care,LD - Huntingdonshire - Care,Direct Payments
Cambridgeshire County Council,01-Sep-23,51302056086,501.36,Redacted Personal Data,SERVICE USER,LD - Hunts Locality - Cost of Care,LD - Huntingdonshire - Care,Direct Payments
Cambridgeshire County Council,01-Sep-23,51302042898,503.40,Sabanu Care Ltd,COMPANY,Community Support Service,Community Support Service ECF,Grants to Voluntary Bodies
Cambridgeshire County Council,01-Sep-23,51302055068,503.93,THE GABLES SPECIALIST NURSING HOME,CARE ESTABLISHMENT,OPMH - Hunts & Fens,Older People Mental Health Fenland,Nursing Care
Cambridgeshire County Council,01-Sep-23,51302055068,503.93,THE GABLES SPECIALIST NURSING HOME,CARE ESTABLISHMENT,OPMH - Hunts & Fens,Older People Mental Health Fenland,Nursing Care
Cambridgeshire County Council,01-Sep-23,51302055068,503.93,THE GABLES SPECIALIST NURSING HOME,CARE ESTABLISHMENT,OPMH - Hunts & Fens,Older People Mental Health Fenland,Nursing Care
Cambridgeshire County Council,01-Sep-23,51302055068,503.93,THE GABLES SPECIALIST NURSING HOME,CARE ESTABLISHMENT,OPMH - Hunts & Fens,Older People Mental Health Fenland,Nursing Care
Cambridgeshire County Council,01-Sep-23,51302055082,505.45,ST GEORGE'S COURT,CARE ESTABLISHMENT,OPMH - City & South,Older People Mental Health City & South,Residential Care
Cambridgeshire County Council,01-Sep-23,51302055082,505.45,ST GEORGE'S COURT,CARE ESTABLISHMENT,OPMH - City & South,Older People Mental Health City & South,Residential Care
Cambridgeshire County Council,01-Sep-23,51302055082,505.45,ST GEORGE'S COURT,CARE ESTABLISHMENT,OPMH - City & South,Older People Mental Health City & South,Residential Care
Cambridgeshire County Council,01-Sep-23,51302055082,505.45,ST GEORGE'S COURT,CARE ESTABLISHMENT,OPMH - City & South,Older People Mental Health City & South,Residential Care
Cambridgeshire County Council,01-Sep-23,51302055398,508.06,THE BRAMBLES (SOHAM) LTD,CARE ESTABLISHMENT,LD - East Locality - Cost of Care,LD - East Cambs - Care,Residential Care
Cambridgeshire County Council,01-Sep-23,51302055398,508.06,THE BRAMBLES (SOHAM) LTD,CARE ESTABLISHMENT,LD - East Locality - Cost of Care,LD - East Cambs - Care,Residential Care
Cambridgeshire County Council,01-Sep-23,51302055398,508.06,THE BRAMBLES (SOHAM) LTD,CARE ESTABLISHMENT,LD - East Locality - Cost of Care,LD - East Cambs - Care,Residential Care
Cambridgeshire County Council,01-Sep-23,51302055398,508.06,THE BRAMBLES (SOHAM) LTD,CARE ESTABLISHMENT,LD - East Locality - Cost of Care,LD - East Cambs - Care,Residential Care
Cambridgeshire County Council,01-Sep-23,51302055535,508.45,Conifer Lodge Active Adult Ltd,CARE ESTABLISHMENT,LD - Fenland Locality - Cost of Care,LD - Fenland  - Care,Residential Care
Cambridgeshire County Council,01-Sep-23,51302055535,508.45,Conifer Lodge Active Adult Ltd,CARE ESTABLISHMENT,LD - Fenland Locality - Cost of Care,LD - Fenland  - Care,Residential Care
Cambridgeshire County Council,01-Sep-23,51302055535,508.45,Conifer Lodge Active Adult Ltd,CARE ESTABLISHMENT,LD - Fenland Locality - Cost of Care,LD - Fenland  - Care,Residential Care
Cambridgeshire County Council,01-Sep-23,51302055535,508.45,Conifer Lodge Active Adult Ltd,CARE ESTABLISHMENT,LD - Fenland Locality - Cost of Care,LD - Fenland  - Care,Residential Care
Cambridgeshire County Council,01-Sep-23,51302056489,508.86,Redacted Personal Data,INDIVIDUAL,OPPD - Cost of Care - Fenland - Under 65,OPPD - Under 65 - Fenland,Direct Payments
Cambridgeshire County Council,01-Sep-23,51302056489,508.86,Redacted Personal Data,INDIVIDUAL,OPPD - Cost of Care - Fenland - Under 65,OPPD - Under 65 - Fenland,Direct Payments
Cambridgeshire County Council,01-Sep-23,51302056489,508.86,Redacted Personal Data,INDIVIDUAL,OPPD - Cost of Care - Fenland - Under 65,OPPD - Under 65 - Fenland,Direct Payments
Cambridgeshire County Council,01-Sep-23,51302056489,508.86,Redacted Personal Data,INDIVIDUAL,OPPD - Cost of Care - Fenland - Under 65,OPPD - Under 65 - Fenland,Direct Payments
Cambridgeshire County Council,01-Sep-23,51302055841,511.19,Redacted Personal Data,INDIVIDUAL,OPMH - Hunts & Fens,Older People Mental Health Fenland,Direct Payments
Cambridgeshire County Council,01-Sep-23,51302055841,511.19,Redacted Personal Data,INDIVIDUAL,OPMH - Hunts & Fens,Older People Mental Health Fenland,Direct Payments
Cambridgeshire County Council,01-Sep-23,51302055841,511.19,Redacted Personal Data,INDIVIDUAL,OPMH - Hunts & Fens,Older People Mental Health Fenland,Direct Payments
Cambridgeshire County Council,01-Sep-23,51302055841,511.19,Redacted Personal Data,INDIVIDUAL,OPMH - Hunts & Fens,Older People Mental Health Fenland,Direct Payments
Cambridgeshire County Council,01-Sep-23,51302056472,515.34,Redacted Personal Data,SERVICE USER,OPPD - Cost of Care - East Cambs - Under 65,OPPD - Under 65 - East Cambs,Direct Payments
Cambridgeshire County Council,01-Sep-23,51302056472,515.34,Redacted Personal Data,SERVICE USER,OPPD - Cost of Care - East Cambs - Under 65,OPPD - Under 65 - East Cambs,Direct Payments
Cambridgeshire County Council,01-Sep-23,51302056472,515.34,Redacted Personal Data,SERVICE USER,OPPD - Cost of Care - East Cambs - Under 65,OPPD - Under 65 - East Cambs,Direct Payments
Cambridgeshire County Council,01-Sep-23,51302056472,515.34,Redacted Personal Data,SERVICE USER,OPPD - Cost of Care - East Cambs - Under 65,OPPD - Under 65 - East Cambs,Direct Payments
Cambridgeshire County Council,01-Sep-23,51302055421,515.37,CARETECH COMMUNITY SERVICES,CARE ESTABLISHMENT,LD - South Locality - Cost of Care,LD - South Cambs - Care,Residential Care
Cambridgeshire County Council,01-Sep-23,51302054670,517.26,HILL HOUSE,CARE ESTABLISHMENT,LD - Hunts Locality - Cost of Care,LD - Huntingdonshire - Care,Residential Care
Cambridgeshire County Council,01-Sep-23,51302054670,517.26,HILL HOUSE,CARE ESTABLISHMENT,LD - Hunts Locality - Cost of Care,LD - Huntingdonshire - Care,Residential Care
Cambridgeshire County Council,01-Sep-23,51302054670,517.26,HILL HOUSE,CARE ESTABLISHMENT,LD - Hunts Locality - Cost of Care,LD - Huntingdonshire - Care,Residential Care
Cambridgeshire County Council,01-Sep-23,51302054670,517.26,HILL HOUSE,CARE ESTABLISHMENT,LD - Hunts Locality - Cost of Care,LD - Huntingdonshire - Care,Residential Care
Cambridgeshire County Council,01-Sep-23,51302053918,517.64,ASKEWS AND HOLTS LIBRARY SERVICES LTD,TRADE SUPPLIER,Libraries - Stock & Distribution,Support - Stock & Distribution,Books and Multimedia Supplies
Cambridgeshire County Council,01-Sep-23,51302055885,520.24,Redacted Personal Data,SERVICE USER,LD - Hunts Locality - Cost of Care,LD - Huntingdonshire - Care,Direct Payments
Cambridgeshire County Council,01-Sep-23,51302055885,520.24,Redacted Personal Data,SERVICE USER,LD - Hunts Locality - Cost of Care,LD - Huntingdonshire - Care,Direct Payments
Cambridgeshire County Council,01-Sep-23,51302055885,520.24,Redacted Personal Data,SERVICE USER,LD - Hunts Locality - Cost of Care,LD - Huntingdonshire - Care,Direct Payments
Cambridgeshire County Council,01-Sep-23,51302055885,520.24,Redacted Personal Data,SERVICE USER,LD - Hunts Locality - Cost of Care,LD - Huntingdonshire - Care,Direct Payments
Cambridgeshire County Council,01-Sep-23,51302054355,522.66,Askham Services Limited,COMPANY,OPPD - Cost of Care - Fenland - Over 65,Older People - Fenland - Care,Nursing Care
Cambridgeshire County Council,01-Sep-23,51302054021,523.38,Redacted Personal Data,INDIVIDUAL,Insurance Fund,Liability,Insurance Claims Paid
Cambridgeshire County Council,01-Sep-23,51302055530,524.17,SOLDEN HILL HOUSE LTD,CARE ESTABLISHMENT,LD - South Locality - Cost of Care,LD - South Cambs - Care,Residential Care
Cambridgeshire County Council,01-Sep-23,51302055530,524.17,SOLDEN HILL HOUSE LTD,CARE ESTABLISHMENT,LD - South Locality - Cost of Care,LD - South Cambs - Care,Residential Care
Cambridgeshire County Council,01-Sep-23,51302055530,524.17,SOLDEN HILL HOUSE LTD,CARE ESTABLISHMENT,LD - South Locality - Cost of Care,LD - South Cambs - Care,Residential Care
Cambridgeshire County Council,01-Sep-23,51302055530,524.17,SOLDEN HILL HOUSE LTD,CARE ESTABLISHMENT,LD - South Locality - Cost of Care,LD - South Cambs - Care,Residential Care
Cambridgeshire County Council,01-Sep-23,51302055333,524.18,SOLDEN HILL HOUSE LTD,CARE ESTABLISHMENT,AMH Cambridge South - care,Cambridge South Adult Mental Health Team,Residential Care
Cambridgeshire County Council,01-Sep-23,51302055333,524.18,SOLDEN HILL HOUSE LTD,CARE ESTABLISHMENT,AMH Cambridge South - care,Cambridge South Adult Mental Health Team,Residential Care
Cambridgeshire County Council,01-Sep-23,51302055333,524.18,SOLDEN HILL HOUSE LTD,CARE ESTABLISHMENT,AMH Cambridge South - care,Cambridge South Adult Mental Health Team,Residential Care
Cambridgeshire County Council,01-Sep-23,51302055333,524.18,SOLDEN HILL HOUSE LTD,CARE ESTABLISHMENT,AMH Cambridge South - care,Cambridge South Adult Mental Health Team,Residential Care
Cambridgeshire County Council,01-Sep-23,51302055901,524.36,Redacted Personal Data,INDIVIDUAL,OPPD - Cost of Care - City South - Over 65,Older People - City & South - Care,Direct Payments
Cambridgeshire County Council,01-Sep-23,51302055901,524.36,Redacted Personal Data,INDIVIDUAL,OPPD - Cost of Care - City South - Over 65,Older People - City & South - Care,Direct Payments
Cambridgeshire County Council,01-Sep-23,51302055901,524.36,Redacted Personal Data,INDIVIDUAL,OPPD - Cost of Care - City South - Over 65,Older People - City & South - Care,Direct Payments
Cambridgeshire County Council,01-Sep-23,51302055901,524.36,Redacted Personal Data,INDIVIDUAL,OPPD - Cost of Care - City South - Over 65,Older People - City & South - Care,Direct Payments
Cambridgeshire County Council,01-Sep-23,51302056335,525.64,Redacted Personal Data,PARENT/GUARDIAN,LD - Fenland Locality - Cost of Care,LD - Fenland  - Care,Direct Payments
Cambridgeshire County Council,01-Sep-23,51302056335,525.64,Redacted Personal Data,PARENT/GUARDIAN,LD - Fenland Locality - Cost of Care,LD - Fenland  - Care,Direct Payments
Cambridgeshire County Council,01-Sep-23,51302056335,525.64,Redacted Personal Data,PARENT/GUARDIAN,LD - Fenland Locality - Cost of Care,LD - Fenland  - Care,Direct Payments
Cambridgeshire County Council,01-Sep-23,51302056335,525.64,Redacted Personal Data,PARENT/GUARDIAN,LD - Fenland Locality - Cost of Care,LD - Fenland  - Care,Direct Payments
Cambridgeshire County Council,01-Sep-23,51302054309,526.07,Anchor Hanover Group t/a Nelson Lodge,COMPANY,OPPD - Cost of Care - Huntingdon - Over 65,Hunts OP Team - Care,Residential Care
Cambridgeshire County Council,01-Sep-23,51302055976,526.29,Redacted Personal Data,INDIVIDUAL,AMH Hunts and Fens - care,Hunts and Fens Adult Mental Health Team,Direct Payments
Cambridgeshire County Council,01-Sep-23,51302055976,526.29,Redacted Personal Data,INDIVIDUAL,AMH Hunts and Fens - care,Hunts and Fens Adult Mental Health Team,Direct Payments
Cambridgeshire County Council,01-Sep-23,51302055976,526.29,Redacted Personal Data,INDIVIDUAL,AMH Hunts and Fens - care,Hunts and Fens Adult Mental Health Team,Direct Payments
Cambridgeshire County Council,01-Sep-23,51302055976,526.29,Redacted Personal Data,INDIVIDUAL,AMH Hunts and Fens - care,Hunts and Fens Adult Mental Health Team,Direct Payments
Cambridgeshire County Council,01-Sep-23,51302056042,527.46,Redacted Personal Data,PARENT/GUARDIAN,LD - Hunts Locality - Cost of Care,LD - Huntingdonshire - Care,Direct Payments
Cambridgeshire County Council,01-Sep-23,51302056042,527.46,Redacted Personal Data,PARENT/GUARDIAN,LD - Hunts Locality - Cost of Care,LD - Huntingdonshire - Care,Direct Payments
Cambridgeshire County Council,01-Sep-23,51302056042,527.46,Redacted Personal Data,PARENT/GUARDIAN,LD - Hunts Locality - Cost of Care,LD - Huntingdonshire - Care,Direct Payments
Cambridgeshire County Council,01-Sep-23,51302056042,527.46,Redacted Personal Data,PARENT/GUARDIAN,LD - Hunts Locality - Cost of Care,LD - Huntingdonshire - Care,Direct Payments
Cambridgeshire County Council,01-Sep-23,51302056246,527.51,Redacted Personal Data,INDIVIDUAL,OPMH - Hunts & Fens,Older People Mental Health Fenland,Direct Payments
Cambridgeshire County Council,01-Sep-23,51302056246,527.51,Redacted Personal Data,INDIVIDUAL,OPMH - Hunts & Fens,Older People Mental Health Fenland,Direct Payments
Cambridgeshire County Council,01-Sep-23,51302056246,527.51,Redacted Personal Data,INDIVIDUAL,OPMH - Hunts & Fens,Older People Mental Health Fenland,Direct Payments
Cambridgeshire County Council,01-Sep-23,51302056246,527.51,Redacted Personal Data,INDIVIDUAL,OPMH - Hunts & Fens,Older People Mental Health Fenland,Direct Payments
Cambridgeshire County Council,01-Sep-23,51302055395,527.95,CONQUEST CARE HOMES (SOHAM) LTD,CARE ESTABLISHMENT,LD - East Locality - Cost of Care,LD - East Cambs - Care,Residential Care
Cambridgeshire County Council,01-Sep-23,51302055395,527.95,CONQUEST CARE HOMES (SOHAM) LTD,CARE ESTABLISHMENT,LD - East Locality - Cost of Care,LD - East Cambs - Care,Residential Care
Cambridgeshire County Council,01-Sep-23,51302055395,527.95,CONQUEST CARE HOMES (SOHAM) LTD,CARE ESTABLISHMENT,LD - East Locality - Cost of Care,LD - East Cambs - Care,Residential Care
Cambridgeshire County Council,01-Sep-23,51302055395,527.95,CONQUEST CARE HOMES (SOHAM) LTD,CARE ESTABLISHMENT,LD - East Locality - Cost of Care,LD - East Cambs - Care,Residential Care
Cambridgeshire County Council,01-Sep-23,51302055817,529.44,Redacted Personal Data,INDIVIDUAL,LD - Young Adults Team,LD - Young Adults - Care,Direct Payments
Cambridgeshire County Council,01-Sep-23,51302055817,529.44,Redacted Personal Data,INDIVIDUAL,LD - Young Adults Team,LD - Young Adults - Care,Direct Payments
Cambridgeshire County Council,01-Sep-23,51302055817,529.44,Redacted Personal Data,INDIVIDUAL,LD - Young Adults Team,LD - Young Adults - Care,Direct Payments
Cambridgeshire County Council,01-Sep-23,51302055817,529.44,Redacted Personal Data,INDIVIDUAL,LD - Young Adults Team,LD - Young Adults - Care,Direct Payments
Cambridgeshire County Council,01-Sep-23,51302055818,530.77,Redacted Personal Data,INDIVIDUAL,OPPD - Cost of Care - Huntingdon - Over 65,Hunts OP Team - Care,Direct Payments
Cambridgeshire County Council,01-Sep-23,51302055818,530.77,Redacted Personal Data,INDIVIDUAL,OPPD - Cost of Care - Huntingdon - Over 65,Hunts OP Team - Care,Direct Payments
Cambridgeshire County Council,01-Sep-23,51302055818,530.77,Redacted Personal Data,INDIVIDUAL,OPPD - Cost of Care - Huntingdon - Over 65,Hunts OP Team - Care,Direct Payments
Cambridgeshire County Council,01-Sep-23,51302055818,530.77,Redacted Personal Data,INDIVIDUAL,OPPD - Cost of Care - Huntingdon - Over 65,Hunts OP Team - Care,Direct Payments
Cambridgeshire County Council,01-Sep-23,51302055493,531.86,KLAIR HOUSE,CARE ESTABLISHMENT,AMH Cambridge North - Care,Cambridge North Adult Mental Health Team,Residential Care
Cambridgeshire County Council,01-Sep-23,51302055493,531.86,KLAIR HOUSE,CARE ESTABLISHMENT,AMH Cambridge North - Care,Cambridge North Adult Mental Health Team,Residential Care
Cambridgeshire County Council,01-Sep-23,51302055493,531.86,KLAIR HOUSE,CARE ESTABLISHMENT,AMH Cambridge North - Care,Cambridge North Adult Mental Health Team,Residential Care
Cambridgeshire County Council,01-Sep-23,51302055493,531.86,KLAIR HOUSE,CARE ESTABLISHMENT,AMH Cambridge North - Care,Cambridge North Adult Mental Health Team,Residential Care
Cambridgeshire County Council,01-Sep-23,51302056417,532.31,Redacted Personal Data,INDIVIDUAL,OPPD - Under 65 - City South,OPPD - Under 65 - City South,Direct Payments
Cambridgeshire County Council,01-Sep-23,51302056417,532.31,Redacted Personal Data,INDIVIDUAL,OPPD - Under 65 - City South,OPPD - Under 65 - City South,Direct Payments
Cambridgeshire County Council,01-Sep-23,51302056417,532.31,Redacted Personal Data,INDIVIDUAL,OPPD - Under 65 - City South,OPPD - Under 65 - City South,Direct Payments
Cambridgeshire County Council,01-Sep-23,51302056417,532.31,Redacted Personal Data,INDIVIDUAL,OPPD - Under 65 - City South,OPPD - Under 65 - City South,Direct Payments
Cambridgeshire County Council,01-Sep-23,51302055144,533.03,WINSTON HOUSE(2CARE),CARE ESTABLISHMENT,AMH Cambridge North - Care,Cambridge North Adult Mental Health Team,Residential Care
Cambridgeshire County Council,01-Sep-23,51302055144,533.03,WINSTON HOUSE(2CARE),CARE ESTABLISHMENT,AMH Cambridge North - Care,Cambridge North Adult Mental Health Team,Residential Care
Cambridgeshire County Council,01-Sep-23,51302055144,533.03,WINSTON HOUSE(2CARE),CARE ESTABLISHMENT,AMH Cambridge North - Care,Cambridge North Adult Mental Health Team,Residential Care
Cambridgeshire County Council,01-Sep-23,51302055144,533.03,WINSTON HOUSE(2CARE),CARE ESTABLISHMENT,AMH Cambridge North - Care,Cambridge North Adult Mental Health Team,Residential Care
Cambridgeshire County Council,01-Sep-23,51302054763,533.12,BOXTREE COTTAGE CAMBRIDGE LIMITED T/A BOXTREE COTTAGE RESIDENTIAL HOME,CARE ESTABLISHMENT,AMH Hunts and Fens - care,Hunts and Fens Adult Mental Health Team,Residential Care
Cambridgeshire County Council,01-Sep-23,51302054763,533.12,BOXTREE COTTAGE CAMBRIDGE LIMITED T/A BOXTREE COTTAGE RESIDENTIAL HOME,CARE ESTABLISHMENT,AMH Hunts and Fens - care,Hunts and Fens Adult Mental Health Team,Residential Care
Cambridgeshire County Council,01-Sep-23,51302054763,533.12,BOXTREE COTTAGE CAMBRIDGE LIMITED T/A BOXTREE COTTAGE RESIDENTIAL HOME,CARE ESTABLISHMENT,AMH Hunts and Fens - care,Hunts and Fens Adult Mental Health Team,Residential Care
Cambridgeshire County Council,01-Sep-23,51302054763,533.12,BOXTREE COTTAGE CAMBRIDGE LIMITED T/A BOXTREE COTTAGE RESIDENTIAL HOME,CARE ESTABLISHMENT,AMH Hunts and Fens - care,Hunts and Fens Adult Mental Health Team,Residential Care
Cambridgeshire County Council,01-Sep-23,51302056511,533.19,Redacted Personal Data,INDIVIDUAL,LD - Young Adults Team,LD - Young Adults - Care,Direct Payments
Cambridgeshire County Council,01-Sep-23,51302056511,533.19,Redacted Personal Data,INDIVIDUAL,LD - Young Adults Team,LD - Young Adults - Care,Direct Payments
Cambridgeshire County Council,01-Sep-23,51302056511,533.19,Redacted Personal Data,INDIVIDUAL,LD - Young Adults Team,LD - Young Adults - Care,Direct Payments
Cambridgeshire County Council,01-Sep-23,51302056511,533.19,Redacted Personal Data,INDIVIDUAL,LD - Young Adults Team,LD - Young Adults - Care,Direct Payments
Cambridgeshire County Council,01-Sep-23,51302055421,534.79,CARETECH COMMUNITY SERVICES,CARE ESTABLISHMENT,LD - South Locality - Cost of Care,LD - South Cambs - Care,Residential Care
Cambridgeshire County Council,01-Sep-23,51302055421,534.79,CARETECH COMMUNITY SERVICES,CARE ESTABLISHMENT,LD - South Locality - Cost of Care,LD - South Cambs - Care,Residential Care
Cambridgeshire County Council,01-Sep-23,51302055315,535.17,COTTENHAM COURT NURSING HOME,CARE ESTABLISHMENT,OPPD - Cost of Care - Fenland - Over 65,Older People - Fenland - Care,Nursing Care
Cambridgeshire County Council,01-Sep-23,51302054621,535.71,HATLEY COURT HAVEN LTD,CARE ESTABLISHMENT,OPPD - Under 65 - City South,OPPD - Under 65 - City South,Residential Care
Cambridgeshire County Council,01-Sep-23,51302056503,537.79,Redacted Personal Data,INDIVIDUAL,LD - Hunts Locality - Cost of Care,LD - Huntingdonshire - Special Needs,Direct Payments
Cambridgeshire County Council,01-Sep-23,51302056503,537.79,Redacted Personal Data,INDIVIDUAL,LD - Hunts Locality - Cost of Care,LD - Huntingdonshire - Special Needs,Direct Payments
Cambridgeshire County Council,01-Sep-23,51302056503,537.79,Redacted Personal Data,INDIVIDUAL,LD - Hunts Locality - Cost of Care,LD - Huntingdonshire - Special Needs,Direct Payments
Cambridgeshire County Council,01-Sep-23,51302056503,537.79,Redacted Personal Data,INDIVIDUAL,LD - Hunts Locality - Cost of Care,LD - Huntingdonshire - Special Needs,Direct Payments
Cambridgeshire County Council,01-Sep-23,51302055868,538.17,Redacted Personal Data,INDIVIDUAL,OPPD - Cost of Care - City South - Over 65,Older People - City & South - Care,Direct Payments
Cambridgeshire County Council,01-Sep-23,51302055868,538.17,Redacted Personal Data,INDIVIDUAL,OPPD - Cost of Care - City South - Over 65,Older People - City & South - Care,Direct Payments
Cambridgeshire County Council,01-Sep-23,51302055868,538.17,Redacted Personal Data,INDIVIDUAL,OPPD - Cost of Care - City South - Over 65,Older People - City & South - Care,Direct Payments
Cambridgeshire County Council,01-Sep-23,51302055868,538.17,Redacted Personal Data,INDIVIDUAL,OPPD - Cost of Care - City South - Over 65,Older People - City & South - Care,Direct Payments
Cambridgeshire County Council,01-Sep-23,51302054306,543.57,Anchor Hanover Group t/a Nelson Lodge,COMPANY,OPPD - Cost of Care - Huntingdon - Over 65,Hunts OP Team - Care,Residential Care
Cambridgeshire County Council,01-Sep-23,51302054305,543.57,Anchor Hanover Group t/a Nelson Lodge,COMPANY,OPPD - Cost of Care - Huntingdon - Over 65,Hunts OP Team - Care,Residential Care
Cambridgeshire County Council,01-Sep-23,51302055349,544.06,AVERY HOUSE CARE HOME,CARE ESTABLISHMENT,AMH Hunts and Fens - care,Hunts and Fens Adult Mental Health Team,Residential Care
Cambridgeshire County Council,01-Sep-23,51302055349,544.06,AVERY HOUSE CARE HOME,CARE ESTABLISHMENT,AMH Hunts and Fens - care,Hunts and Fens Adult Mental Health Team,Residential Care
Cambridgeshire County Council,01-Sep-23,51302055349,544.06,AVERY HOUSE CARE HOME,CARE ESTABLISHMENT,AMH Hunts and Fens - care,Hunts and Fens Adult Mental Health Team,Residential Care
Cambridgeshire County Council,01-Sep-23,51302055349,544.06,AVERY HOUSE CARE HOME,CARE ESTABLISHMENT,AMH Hunts and Fens - care,Hunts and Fens Adult Mental Health Team,Residential Care
Cambridgeshire County Council,01-Sep-23,51302055419,544.15,PARK HOUSE NURSING HOME,CARE ESTABLISHMENT,OPMH - Hunts & Fens,Older People Mental Health Hunts,Nursing Care
Cambridgeshire County Council,01-Sep-23,51302055419,544.15,PARK HOUSE NURSING HOME,CARE ESTABLISHMENT,OPMH - Hunts & Fens,Older People Mental Health Hunts,Nursing Care
Cambridgeshire County Council,01-Sep-23,51302055419,544.15,PARK HOUSE NURSING HOME,CARE ESTABLISHMENT,OPMH - Hunts & Fens,Older People Mental Health Hunts,Nursing Care
Cambridgeshire County Council,01-Sep-23,51302055419,544.15,PARK HOUSE NURSING HOME,CARE ESTABLISHMENT,OPMH - Hunts & Fens,Older People Mental Health Hunts,Nursing Care
Cambridgeshire County Council,01-Sep-23,51302054792,545.57,BARCHESTER HEALTHCARE HOMES LTD,CARE ESTABLISHMENT,OPMH - City & South,Older People Mental Health E Cambs,Nursing Care
Cambridgeshire County Council,01-Sep-23,51302054792,545.57,BARCHESTER HEALTHCARE HOMES LTD,CARE ESTABLISHMENT,OPMH - City & South,Older People Mental Health E Cambs,Nursing Care
Cambridgeshire County Council,01-Sep-23,51302054792,545.57,BARCHESTER HEALTHCARE HOMES LTD,CARE ESTABLISHMENT,OPMH - City & South,Older People Mental Health E Cambs,Nursing Care
Cambridgeshire County Council,01-Sep-23,51302054792,545.57,BARCHESTER HEALTHCARE HOMES LTD,CARE ESTABLISHMENT,OPMH - City & South,Older People Mental Health E Cambs,Nursing Care
Cambridgeshire County Council,01-Sep-23,51302054035,546.60,Mobius Networks Ltd,COMPANY,Technology Enabled Care,Cambs Lifeline Project,Specialist Equipment For Service Delivery
Cambridgeshire County Council,01-Sep-23,51302056003,546.70,Redacted Personal Data,INDIVIDUAL,OPPD - Cost of Care - Huntingdon - Over 65,Hunts OP Team - Care,Direct Payments
